Service Delivery Area(T),Service Delivery Team(T),ExpenditureGroup(T),Account(T),Supplier Name(T),Trans Date,Amount
Adult Social Care,ASC Directorate,Supplies & Services,Other Grants (Expenses),HC-One Limited,04/01/2022,990.15
Adult Social Care,ASC Directorate,Supplies & Services,Other Grants (Expenses),HC-One Limited,04/01/2022,4033
Adult Social Care,ASC Prevention & Enablement,Employees,Employee Costs Recharged,SHROPSHIRE COMMUNITY HEALTH NHS TRUST,10/01/2022,19662
Adult Social Care,ASC Prevention & Enablement,Supplies & Services,Aids & Appliances,1st Call Mobility,31/01/2022,620
Adult Social Care,ASC Prevention & Enablement,Supplies & Services,Aids & Appliances,1st Call Mobility,31/01/2022,1085
Adult Social Care,ASC Prevention & Enablement,Supplies & Services,Aids & Appliances,1st Call Mobility,31/01/2022,806
Adult Social Care,ASC Prevention & Enablement,Supplies & Services,Aids & Appliances,1st Call Mobility,31/01/2022,806
Adult Social Care,ASC Prevention & Enablement,Supplies & Services,Aids & Appliances,1st Call Mobility,31/01/2022,620
Adult Social Care,ASC Prevention & Enablement,Supplies & Services,Aids & Appliances,1st Call Mobility,31/01/2022,1050
Adult Social Care,ASC Prevention & Enablement,Supplies & Services,Aids & Appliances,1st Call Mobility,31/01/2022,1050
Adult Social Care,ASC Prevention & Enablement,Supplies & Services,Aids & Appliances,1st Call Mobility,31/01/2022,780
Adult Social Care,ASC Prevention & Enablement,Supplies & Services,Aids & Appliances,1st Call Mobility,31/01/2022,600
Adult Social Care,ASC Prevention & Enablement,Third Party Payments,Nursing Expenditure,"NHS Shropshire, Telford and Wrekin CCG",31/01/2022,7440
Adult Social Care,ASC Prevention & Enablement,Transport-Related Expenditure,Taxi Costs,C Ambulance,05/01/2022,147
Adult Social Care,ASC Prevention & Enablement,Transport-Related Expenditure,Taxi Costs,C Ambulance,05/01/2022,147
Adult Social Care,ASC Prevention & Enablement,Transport-Related Expenditure,Taxi Costs,C Ambulance,05/01/2022,147
Adult Social Care,ASC Prevention & Enablement,Transport-Related Expenditure,Taxi Costs,C Ambulance,05/01/2022,147
Adult Social Care,ASC Prevention & Enablement,Transport-Related Expenditure,Taxi Costs,C Ambulance,05/01/2022,156
Adult Social Care,ASC Prevention & Enablement,Transport-Related Expenditure,Taxi Costs,C Ambulance,05/01/2022,147
Adult Social Care,ASC Prevention & Enablement,Transport-Related Expenditure,Taxi Costs,C Ambulance,05/01/2022,147
Adult Social Care,ASC Prevention & Enablement,Transport-Related Expenditure,Taxi Costs,Telford Taxi Hire Limited,31/01/2022,900
Adult Social Care,"Commissioning, Procurement & Brokerage",Supplies & Services,Other Grants (Expenses),TELFORD MIND,07/01/2022,240
Adult Social Care,"Commissioning, Procurement & Brokerage",Supplies & Services,Other Grants (Expenses),TELFORD & WREKIN CVS,07/01/2022,25000
Adult Social Care,"Commissioning, Procurement & Brokerage",Supplies & Services,Subscriptions,HUB CIC - BRANCHES,07/01/2022,10450
Adult Social Care,"Commissioning, Procurement & Brokerage",Third Party Payments,Private Contractors,POHWER,13/01/2022,18750
Adult Social Care,"Commissioning, Procurement & Brokerage",Third Party Payments,Private Contractors,POHWER,13/01/2022,2500
Adult Social Care,"Commissioning, Procurement & Brokerage",Third Party Payments,Private Contractors,POHWER,26/01/2022,465.06
Adult Social Care,"Commissioning, Procurement & Brokerage",Supplies & Services,Other Grants (Expenses),WE ARE THE CARE COMPANY LTD,28/01/2022,178.5
Adult Social Care,"Commissioning, Procurement & Brokerage",Supplies & Services,Other Grants (Expenses),WE ARE THE CARE COMPANY LTD,28/01/2022,132
Adult Social Care,"Commissioning, Procurement & Brokerage",Supplies & Services,Other Grants (Expenses),WE ARE THE CARE COMPANY LTD,28/01/2022,132
Adult Social Care,"Commissioning, Procurement & Brokerage",Supplies & Services,Other Grants (Expenses),TELFORD & WREKIN CVS,13/01/2022,18500
Adult Social Care,Community Social Work & Adult Safeguarding,Premises-Related Expenditure,Bed & Breakfast Charges,Tontine Hotel,24/01/2022,1173.33
Adult Social Care,Community Social Work & Adult Safeguarding,Employees,Staff Training,UNIVERSITY OF WOLVERHAMPTON ,27/01/2022,2097
Adult Social Care,Community Social Work & Adult Safeguarding,Supplies & Services,Other Services,AMHP Hub,13/01/2022,400
Adult Social Care,Community Social Work & Adult Safeguarding,Supplies & Services,Other Services,Kent AMHP Service,19/01/2022,580.68
Adult Social Care,Community Social Work & Adult Safeguarding,Supplies & Services,Other Services,HILBRAE PETS HOTEL,19/01/2022,228
Adult Social Care,Community Social Work (Principal Social Worker),Transport-Related Expenditure,Taxi Costs, Go Carz,12/01/2022,317.88
Adult Social Care,Community Social Work (Principal Social Worker),Transport-Related Expenditure,Taxi Costs, Go Carz,12/01/2022,438.36
Adult Social Care,Community Social Work (Principal Social Worker),Supplies & Services,Other Grants (Expenses),TAKING PART,21/01/2022,1817.64
Adult Social Care,Community Social Work (Principal Social Worker),Premises-Related Expenditure,General Rents,THE WREKIN HOUSING TRUST,19/01/2022,7758.93
Adult Social Care,My Options,Supplies & Services,Provisions,BIKOLD,20/01/2022,100.42
Adult Social Care,My Options,Supplies & Services,Provisions,BIKOLD,21/01/2022,-100.42
Adult Social Care,My Options,Premises-Related Expenditure,Hire Of Rooms,Sutton Hill Community Trust,14/01/2022,200
Adult Social Care,My Options,Premises-Related Expenditure,Clean Mats & Toilet Requisites,PHS GROUP,11/01/2022,112.27
Adult Social Care,My Options,Premises-Related Expenditure,Hire Of Rooms,Dawley Baptist Church,11/01/2022,410
Adult Social Care,My Options,Premises-Related Expenditure,Contract Cleaning,DONNINGTON PARTNERSHIP,14/01/2022,180
Adult Social Care,My Options,Premises-Related Expenditure,Hire Of Rooms,HOLLINSWOOD & RANDLAY PARISH COUNCIL,14/01/2022,160
Adult Social Care,My Options,Premises-Related Expenditure,Hire Of Rooms,Dawley Baptist Church,31/01/2022,350
Adult Social Care,My Options,Premises-Related Expenditure,Clean Mats & Toilet Requisites,BERWICK CARE EQUIPMENT LTD,26/01/2022,403.98
Adult Social Care,My Options,Supplies & Services,Equipment - Purchase,GRANVILLE CONSTRUCTION & MAINTENANCE LTD,10/01/2022,240
Adult Social Care,My Options,Supplies & Services,Equipment - Purchase,A E C & Co (Old Hill) Ltd,20/01/2022,228
Adult Social Care,My Options,Employees,Agency Supply Costs,Nurse Plus and Carer Plus (UK) Limited,04/01/2022,334.58
Adult Social Care,My Options,Employees,Agency Supply Costs,Safehands Recruitment,10/01/2022,219.5
Adult Social Care,My Options,Employees,Agency Supply Costs,Safehands Recruitment,10/01/2022,477.65
Adult Social Care,My Options,Employees,Agency Supply Costs,Safehands Recruitment,10/01/2022,531.67
Adult Social Care,My Options,Employees,Agency Supply Costs,Safehands Recruitment,10/01/2022,1681.68
Adult Social Care,My Options,Employees,Agency Supply Costs,Nurse Plus and Carer Plus (UK) Limited,10/01/2022,298.08
Adult Social Care,My Options,Employees,Agency Supply Costs,Safehands Recruitment,10/01/2022,484.86
Adult Social Care,My Options,Employees,Agency Supply Costs,Nurse Plus and Carer Plus (UK) Limited,10/01/2022,376.91
Adult Social Care,My Options,Employees,Agency Supply Costs,Safehands Recruitment,10/01/2022,219.52
Adult Social Care,My Options,Employees,Agency Supply Costs,Safehands Recruitment,10/01/2022,813.24
Adult Social Care,My Options,Employees,Agency Supply Costs,Safehands Recruitment,20/01/2022,1310.12
Adult Social Care,My Options,Employees,Agency Supply Costs,Safehands Recruitment,20/01/2022,319.2
Adult Social Care,My Options,Employees,Agency Supply Costs,Safehands Recruitment,20/01/2022,826.32
Adult Social Care,My Options,Employees,Agency Supply Costs,Safehands Recruitment,20/01/2022,1765.09
Adult Social Care,My Options,Employees,Agency Supply Costs,Nurse Plus and Carer Plus (UK) Limited,20/01/2022,231.84
Adult Social Care,My Options,Employees,Agency Supply Costs,Nurse Plus and Carer Plus (UK) Limited,26/01/2022,579.23
Adult Social Care,My Options,Employees,Agency Supply Costs,Safehands Recruitment,26/01/2022,689.52
Adult Social Care,My Options,Employees,Agency Supply Costs,Safehands Recruitment,26/01/2022,120.46
Adult Social Care,My Options,Employees,Agency Supply Costs,Safehands Recruitment,26/01/2022,2126.66
Adult Social Care,My Options,Employees,Agency Supply Costs,Safehands Recruitment,26/01/2022,544.92
Adult Social Care,My Options,Employees,Agency Supply Costs,Safehands Recruitment,26/01/2022,718.2
Adult Social Care,My Options,Employees,Agency Supply Costs, JN Recruitment,26/01/2022,252
Adult Social Care,My Options,Employees,Agency Supply Costs,Safehands Recruitment,31/01/2022,131.74
Adult Social Care,My Options,Employees,Agency Supply Costs,Safehands Recruitment,31/01/2022,727.03
Adult Social Care,My Options,Employees,Agency Supply Costs,Safehands Recruitment,31/01/2022,1597.01
Adult Social Care,My Options,Employees,Agency Supply Costs,Safehands Recruitment,31/01/2022,375.1
Adult Social Care,My Options,Employees,Agency Supply Costs,Nurse Plus and Carer Plus (UK) Limited,31/01/2022,632.23
Adult Social Care,My Options,Employees,Agency Supply Costs,Safehands Recruitment,31/01/2022,528.78
Adult Social Care,My Options,Supplies & Services,Computer Software (Maint),Access UK Ltd,20/01/2022,644.4
Adult Social Care,My Options,Supplies & Services,Adult Flexi / Day Care,REDACTED PERSONAL INFORMATION,06/01/2022,207.36
Adult Social Care,My Options,Supplies & Services,Adult Flexi / Day Care,REDACTED PERSONAL INFORMATION,06/01/2022,259.2
Adult Social Care,My Options,Supplies & Services,Adult Flexi / Day Care,REDACTED PERSONAL INFORMATION,06/01/2022,518.4
Adult Social Care,My Options,Supplies & Services,Respite Care,REDACTED PERSONAL INFORMATION,06/01/2022,925.32
Adult Social Care,My Options,Supplies & Services,Respite Care,REDACTED PERSONAL INFORMATION,06/01/2022,792.4
Adult Social Care,My Options,Supplies & Services,Respite Care,REDACTED PERSONAL INFORMATION,06/01/2022,1372.28
Adult Social Care,My Options,Supplies & Services,Respite Care,REDACTED PERSONAL INFORMATION,06/01/2022,1151.48
Adult Social Care,My Options,Supplies & Services,Respite Care,REDACTED PERSONAL INFORMATION,06/01/2022,1531.48
Adult Social Care,My Options,Supplies & Services,Respite Care,REDACTED PERSONAL INFORMATION,20/01/2022,362.88
Adult Social Care,My Options,Supplies & Services,Respite Care,REDACTED PERSONAL INFORMATION,28/01/2022,362.88
Adult Social Care,My Options,Supplies & Services,Respite Care,REDACTED PERSONAL INFORMATION,28/01/2022,207.36
Adult Social Care,Prevention & Independence - Older Adults & Disability,Third Party Payments,Pathway 3 - Enablement Nursing,Rotherwood Healthcare (Roden Hall) Ltd,29/01/2022,-836.38
Adult Social Care,Prevention & Independence - Older Adults & Disability,Supplies & Services,Aids & Appliances,1st Call Mobility,13/01/2022,3565
Adult Social Care,Prevention & Independence - Older Adults & Disability,Supplies & Services,Aids & Appliances,1st Call Mobility,13/01/2022,3450
Adult Social Care,Prevention & Independence - Older Adults & Disability,Supplies & Services,Aids & Appliances,1st Call Mobility,13/01/2022,3565
Adult Social Care,Prevention & Independence - Older Adults & Disability,Transfer Payments,Non Traditional Care Packages,TAKING PART,13/01/2022,180
Adult Social Care,Prevention & Independence - Older Adults & Disability,Transfer Payments,Non Traditional Care Packages,TAKING PART,17/01/2022,405
Adult Social Care,Prevention & Independence - Older Adults & Disability,Transfer Payments,Non Traditional Care Packages,WHITEHOUSE HOTELS LTD,28/01/2022,635.56
Adult Social Care,Prevention & Independence - Older Adults & Disability,Transfer Payments,Non Traditional Care Packages,WHITEHOUSE HOTELS LTD,28/01/2022,1623.81
Adult Social Care,Prevention & Independence - Older Adults & Disability,Transfer Payments,Non Traditional Care Packages,POHWER,28/01/2022,179.11
Adult Social Care,Prevention & Independence - Older Adults & Disability,Supplies & Services,Aids & Appliances,Ravencourt Ltd,21/01/2022,5406
Adult Social Care,Prevention & Independence - Older Adults & Disability,Supplies & Services,Aids & Appliances,OSPREY HEALTHCARE LTD,04/01/2022,244
Adult Social Care,Prevention & Independence - Older Adults & Disability,Supplies & Services,Equipment - Repair,Closomat Limited,11/01/2022,190
Adult Social Care,Prevention & Independence - Older Adults & Disability,Supplies & Services,Equipment - Repair,Closomat Limited,11/01/2022,190
Adult Social Care,Prevention & Independence - Older Adults & Disability,Supplies & Services,Equipment - Repair,WESSEX LIFT CO. LTD,11/01/2022,7297
Adult Social Care,Prevention & Independence - Older Adults & Disability,Supplies & Services,Equipment - Repair,STANNAH LIFT SERVICES LTD,11/01/2022,246.99
Adult Social Care,Prevention & Independence - Older Adults & Disability,Supplies & Services,Equipment - Repair,WESSEX LIFT CO. LTD,11/01/2022,7297
Adult Social Care,Prevention & Independence - Older Adults & Disability,Supplies & Services,Equipment - Repair,STANNAH LIFT SERVICES LTD,14/01/2022,340.9
Adult Social Care,Prevention & Independence - Older Adults & Disability,Supplies & Services,Equipment - Repair,STANNAH LIFT SERVICES LTD,14/01/2022,466.66
Adult Social Care,Prevention & Independence - Older Adults & Disability,Supplies & Services,Aids & Appliances,OSPREY HEALTHCARE LTD,18/01/2022,640.2
Adult Social Care,Prevention & Independence - Older Adults & Disability,Supplies & Services,Aids & Appliances,HOSPITAL DIRECT (MARKETING) LTD,19/01/2022,175.2
Adult Social Care,Prevention & Independence - Older Adults & Disability,Supplies & Services,Aids & Appliances,OSPREY HEALTHCARE LTD,25/01/2022,226
Adult Social Care,Prevention & Independence - Older Adults & Disability,Supplies & Services,Aids & Appliances,PERFORMANCE HEALTH INTERNATIONAL LTD,25/01/2022,1608.9
Adult Social Care,Prevention & Independence - Older Adults & Disability,Supplies & Services,Equipment - Repair,STANNAH LIFT SERVICES LTD,28/01/2022,284.56
Adult Social Care,Prevention & Independence - Older Adults & Disability,Supplies & Services,Equipment - Repair,Astor Bannerman (Medical) Ltd,28/01/2022,452
Adult Social Care,Prevention & Independence - Older Adults & Disability,Supplies & Services,Equipment - Repair,STANNAH LIFT SERVICES LTD,28/01/2022,225
Adult Social Care,Prevention & Independence - Older Adults & Disability,Supplies & Services,Equipment - Repair,STANNAH LIFT SERVICES LTD,28/01/2022,466.66
Adult Social Care,Prevention & Independence - Older Adults & Disability,Supplies & Services,Equipment - Repair,STANNAH LIFT SERVICES LTD,28/01/2022,154.93
Adult Social Care,Prevention & Independence - Older Adults & Disability,Supplies & Services,Equipment - Repair,STANNAH LIFT SERVICES LTD,28/01/2022,210
Adult Social Care,Prevention & Independence - Older Adults & Disability,Supplies & Services,Equipment - Repair,STANNAH LIFT SERVICES LTD,28/01/2022,129.84
Adult Social Care,Prevention & Independence - Older Adults & Disability,Supplies & Services,Equipment - Repair,STANNAH LIFT SERVICES LTD,28/01/2022,224.39
Adult Social Care,Prevention & Independence - Older Adults & Disability,Supplies & Services,Equipment - Repair,STANNAH LIFT SERVICES LTD,28/01/2022,432.5
Adult Social Care,Prevention & Independence - Older Adults & Disability,Premises-Related Expenditure,Hire Of Rooms,BIRMINGHAM CITY COUNCIL,25/01/2022,3222
Children's Safeguarding,Child Protection & Family Support,contribution to provision,legal,HM Courts and Tribunal service,17/01/2022," 12,628.00 "
Children's Safeguarding & Family Support,Child Protection & Family Support,Third Party Payments,Interpreters Fees,EXPRESS INTERPRETING & TRANSLATION,06/01/2022,4139.62
Children's Safeguarding & Family Support,Child Protection & Family Support,Third Party Payments,Interpreters Fees,AEXPRESS INTERPRETING & TRANSLATION,20/01/2022,1974.77
Children's Safeguarding & Family Support,Child Protection & Family Support,Transport-Related Expenditure,Taxi Costs,NEWPORT GIRLS HIGH SCHOOL ACADEMY TRUST,11/01/2022,148
Children's Safeguarding & Family Support,Child Protection & Family Support,Transport-Related Expenditure,Taxi Costs,Go Carz,11/01/2022,365.4
Children's Safeguarding & Family Support,Child Protection & Family Support,Supplies & Services,Comp Software (Purch / Hire),PHOENIX SOFTWARE LTD,06/01/2022,224.58
Children's Safeguarding & Family Support,Family Connect & Childrens Centres,Premises-Related Expenditure,Hire Of Rooms,Sutton Hill Community Trust,13/01/2022,130.5
Children's Safeguarding & Family Support,Family Connect & Childrens Centres,Premises-Related Expenditure,R&M -Building Other,Ener-g Combined Power Ltd,13/01/2022,314.06
Children's Safeguarding & Family Support,Family Connect & Childrens Centres,Premises-Related Expenditure,R&M -Building Other,Churches Fire Security Ltd,26/01/2022,390
Children's Safeguarding & Family Support,Family Connect & Childrens Centres,Supplies & Services,Equipment - Purchase,EMERGE DESIGN LTD,13/01/2022,256.3
Children's Safeguarding & Family Support,Family Connect & Childrens Centres,Supplies & Services,Administrative/Office Supplies,Kings of the Road,13/01/2022,375
Children's Safeguarding & Family Support,Family Connect & Childrens Centres,Supplies & Services,Equipment - Purchase,BACK CARE SOLUTIONS LTD,12/01/2022,214.94
Children's Safeguarding & Family Support,Family Connect & Childrens Centres,Supplies & Services,Equipment - Purchase,CHRISBEON OFFICE SUPPLIES,12/01/2022,339
Children's Safeguarding & Family Support,Family Connect & Childrens Centres,Supplies & Services,Administrative/Office Supplies,IRONBRIDGE GORGE MUSEUM TRUST LTD,18/01/2022,300
Children's Safeguarding & Family Support,Family Connect & Childrens Centres,Supplies & Services,Other Services,GRANVILLE CONSTRUCTION & MAINTENANCE LTD,09/01/2022,199
Children's Safeguarding & Family Support,Family Connect & Childrens Centres,Supplies & Services,Administrative/Office Supplies,IRONBRIDGE GORGE MUSEUM TRUST LTD,18/01/2022,300
Children's Safeguarding & Family Support,"Family Placements, Children in Care, Leaving Care & Emergency Duty Team",Supplies & Services,Aids & Appliances,Jiraffe,13/01/2022,1126
Children's Safeguarding & Family Support,"Family Placements, Children in Care, Leaving Care & Emergency Duty Team",Supplies & Services,Aids & Appliances,Specialised Orthotic Services Ltd,13/01/2022,1474.11
Children's Safeguarding & Family Support,"Family Placements, Children in Care, Leaving Care & Emergency Duty Team",Supplies & Services,Aids & Appliances,MIDSHIRES MOBILITY GROUP,21/01/2022,2560.25
Children's Safeguarding & Family Support,"Family Placements, Children in Care, Leaving Care & Emergency Duty Team",Supplies & Services,Aids & Appliances,MIDSHIRES MOBILITY GROUP,21/01/2022,2441
Children's Safeguarding & Family Support,"Family Placements, Children in Care, Leaving Care & Emergency Duty Team",Supplies & Services,Equipment - Purchase,MIDSHIRES MOBILITY GROUP,25/01/2022,130.25
Children's Safeguarding & Family Support,"Family Placements, Children in Care, Leaving Care & Emergency Duty Team",Third Party Payments,Childminders,K Kids Nursery Ltd,11/01/2022,463.25
Children's Safeguarding & Family Support,"Family Placements, Children in Care, Leaving Care & Emergency Duty Team",Third Party Payments,Childminders,K Kids Nursery Ltd,11/01/2022,463.25
Children's Safeguarding & Family Support,"Family Placements, Children in Care, Leaving Care & Emergency Duty Team",Employees,Staff Training, Leaving Care Training & Consultancy Service,10/01/2022,2131.07
Children's Safeguarding & Family Support,"Family Placements, Children in Care, Leaving Care & Emergency Duty Team",Premises-Related Expenditure,Hire Of Rooms,MEETING POINT TRUST LTD,10/01/2022,135.56
Children's Safeguarding & Family Support,"Family Placements, Children in Care, Leaving Care & Emergency Duty Team",Transport-Related Expenditure,Outside Hire,Innosil (UK) Limited,14/01/2022,1700
Children's Safeguarding & Family Support,"Family Placements, Children in Care, Leaving Care & Emergency Duty Team",Supplies & Services,Comp Software (Purch / Hire),PHOENIX SOFTWARE LTD,06/01/2022,343.84
Children's Safeguarding & Family Support,"Family Placements, Children in Care, Leaving Care & Emergency Duty Team",Supplies & Services,Doctors Fees,COURT STREET MEDICAL PRACTICE,20/01/2022,168
Children's Safeguarding & Family Support,"Family Placements, Children in Care, Leaving Care & Emergency Duty Team",Supplies & Services,Medical Consultants Fees,C Children's Legal Centre,25/01/2022,2591
Children's Safeguarding & Family Support,"Family Placements, Children in Care, Leaving Care & Emergency Duty Team",Employees,Staff Training,SHROPSHIRE COUNCIL ,19/01/2022,400
Children's Safeguarding & Family Support,"Family Placements, Children in Care, Leaving Care & Emergency Duty Team",Employees,Staff Training,Creative Training Spaces,25/01/2022,630
Children's Safeguarding & Family Support,"Family Placements, Children in Care, Leaving Care & Emergency Duty Team",Supplies & Services,Conference Expenses,PUBLIC POLICY EXCHANGE LIMITED,06/01/2022,178
Children's Safeguarding & Family Support,"Family Placements, Children in Care, Leaving Care & Emergency Duty Team",Supplies & Services,Form F Assessments,Kite Fostering Consultancy Ltd,06/01/2022,2045.9
Children's Safeguarding & Family Support,"Family Placements, Children in Care, Leaving Care & Emergency Duty Team",Supplies & Services,Advertising,Global Radio Services Limited,06/01/2022,3000
Children's Safeguarding & Family Support,"Family Placements, Children in Care, Leaving Care & Emergency Duty Team",Supplies & Services,Other Services,Share Foundation,11/01/2022,748.31
Children's Safeguarding & Family Support,"Family Placements, Children in Care, Leaving Care & Emergency Duty Team",Supplies & Services,Advertising,Global Radio Services Limited,19/01/2022,3000
Children's Safeguarding & Family Support,"Family Placements, Children in Care, Leaving Care & Emergency Duty Team",Supplies & Services,Advertising,Global Radio Services Limited,19/01/2022,3000
Children's Safeguarding & Family Support,"Family Placements, Children in Care, Leaving Care & Emergency Duty Team",Supplies & Services,Doctors Fees,Wem & Prees Medical Practice,20/01/2022,125
Children's Safeguarding & Family Support,"Family Placements, Children in Care, Leaving Care & Emergency Duty Team",Supplies & Services,Doctors Fees,Wem & Prees Medical Practice,26/01/2022,125
Children's Safeguarding & Family Support,"Family Placements, Children in Care, Leaving Care & Emergency Duty Team",Supplies & Services,Other Services,Share Foundation,26/01/2022,1755.09
Children's Safeguarding & Family Support,"Family Placements, Children in Care, Leaving Care & Emergency Duty Team",Supplies & Services,Other Services,REDACTED PERSONAL INFORMATION,28/01/2022,159
Children's Safeguarding & Family Support,"Family Placements, Children in Care, Leaving Care & Emergency Duty Team",Supplies & Services,Doctors Fees,DONNINGTON MEDICAL PRACTICE,31/01/2022,181
Children's Safeguarding & Family Support,"Family Placements, Children in Care, Leaving Care & Emergency Duty Team",Supplies & Services,Doctors Fees,DONNINGTON MEDICAL PRACTICE,31/01/2022,181
Children's Safeguarding & Family Support,"Family Placements, Children in Care, Leaving Care & Emergency Duty Team",Third Party Payments,Residential Expenditure,Cedar House School,04/01/2022,37726.33
Children's Safeguarding & Family Support,Safeguarding Advisory,Transport-Related Expenditure,Taxi Costs,24X7 Ltd,13/01/2022,1877.04
Children's Safeguarding & Family Support,Safeguarding Advisory,Supplies & Services,Publications,Mercure Telford Centre Hotel,17/01/2022,465
Children's Safeguarding & Family Support,Safeguarding Advisory,Supplies & Services,Comp Software (Purch / Hire),PHOENIX SOFTWARE LTD,26/01/2022,120
Children's Safeguarding & Family Support,Safeguarding Advisory,Employees,Recruitment Advertising,Talos 360 Ltd,12/01/2022,4950
Children's Safeguarding & Family Support,Safeguarding Advisory,Supplies & Services,Comp Hardware (Purch / Hire),PHOENIX SOFTWARE LTD,06/01/2022,1333.5
Children's Safeguarding & Family Support,Safeguarding Advisory,Supplies & Services,Conference Expenses,Compass Career Opportunities Ltd,12/01/2022,6480
"Communities, Customer & Commercial Services",Community Services,Supplies & Services,Grants To Voluntary Organis,Telford and Wrekin Interfaith Council,07/01/2022,5000
"Communities, Customer & Commercial Services",Community Services,Supplies & Services,Grants To Voluntary Organis,Telford and Wrekin Interfaith Council,12/01/2022,5000
"Communities, Customer & Commercial Services",Community Services,Premises-Related Expenditure,Hire Of Rooms,The Leegate Centre CIC,14/01/2022,110
"Communities, Customer & Commercial Services",Community Services,Supplies & Services,Equipment - Purchase,BS Polythene Ltd,19/01/2022,3425.63
"Communities, Customer & Commercial Services",Community Services,Supplies & Services,Grants To Voluntary Organis,BROMFORD HOUSING ASSOCIATION LIMITED,05/01/2022,200
"Communities, Customer & Commercial Services",Community Services,Supplies & Services,Grants To Voluntary Organis,DONNINGTON PARTNERSHIP,05/01/2022,1500
"Communities, Customer & Commercial Services",Community Services,Supplies & Services,Grants To Voluntary Organis,Sutton Hill Community Trust,07/01/2022,5500
"Communities, Customer & Commercial Services",Community Services,Supplies & Services,Grants To Voluntary Organis,WROCKWARDINE PARISH COUNCIL,10/01/2022,500
"Communities, Customer & Commercial Services",Community Services,Supplies & Services,Grants To Voluntary Organis,WROCKWARDINE WOOD & TRENCH PC ,13/01/2022,2000
"Communities, Customer & Commercial Services",Community Services,Supplies & Services,Grants To Voluntary Organis,STIRCHLEY & BROOKSIDE PARISH COUNCIL,18/01/2022,500
"Communities, Customer & Commercial Services",Community Services,Supplies & Services,Grants To Voluntary Organis,DONNINGTON & MUXTON PARISH COUNCIL,21/01/2022,1500
"Communities, Customer & Commercial Services",Community Services,Supplies & Services,Grants To Voluntary Organis,DONNINGTON & MUXTON PARISH COUNCIL,21/01/2022,2000
"Communities, Customer & Commercial Services",Community Services,Supplies & Services,Grants To Voluntary Organis,DONNINGTON & MUXTON PARISH COUNCIL,21/01/2022,1500
"Communities, Customer & Commercial Services",Community Services,Supplies & Services,Grants To Voluntary Organis,DONNINGTON & MUXTON PARISH COUNCIL,21/01/2022,500
"Communities, Customer & Commercial Services",Community Services,Supplies & Services,Grants To Voluntary Organis,LEEGOMERY UNDER 5'S PLAYGROUP,21/01/2022,1000
"Communities, Customer & Commercial Services",Community Services,Supplies & Services,Grants To Voluntary Organis,CHETWYND ASTON & WOODCOTE P.C ,21/01/2022,825
"Communities, Customer & Commercial Services",Community Services,Supplies & Services,Grants To Voluntary Organis,CHURCH ASTON PARISH COUNCIL ,21/01/2022,211
"Communities, Customer & Commercial Services",Community Services,Supplies & Services,Grants To Voluntary Organis,PARK LANE CENTRE,25/01/2022,1086
"Communities, Customer & Commercial Services",Community Services,Supplies & Services,Grants To Voluntary Organis,PARK LANE CENTRE,25/01/2022,500
"Communities, Customer & Commercial Services",Community Services,Supplies & Services,Grants To Voluntary Organis,Telford and Wrekin Interfaith Council,25/01/2022,750
"Communities, Customer & Commercial Services",Community Services,Supplies & Services,Grants To Voluntary Organis,TELFORD CHRISTIAN COUNCIL SUPPORTED HOUS,27/01/2022,500
"Communities, Customer & Commercial Services",Community Services,Supplies & Services,Grants To Voluntary Organis,LAWLEY & OVERDALE PARISH COUNCIL,27/01/2022,2000
"Communities, Customer & Commercial Services",Community Services,Supplies & Services,Grants To Voluntary Organis,LAWLEY & OVERDALE PARISH COUNCIL,27/01/2022,500
"Communities, Customer & Commercial Services",Community Services,Supplies & Services,Grants To Voluntary Organis,MADELEY PARISH COUNCIL,28/01/2022,2000
"Communities, Customer & Commercial Services",Community Services,Premises-Related Expenditure,Electricity,West Mercia Energy (WME),26/01/2022,139.33
"Communities, Customer & Commercial Services",Community Services,Supplies & Services,Other Services,IZEN Energy Systems,06/01/2022,13975.45
"Communities, Customer & Commercial Services",Community Services,Supplies & Services,Other Services,IZEN Energy Systems,06/01/2022,13975.45
"Communities, Customer & Commercial Services",Community Services,Capital Expenditure,Expenditure on loans & other financial assistance,Dawley Baptist Church,31/01/2022,10000
"Communities, Customer & Commercial Services",Community Services,Capital Expenditure,Expenditure on loans & other financial assistance,THE SMALL WOODS ASSOCIATION,07/01/2022,5000
"Communities, Customer & Commercial Services",Community Services,Capital Expenditure,Other Capital Expenditure,SHROPSHIRE TROPHY AND BOWLING CENTRE,19/01/2022,1163
"Communities, Customer & Commercial Services",Culture & Events,Supplies & Services,Web Services, Simpleview Europe,19/01/2022,11071
"Communities, Customer & Commercial Services",Culture & Events,Supplies & Services,Marketing & Publicity,Mid Wales Sign and Print Ltd,10/01/2022,6902
"Communities, Customer & Commercial Services",Culture & Events,Supplies & Services,Furniture - Purchase,Bates Office Services Ltd,11/01/2022,480
"Communities, Customer & Commercial Services",Culture & Events,Supplies & Services,Furniture - Purchase,Bates Office Services Ltd,11/01/2022,-480
"Communities, Customer & Commercial Services",Culture & Events,Supplies & Services,Advertising,WHATS ON MAGAZINES LTD,11/01/2022,275
"Communities, Customer & Commercial Services",Culture & Events,Supplies & Services,Advertising,ClearChannel Outdoor,11/01/2022,1310
"Communities, Customer & Commercial Services",Culture & Events,Supplies & Services,Promotion Expenses,Ticketplan Limited,12/01/2022,1611.16
"Communities, Customer & Commercial Services",Culture & Events,Supplies & Services,Promotion Expenses,crowdEngage Limited,14/01/2022,453.16
"Communities, Customer & Commercial Services",Culture & Events,Supplies & Services,Promotion Expenses,Sure Digital Limited,14/01/2022,2286
"Communities, Customer & Commercial Services",Culture & Events,Supplies & Services,Advertising,THE MIDLAND NEWS ASSOCIATION LTD,14/01/2022,2299.97
"Communities, Customer & Commercial Services",Culture & Events,Supplies & Services,Advertising,Global Radio Services Limited,14/01/2022,675
"Communities, Customer & Commercial Services",Culture & Events,Supplies & Services,Promotion Expenses,Spektrix Limited,18/01/2022,3622.84
"Communities, Customer & Commercial Services",Culture & Events,Supplies & Services,Advertising,VISS Sign Language Interpreting Service,18/01/2022,475
"Communities, Customer & Commercial Services",Culture & Events,Supplies & Services,Furniture - Purchase,AUDIENCE SYSTEMS LTD,19/01/2022,65000
"Communities, Customer & Commercial Services",Culture & Events,Supplies & Services,Furniture - Purchase,AUDIENCE SYSTEMS LTD,19/01/2022,-65000
"Communities, Customer & Commercial Services",Culture & Events,Supplies & Services,Aids & Appliances,AceOn Group,20/01/2022,250
"Communities, Customer & Commercial Services",Culture & Events,Supplies & Services,Promotion Expenses,DLM DIRECT LETTERBOX MARKETING,20/01/2022,1063.81
"Communities, Customer & Commercial Services",Culture & Events,Supplies & Services,Promotion Expenses,Sure Digital Limited,20/01/2022,624
"Communities, Customer & Commercial Services",Culture & Events,Supplies & Services,Promotion Expenses,Shropshire Festivals Limited,20/01/2022,225
"Communities, Customer & Commercial Services",Culture & Events,Supplies & Services,Promotion Expenses,Ticketplan Limited,31/01/2022,1624.44
"Communities, Customer & Commercial Services",Culture & Events,Supplies & Services,Artistes Fees,Nicoll Ltd,04/01/2022,117
"Communities, Customer & Commercial Services",Culture & Events,Supplies & Services,Artistes Fees,Nicoll Ltd,04/01/2022,775
"Communities, Customer & Commercial Services",Culture & Events,Supplies & Services,Artistes Fees,Nicoll Ltd,04/01/2022,-174.5
"Communities, Customer & Commercial Services",Culture & Events,Supplies & Services,Artistes Fees,THE CIRCUS OF HORRORS LTD,06/01/2022,4545.19
"Communities, Customer & Commercial Services",Culture & Events,Supplies & Services,Artistes Fees,Bound And Gagged Limited,14/01/2022,3419.64
"Communities, Customer & Commercial Services",Culture & Events,Supplies & Services,Artistes Fees,Ellis Live Ltd,14/01/2022,4608.76
"Communities, Customer & Commercial Services",Culture & Events,Supplies & Services,Items For Resale,Kitform Promotional Products Ltd,21/01/2022,1000
"Communities, Customer & Commercial Services",Culture & Events,Supplies & Services,Artistes Fees,ARTISTES INTERNATIONAL MANAGEMENT,26/01/2022,3902.01
"Communities, Customer & Commercial Services",Culture & Events,Supplies & Services,Artistes Fees,MLM Concerts Limited,26/01/2022,1933.43
"Communities, Customer & Commercial Services",Culture & Events,Supplies & Services,Artistes Fees,Shones Productions Limited,28/01/2022,9230
"Communities, Customer & Commercial Services",Culture & Events,Supplies & Services,Artistes Fees,Shones Productions Limited,28/01/2022,22478.45
"Communities, Customer & Commercial Services",Culture & Events,Supplies & Services,Artistes Fees,Shones Productions Limited,28/01/2022,40748.8
"Communities, Customer & Commercial Services",Culture & Events,Supplies & Services,Wet Resale Provision,MOLSON COORS BREWING COMPANY UK LTD,17/01/2022,198.33
"Communities, Customer & Commercial Services",Culture & Events,Supplies & Services,Wet Resale Provision,MOLSON COORS BREWING COMPANY UK LTD,17/01/2022,237.76
"Communities, Customer & Commercial Services",Culture & Events,Supplies & Services,Wet Resale Provision,MOLSON COORS BREWING COMPANY UK LTD,17/01/2022,178.32
"Communities, Customer & Commercial Services",Culture & Events,Supplies & Services,Wet Resale Provision,MOLSON COORS BREWING COMPANY UK LTD,19/01/2022,201.52
"Communities, Customer & Commercial Services",Culture & Events,Supplies & Services,Wet Resale Provision,MOLSON COORS BREWING COMPANY UK LTD,19/01/2022,171.08
"Communities, Customer & Commercial Services",Culture & Events,Supplies & Services,Wet Resale Provision,MOLSON COORS BREWING COMPANY UK LTD,27/01/2022,171.08
"Communities, Customer & Commercial Services",Culture & Events,Supplies & Services,Wet Resale Provision,MOLSON COORS BREWING COMPANY UK LTD,27/01/2022,242.34
"Communities, Customer & Commercial Services",Culture & Events,Supplies & Services,Wet Resale Provision,MOLSON COORS BREWING COMPANY UK LTD,27/01/2022,118.88
"Communities, Customer & Commercial Services",Culture & Events,Supplies & Services,Wet Resale Provision,MOLSON COORS BREWING COMPANY UK LTD,27/01/2022,201.52
"Communities, Customer & Commercial Services",Culture & Events,Supplies & Services,Wet Resale Provision,MOLSON COORS BREWING COMPANY UK LTD,27/01/2022,102.46
"Communities, Customer & Commercial Services",Culture & Events,Supplies & Services,Wet Resale Provision,RSD Dispense,31/01/2022,242.1
"Communities, Customer & Commercial Services",Culture & Events,Supplies & Services,Wet Resale Provision,MOLSON COORS BREWING COMPANY UK LTD,12/01/2022,302.28
"Communities, Customer & Commercial Services",Culture & Events,Supplies & Services,Wet Resale Provision,MOLSON COORS BREWING COMPANY UK LTD,12/01/2022,204.92
"Communities, Customer & Commercial Services",Culture & Events,Supplies & Services,Wet Resale Provision,MOLSON COORS BREWING COMPANY UK LTD,12/01/2022,171.08
"Communities, Customer & Commercial Services",Culture & Events,Supplies & Services,Wet Resale Provision,MOLSON COORS BREWING COMPANY UK LTD,17/01/2022,100.76
"Communities, Customer & Commercial Services",Culture & Events,Supplies & Services,Wet Resale Provision,MOLSON COORS BREWING COMPANY UK LTD,27/01/2022,102.46
"Communities, Customer & Commercial Services",Culture & Events,Supplies & Services,Wet Resale Provision,MOLSON COORS BREWING COMPANY UK LTD,27/01/2022,199.92
"Communities, Customer & Commercial Services",Culture & Events,Supplies & Services,Wet Resale Provision,MOLSON COORS BREWING COMPANY UK LTD,27/01/2022,185.12
"Communities, Customer & Commercial Services",Culture & Events,Supplies & Services,Wet Resale Provision,MOLSON COORS BREWING COMPANY UK LTD,27/01/2022,201.52
"Communities, Customer & Commercial Services",Culture & Events,Supplies & Services,Comp Hardware (Purch / Hire),CCS MEDIA LIMITED,06/01/2022,177
"Communities, Customer & Commercial Services",Culture & Events,Supplies & Services,Confectionery & Snacks,Eden Farm Hulleys,07/01/2022,132.3
"Communities, Customer & Commercial Services",Culture & Events,Supplies & Services,Confectionery & Snacks,Eden Farm Hulleys,07/01/2022,447.3
"Communities, Customer & Commercial Services",Culture & Events,Supplies & Services,Wet Resale Provision,MOLSON COORS BREWING COMPANY UK LTD,17/01/2022,403.04
"Communities, Customer & Commercial Services",Culture & Events,Supplies & Services,Wet Resale Provision,MOLSON COORS BREWING COMPANY UK LTD,17/01/2022,224.91
"Communities, Customer & Commercial Services",Culture & Events,Supplies & Services,Wet Resale Provision,MOLSON COORS BREWING COMPANY UK LTD,17/01/2022,403.04
"Communities, Customer & Commercial Services",Culture & Events,Supplies & Services,Wet Resale Provision,MOLSON COORS BREWING COMPANY UK LTD,17/01/2022,149.85
"Communities, Customer & Commercial Services",Culture & Events,Supplies & Services,Confectionery & Snacks,MOLSON COORS BREWING COMPANY UK LTD,17/01/2022,126.5
"Communities, Customer & Commercial Services",Culture & Events,Supplies & Services,Wet Resale Provision,MOLSON COORS BREWING COMPANY UK LTD,17/01/2022,201.52
"Communities, Customer & Commercial Services",Culture & Events,Supplies & Services,Wet Resale Provision,MOLSON COORS BREWING COMPANY UK LTD,17/01/2022,204.92
"Communities, Customer & Commercial Services",Culture & Events,Supplies & Services,Wet Resale Provision,MOLSON COORS BREWING COMPANY UK LTD,17/01/2022,249.9
"Communities, Customer & Commercial Services",Culture & Events,Supplies & Services,Wet Resale Provision,MOLSON COORS BREWING COMPANY UK LTD,17/01/2022,403.04
"Communities, Customer & Commercial Services",Culture & Events,Supplies & Services,Wet Resale Provision,MOLSON COORS BREWING COMPANY UK LTD,17/01/2022,237.76
"Communities, Customer & Commercial Services",Culture & Events,Supplies & Services,Wet Resale Provision,MOLSON COORS BREWING COMPANY UK LTD,17/01/2022,108.12
"Communities, Customer & Commercial Services",Culture & Events,Supplies & Services,Equipment - Purchase,PROKILL UK LIMITED,18/01/2022,159.6
"Communities, Customer & Commercial Services",Culture & Events,Supplies & Services,Confectionery & Snacks,Eden Farm Hulleys,19/01/2022,365.4
"Communities, Customer & Commercial Services",Culture & Events,Supplies & Services,Confectionery & Snacks,Eden Farm Hulleys,19/01/2022,105.2
"Communities, Customer & Commercial Services",Culture & Events,Supplies & Services,Confectionery & Snacks,Eden Farm Hulleys,19/01/2022,403.2
"Communities, Customer & Commercial Services",Culture & Events,Supplies & Services,Wet Resale Provision,MOLSON COORS BREWING COMPANY UK LTD,19/01/2022,604.56
"Communities, Customer & Commercial Services",Culture & Events,Supplies & Services,Wet Resale Provision,MOLSON COORS BREWING COMPANY UK LTD,19/01/2022,147.7
"Communities, Customer & Commercial Services",Culture & Events,Supplies & Services,Wet Resale Provision,MOLSON COORS BREWING COMPANY UK LTD,19/01/2022,177
"Communities, Customer & Commercial Services",Culture & Events,Supplies & Services,Wet Resale Provision,MOLSON COORS BREWING COMPANY UK LTD,19/01/2022,237.76
"Communities, Customer & Commercial Services",Culture & Events,Supplies & Services,Confectionery & Snacks,BIKOLD,19/01/2022,205.85
"Communities, Customer & Commercial Services",Culture & Events,Supplies & Services,Confectionery & Snacks,BIKOLD,19/01/2022,129.7
"Communities, Customer & Commercial Services",Culture & Events,Supplies & Services,Confectionery & Snacks,BIKOLD,20/01/2022,349.5
"Communities, Customer & Commercial Services",Culture & Events,Supplies & Services,Wet Resale Provision,BIKOLD,20/01/2022,293.42
"Communities, Customer & Commercial Services",Culture & Events,Supplies & Services,Confectionery & Snacks,BIKOLD,27/01/2022,272.8
"Communities, Customer & Commercial Services",Culture & Events,Supplies & Services,Crockery/Hardware/Light Equip,Bratby Gases,28/01/2022,120
"Communities, Customer & Commercial Services",Culture & Events,Premises-Related Expenditure,General Rents,Blachere Illumination UK Ltd,28/01/2022,2100
"Communities, Customer & Commercial Services",Culture & Events,Premises-Related Expenditure,General Rents,Blachere Illumination UK Ltd,28/01/2022,572
"Communities, Customer & Commercial Services",Culture & Events,Supplies & Services,Equipment - Hire,British Bike Hire,25/01/2022,170
"Communities, Customer & Commercial Services",Culture & Events,Supplies & Services,Equipment - Hire, TELFORD TOILET HIRE,25/01/2022,163
"Communities, Customer & Commercial Services",Culture & Events,Supplies & Services,Equipment - Hire,Press Red Rentals Limited,27/01/2022,1593
"Communities, Customer & Commercial Services",Culture & Events,Supplies & Services,Artistes Fees,The Severn Sign & Print Company Ltd,28/01/2022,320
"Communities, Customer & Commercial Services",Customer Relationships & Welfare Services,Supplies & Services,Other Grants (Expenses),Hawk Incentives Ltd ,18/01/2022,4936
"Communities, Customer & Commercial Services",Customer Relationships & Welfare Services,Transfer Payments,Crisis Assistance Awards,PayPoint Network Limited,05/01/2022,735
"Communities, Customer & Commercial Services",Customer Relationships & Welfare Services,Transfer Payments,Crisis Assistance Awards,PayPoint Network Limited,05/01/2022,932
"Communities, Customer & Commercial Services",Customer Relationships & Welfare Services,Transfer Payments,Crisis Assistance Awards,PayPoint Network Limited,13/01/2022,1127
"Communities, Customer & Commercial Services",Customer Relationships & Welfare Services,Transfer Payments,Crisis Assistance Awards,PayPoint Network Limited,21/01/2022,1127
"Communities, Customer & Commercial Services",Customer Relationships & Welfare Services,Supplies & Services,Comp Software (Purch / Hire),NEC Software Solutions UK Ltd,04/01/2022,825.01
"Communities, Customer & Commercial Services",Customer Relationships & Welfare Services,Supplies & Services,Printing - Other,Financial Data Management plc,17/01/2022,159.9
"Communities, Customer & Commercial Services",Customer Relationships & Welfare Services,Supplies & Services,Postages,Financial Data Management plc,19/01/2022,101.32
"Communities, Customer & Commercial Services",Customer Relationships & Welfare Services,Supplies & Services,Permit Production - Blue Badge,Valtech Limited,12/01/2022,363.95
"Communities, Customer & Commercial Services",Customer Relationships & Welfare Services,Supplies & Services,Permit Production - Blue Badge,APS Group,13/01/2022,688.04
"Communities, Customer & Commercial Services",Customer Relationships & Welfare Services,Supplies & Services,Bus Pass Production,Unicard Ltd,14/01/2022,515.24
"Communities, Customer & Commercial Services",Customer Relationships & Welfare Services,Supplies & Services,Fees,PayPoint Network Ltd ,14/01/2022,145.92
"Communities, Customer & Commercial Services",Customer Relationships & Welfare Services,Supplies & Services,Bus Pass Production,Euclid Limited,19/01/2022,778.94
"Communities, Customer & Commercial Services",Customer Relationships & Welfare Services,Transfer Payments,Crisis Assistance Awards,A W HOLDINGS,04/01/2022,478
"Communities, Customer & Commercial Services",Customer Relationships & Welfare Services,Transfer Payments,Crisis Assistance Awards,Self Isolation Grant,05/01/2022,500
"Communities, Customer & Commercial Services",Customer Relationships & Welfare Services,Transfer Payments,Crisis Assistance Awards,Self Isolation Grant,05/01/2022,500
"Communities, Customer & Commercial Services",Customer Relationships & Welfare Services,Transfer Payments,Crisis Assistance Awards,Self Isolation Grant,05/01/2022,500
"Communities, Customer & Commercial Services",Customer Relationships & Welfare Services,Transfer Payments,Crisis Assistance Awards,Self Isolation Grant,05/01/2022,500
"Communities, Customer & Commercial Services",Customer Relationships & Welfare Services,Transfer Payments,Crisis Assistance Awards,Self Isolation Grant,05/01/2022,500
"Communities, Customer & Commercial Services",Customer Relationships & Welfare Services,Transfer Payments,Crisis Assistance Awards,Self Isolation Grant,05/01/2022,500
"Communities, Customer & Commercial Services",Customer Relationships & Welfare Services,Transfer Payments,Crisis Assistance Awards,Self Isolation Grant,05/01/2022,500
"Communities, Customer & Commercial Services",Customer Relationships & Welfare Services,Transfer Payments,Crisis Assistance Awards,Self Isolation Grant,05/01/2022,500
"Communities, Customer & Commercial Services",Customer Relationships & Welfare Services,Transfer Payments,Crisis Assistance Awards,Self Isolation Grant,05/01/2022,500
"Communities, Customer & Commercial Services",Customer Relationships & Welfare Services,Transfer Payments,Crisis Assistance Awards,Self Isolation Grant,05/01/2022,500
"Communities, Customer & Commercial Services",Customer Relationships & Welfare Services,Transfer Payments,Crisis Assistance Awards,Self Isolation Grant,05/01/2022,500
"Communities, Customer & Commercial Services",Customer Relationships & Welfare Services,Transfer Payments,Crisis Assistance Awards,Self Isolation Grant,05/01/2022,500
"Communities, Customer & Commercial Services",Customer Relationships & Welfare Services,Transfer Payments,Crisis Assistance Awards,Self Isolation Grant,05/01/2022,500
"Communities, Customer & Commercial Services",Customer Relationships & Welfare Services,Transfer Payments,Crisis Assistance Awards,PayPoint Network Limited,05/01/2022,640
"Communities, Customer & Commercial Services",Customer Relationships & Welfare Services,Transfer Payments,Crisis Assistance Awards,PayPoint Network Limited,05/01/2022,265
"Communities, Customer & Commercial Services",Customer Relationships & Welfare Services,Transfer Payments,Crisis Assistance Awards,Self Isolation Grant,05/01/2022,500
"Communities, Customer & Commercial Services",Customer Relationships & Welfare Services,Transfer Payments,Crisis Assistance Awards,Self Isolation Grant,05/01/2022,500
"Communities, Customer & Commercial Services",Customer Relationships & Welfare Services,Transfer Payments,Crisis Assistance Awards,Self Isolation Grant,05/01/2022,500
"Communities, Customer & Commercial Services",Customer Relationships & Welfare Services,Transfer Payments,Crisis Assistance Awards,Self Isolation Grant,05/01/2022,500
"Communities, Customer & Commercial Services",Customer Relationships & Welfare Services,Transfer Payments,Crisis Assistance Awards,Self Isolation Grant,06/01/2022,500
"Communities, Customer & Commercial Services",Customer Relationships & Welfare Services,Transfer Payments,Crisis Assistance Awards,Self Isolation Grant,06/01/2022,500
"Communities, Customer & Commercial Services",Customer Relationships & Welfare Services,Transfer Payments,Crisis Assistance Awards,Self Isolation Grant,06/01/2022,500
"Communities, Customer & Commercial Services",Customer Relationships & Welfare Services,Transfer Payments,Crisis Assistance Awards,Self Isolation Grant,06/01/2022,500
"Communities, Customer & Commercial Services",Customer Relationships & Welfare Services,Transfer Payments,Crisis Assistance Awards,Self Isolation Grant,06/01/2022,500
"Communities, Customer & Commercial Services",Customer Relationships & Welfare Services,Transfer Payments,Crisis Assistance Awards,Self Isolation Grant,06/01/2022,500
"Communities, Customer & Commercial Services",Customer Relationships & Welfare Services,Transfer Payments,Crisis Assistance Awards,Self Isolation Grant,06/01/2022,500
"Communities, Customer & Commercial Services",Customer Relationships & Welfare Services,Transfer Payments,Crisis Assistance Awards,Self Isolation Grant,07/01/2022,500
"Communities, Customer & Commercial Services",Customer Relationships & Welfare Services,Transfer Payments,Crisis Assistance Awards,Self Isolation Grant,07/01/2022,500
"Communities, Customer & Commercial Services",Customer Relationships & Welfare Services,Transfer Payments,Crisis Assistance Awards,Kings of the Road,07/01/2022,475
"Communities, Customer & Commercial Services",Customer Relationships & Welfare Services,Transfer Payments,Crisis Assistance Awards,Self Isolation Grant,10/01/2022,500
"Communities, Customer & Commercial Services",Customer Relationships & Welfare Services,Transfer Payments,Crisis Assistance Awards,Self Isolation Grant,10/01/2022,500
"Communities, Customer & Commercial Services",Customer Relationships & Welfare Services,Transfer Payments,Crisis Assistance Awards,Self Isolation Grant,10/01/2022,500
"Communities, Customer & Commercial Services",Customer Relationships & Welfare Services,Transfer Payments,Crisis Assistance Awards,Self Isolation Grant,10/01/2022,500
"Communities, Customer & Commercial Services",Customer Relationships & Welfare Services,Transfer Payments,Crisis Assistance Awards,A W HOLDINGS,10/01/2022,478
"Communities, Customer & Commercial Services",Customer Relationships & Welfare Services,Transfer Payments,Crisis Assistance Awards,PayPoint Network Limited,10/01/2022,230
"Communities, Customer & Commercial Services",Customer Relationships & Welfare Services,Transfer Payments,Crisis Assistance Awards,Self Isolation Grant,12/01/2022,500
"Communities, Customer & Commercial Services",Customer Relationships & Welfare Services,Transfer Payments,Crisis Assistance Awards,Self Isolation Grant,12/01/2022,500
"Communities, Customer & Commercial Services",Customer Relationships & Welfare Services,Transfer Payments,Crisis Assistance Awards,Self Isolation Grant,12/01/2022,500
"Communities, Customer & Commercial Services",Customer Relationships & Welfare Services,Transfer Payments,Crisis Assistance Awards,Self Isolation Grant,12/01/2022,500
"Communities, Customer & Commercial Services",Customer Relationships & Welfare Services,Transfer Payments,Crisis Assistance Awards,Self Isolation Grant,12/01/2022,500
"Communities, Customer & Commercial Services",Customer Relationships & Welfare Services,Transfer Payments,Crisis Assistance Awards,Self Isolation Grant,12/01/2022,500
"Communities, Customer & Commercial Services",Customer Relationships & Welfare Services,Transfer Payments,Crisis Assistance Awards,Self Isolation Grant,12/01/2022,500
"Communities, Customer & Commercial Services",Customer Relationships & Welfare Services,Transfer Payments,Crisis Assistance Awards,Self Isolation Grant,12/01/2022,500
"Communities, Customer & Commercial Services",Customer Relationships & Welfare Services,Transfer Payments,Crisis Assistance Awards,Self Isolation Grant,12/01/2022,500
"Communities, Customer & Commercial Services",Customer Relationships & Welfare Services,Transfer Payments,Crisis Assistance Awards,Self Isolation Grant,12/01/2022,500
"Communities, Customer & Commercial Services",Customer Relationships & Welfare Services,Transfer Payments,Crisis Assistance Awards,Self Isolation Grant,12/01/2022,500
"Communities, Customer & Commercial Services",Customer Relationships & Welfare Services,Transfer Payments,Crisis Assistance Awards,Self Isolation Grant,12/01/2022,500
"Communities, Customer & Commercial Services",Customer Relationships & Welfare Services,Transfer Payments,Crisis Assistance Awards,Self Isolation Grant,12/01/2022,500
"Communities, Customer & Commercial Services",Customer Relationships & Welfare Services,Transfer Payments,Crisis Assistance Awards,Self Isolation Grant,12/01/2022,500
"Communities, Customer & Commercial Services",Customer Relationships & Welfare Services,Transfer Payments,Crisis Assistance Awards,Self Isolation Grant,12/01/2022,500
"Communities, Customer & Commercial Services",Customer Relationships & Welfare Services,Transfer Payments,Crisis Assistance Awards,Self Isolation Grant,12/01/2022,500
"Communities, Customer & Commercial Services",Customer Relationships & Welfare Services,Transfer Payments,Crisis Assistance Awards,Self Isolation Grant,12/01/2022,500
"Communities, Customer & Commercial Services",Customer Relationships & Welfare Services,Transfer Payments,Crisis Assistance Awards,Self Isolation Grant,12/01/2022,500
"Communities, Customer & Commercial Services",Customer Relationships & Welfare Services,Transfer Payments,Crisis Assistance Awards,Self Isolation Grant,12/01/2022,500
"Communities, Customer & Commercial Services",Customer Relationships & Welfare Services,Transfer Payments,Crisis Assistance Awards,Self Isolation Grant,12/01/2022,500
"Communities, Customer & Commercial Services",Customer Relationships & Welfare Services,Transfer Payments,Crisis Assistance Awards,Self Isolation Grant,12/01/2022,500
"Communities, Customer & Commercial Services",Customer Relationships & Welfare Services,Transfer Payments,Crisis Assistance Awards,Self Isolation Grant,12/01/2022,500
"Communities, Customer & Commercial Services",Customer Relationships & Welfare Services,Transfer Payments,Crisis Assistance Awards,Self Isolation Grant,12/01/2022,500
"Communities, Customer & Commercial Services",Customer Relationships & Welfare Services,Transfer Payments,Crisis Assistance Awards,Self Isolation Grant,12/01/2022,500
"Communities, Customer & Commercial Services",Customer Relationships & Welfare Services,Transfer Payments,Crisis Assistance Awards,Self Isolation Grant,12/01/2022,500
"Communities, Customer & Commercial Services",Customer Relationships & Welfare Services,Transfer Payments,Crisis Assistance Awards,Self Isolation Grant,12/01/2022,500
"Communities, Customer & Commercial Services",Customer Relationships & Welfare Services,Transfer Payments,Crisis Assistance Awards,Self Isolation Grant,13/01/2022,500
"Communities, Customer & Commercial Services",Customer Relationships & Welfare Services,Transfer Payments,Crisis Assistance Awards,Self Isolation Grant,13/01/2022,500
"Communities, Customer & Commercial Services",Customer Relationships & Welfare Services,Transfer Payments,Crisis Assistance Awards,Self Isolation Grant,13/01/2022,500
"Communities, Customer & Commercial Services",Customer Relationships & Welfare Services,Transfer Payments,Crisis Assistance Awards,Self Isolation Grant,13/01/2022,500
"Communities, Customer & Commercial Services",Customer Relationships & Welfare Services,Transfer Payments,Crisis Assistance Awards,Self Isolation Grant,13/01/2022,500
"Communities, Customer & Commercial Services",Customer Relationships & Welfare Services,Transfer Payments,Crisis Assistance Awards,Self Isolation Grant,13/01/2022,500
"Communities, Customer & Commercial Services",Customer Relationships & Welfare Services,Transfer Payments,Crisis Assistance Awards,Self Isolation Grant,13/01/2022,500
"Communities, Customer & Commercial Services",Customer Relationships & Welfare Services,Transfer Payments,Crisis Assistance Awards,PayPoint Network Limited,13/01/2022,925
"Communities, Customer & Commercial Services",Customer Relationships & Welfare Services,Transfer Payments,Crisis Assistance Awards,Kings of the Road,13/01/2022,675
"Communities, Customer & Commercial Services",Customer Relationships & Welfare Services,Transfer Payments,Crisis Assistance Awards,Self Isolation Grant,13/01/2022,500
"Communities, Customer & Commercial Services",Customer Relationships & Welfare Services,Transfer Payments,Crisis Assistance Awards,Self Isolation Grant,13/01/2022,500
"Communities, Customer & Commercial Services",Customer Relationships & Welfare Services,Transfer Payments,Crisis Assistance Awards,Self Isolation Grant,13/01/2022,500
"Communities, Customer & Commercial Services",Customer Relationships & Welfare Services,Transfer Payments,Crisis Assistance Awards,Self Isolation Grant,13/01/2022,500
"Communities, Customer & Commercial Services",Customer Relationships & Welfare Services,Transfer Payments,Crisis Assistance Awards,Self Isolation Grant,13/01/2022,500
"Communities, Customer & Commercial Services",Customer Relationships & Welfare Services,Transfer Payments,Crisis Assistance Awards,Self Isolation Grant,13/01/2022,500
"Communities, Customer & Commercial Services",Customer Relationships & Welfare Services,Transfer Payments,Crisis Assistance Awards,Self Isolation Grant,13/01/2022,500
"Communities, Customer & Commercial Services",Customer Relationships & Welfare Services,Transfer Payments,Crisis Assistance Awards,Self Isolation Grant,13/01/2022,500
"Communities, Customer & Commercial Services",Customer Relationships & Welfare Services,Transfer Payments,Crisis Assistance Awards,Self Isolation Grant,13/01/2022,500
"Communities, Customer & Commercial Services",Customer Relationships & Welfare Services,Transfer Payments,Crisis Assistance Awards,Self Isolation Grant,13/01/2022,500
"Communities, Customer & Commercial Services",Customer Relationships & Welfare Services,Transfer Payments,Crisis Assistance Awards,Self Isolation Grant,13/01/2022,500
"Communities, Customer & Commercial Services",Customer Relationships & Welfare Services,Transfer Payments,Crisis Assistance Awards,Self Isolation Grant,13/01/2022,500
"Communities, Customer & Commercial Services",Customer Relationships & Welfare Services,Transfer Payments,Crisis Assistance Awards,Self Isolation Grant,15/01/2022,500
"Communities, Customer & Commercial Services",Customer Relationships & Welfare Services,Transfer Payments,Crisis Assistance Awards,Self Isolation Grant,17/01/2022,500
"Communities, Customer & Commercial Services",Customer Relationships & Welfare Services,Transfer Payments,Crisis Assistance Awards,Self Isolation Grant,17/01/2022,500
"Communities, Customer & Commercial Services",Customer Relationships & Welfare Services,Transfer Payments,Crisis Assistance Awards,Self Isolation Grant,17/01/2022,500
"Communities, Customer & Commercial Services",Customer Relationships & Welfare Services,Transfer Payments,Crisis Assistance Awards,Self Isolation Grant,17/01/2022,500
"Communities, Customer & Commercial Services",Customer Relationships & Welfare Services,Transfer Payments,Crisis Assistance Awards,Self Isolation Grant,17/01/2022,500
"Communities, Customer & Commercial Services",Customer Relationships & Welfare Services,Transfer Payments,Crisis Assistance Awards,Self Isolation Grant,17/01/2022,500
"Communities, Customer & Commercial Services",Customer Relationships & Welfare Services,Transfer Payments,Crisis Assistance Awards,Self Isolation Grant,17/01/2022,500
"Communities, Customer & Commercial Services",Customer Relationships & Welfare Services,Transfer Payments,Crisis Assistance Awards,Self Isolation Grant,17/01/2022,500
"Communities, Customer & Commercial Services",Customer Relationships & Welfare Services,Transfer Payments,Crisis Assistance Awards,Self Isolation Grant,17/01/2022,500
"Communities, Customer & Commercial Services",Customer Relationships & Welfare Services,Transfer Payments,Crisis Assistance Awards,Self Isolation Grant,17/01/2022,500
"Communities, Customer & Commercial Services",Customer Relationships & Welfare Services,Transfer Payments,Crisis Assistance Awards,Self Isolation Grant,17/01/2022,500
"Communities, Customer & Commercial Services",Customer Relationships & Welfare Services,Transfer Payments,Crisis Assistance Awards,Self Isolation Grant,17/01/2022,500
"Communities, Customer & Commercial Services",Customer Relationships & Welfare Services,Transfer Payments,Crisis Assistance Awards,Self Isolation Grant,17/01/2022,500
"Communities, Customer & Commercial Services",Customer Relationships & Welfare Services,Transfer Payments,Crisis Assistance Awards,Self Isolation Grant,17/01/2022,500
"Communities, Customer & Commercial Services",Customer Relationships & Welfare Services,Transfer Payments,Crisis Assistance Awards,Self Isolation Grant,18/01/2022,500
"Communities, Customer & Commercial Services",Customer Relationships & Welfare Services,Transfer Payments,Crisis Assistance Awards,Self Isolation Grant,18/01/2022,500
"Communities, Customer & Commercial Services",Customer Relationships & Welfare Services,Transfer Payments,Crisis Assistance Awards,Self Isolation Grant,18/01/2022,500
"Communities, Customer & Commercial Services",Customer Relationships & Welfare Services,Transfer Payments,Crisis Assistance Awards,Self Isolation Grant,18/01/2022,500
"Communities, Customer & Commercial Services",Customer Relationships & Welfare Services,Transfer Payments,Crisis Assistance Awards,Self Isolation Grant,18/01/2022,500
"Communities, Customer & Commercial Services",Customer Relationships & Welfare Services,Transfer Payments,Crisis Assistance Awards,Self Isolation Grant,18/01/2022,500
"Communities, Customer & Commercial Services",Customer Relationships & Welfare Services,Transfer Payments,Crisis Assistance Awards,Self Isolation Grant,18/01/2022,500
"Communities, Customer & Commercial Services",Customer Relationships & Welfare Services,Transfer Payments,Crisis Assistance Awards,Self Isolation Grant,18/01/2022,500
"Communities, Customer & Commercial Services",Customer Relationships & Welfare Services,Transfer Payments,Crisis Assistance Awards,Self Isolation Grant,18/01/2022,500
"Communities, Customer & Commercial Services",Customer Relationships & Welfare Services,Transfer Payments,Crisis Assistance Awards,Self Isolation Grant,18/01/2022,500
"Communities, Customer & Commercial Services",Customer Relationships & Welfare Services,Transfer Payments,Crisis Assistance Awards,Self Isolation Grant,18/01/2022,500
"Communities, Customer & Commercial Services",Customer Relationships & Welfare Services,Transfer Payments,Crisis Assistance Awards,Self Isolation Grant,18/01/2022,500
"Communities, Customer & Commercial Services",Customer Relationships & Welfare Services,Transfer Payments,Crisis Assistance Awards,Self Isolation Grant,19/01/2022,500
"Communities, Customer & Commercial Services",Customer Relationships & Welfare Services,Transfer Payments,Crisis Assistance Awards,Self Isolation Grant,19/01/2022,500
"Communities, Customer & Commercial Services",Customer Relationships & Welfare Services,Transfer Payments,Crisis Assistance Awards,Self Isolation Grant,19/01/2022,500
"Communities, Customer & Commercial Services",Customer Relationships & Welfare Services,Transfer Payments,Crisis Assistance Awards,Self Isolation Grant,19/01/2022,500
"Communities, Customer & Commercial Services",Customer Relationships & Welfare Services,Transfer Payments,Crisis Assistance Awards,Self Isolation Grant,19/01/2022,500
"Communities, Customer & Commercial Services",Customer Relationships & Welfare Services,Transfer Payments,Crisis Assistance Awards,Self Isolation Grant,19/01/2022,500
"Communities, Customer & Commercial Services",Customer Relationships & Welfare Services,Transfer Payments,Crisis Assistance Awards,Self Isolation Grant,19/01/2022,500
"Communities, Customer & Commercial Services",Customer Relationships & Welfare Services,Transfer Payments,Crisis Assistance Awards,Self Isolation Grant,19/01/2022,500
"Communities, Customer & Commercial Services",Customer Relationships & Welfare Services,Transfer Payments,Crisis Assistance Awards,Self Isolation Grant,19/01/2022,500
"Communities, Customer & Commercial Services",Customer Relationships & Welfare Services,Transfer Payments,Crisis Assistance Awards,Self Isolation Grant,19/01/2022,500
"Communities, Customer & Commercial Services",Customer Relationships & Welfare Services,Transfer Payments,Crisis Assistance Awards,Self Isolation Grant,19/01/2022,500
"Communities, Customer & Commercial Services",Customer Relationships & Welfare Services,Transfer Payments,Crisis Assistance Awards,Self Isolation Grant,19/01/2022,500
"Communities, Customer & Commercial Services",Customer Relationships & Welfare Services,Transfer Payments,Crisis Assistance Awards,Self Isolation Grant,20/01/2022,500
"Communities, Customer & Commercial Services",Customer Relationships & Welfare Services,Transfer Payments,Crisis Assistance Awards,Self Isolation Grant,21/01/2022,500
"Communities, Customer & Commercial Services",Customer Relationships & Welfare Services,Transfer Payments,Crisis Assistance Awards,Self Isolation Grant,21/01/2022,500
"Communities, Customer & Commercial Services",Customer Relationships & Welfare Services,Transfer Payments,Crisis Assistance Awards,Self Isolation Grant,21/01/2022,500
"Communities, Customer & Commercial Services",Customer Relationships & Welfare Services,Transfer Payments,Crisis Assistance Awards,Self Isolation Grant,21/01/2022,500
"Communities, Customer & Commercial Services",Customer Relationships & Welfare Services,Transfer Payments,Crisis Assistance Awards,PayPoint Network Limited,21/01/2022,850
"Communities, Customer & Commercial Services",Customer Relationships & Welfare Services,Transfer Payments,Crisis Assistance Awards,Self Isolation Grant,21/01/2022,500
"Communities, Customer & Commercial Services",Customer Relationships & Welfare Services,Transfer Payments,Crisis Assistance Awards,Self Isolation Grant,21/01/2022,500
"Communities, Customer & Commercial Services",Customer Relationships & Welfare Services,Transfer Payments,Crisis Assistance Awards,Self Isolation Grant,21/01/2022,500
"Communities, Customer & Commercial Services",Customer Relationships & Welfare Services,Transfer Payments,Crisis Assistance Awards,Self Isolation Grant,21/01/2022,500
"Communities, Customer & Commercial Services",Customer Relationships & Welfare Services,Transfer Payments,Crisis Assistance Awards,Self Isolation Grant,21/01/2022,500
"Communities, Customer & Commercial Services",Customer Relationships & Welfare Services,Transfer Payments,Crisis Assistance Awards,Self Isolation Grant,21/01/2022,500
"Communities, Customer & Commercial Services",Customer Relationships & Welfare Services,Transfer Payments,Crisis Assistance Awards,Self Isolation Grant,21/01/2022,500
"Communities, Customer & Commercial Services",Customer Relationships & Welfare Services,Transfer Payments,Crisis Assistance Awards,Self Isolation Grant,21/01/2022,500
"Communities, Customer & Commercial Services",Customer Relationships & Welfare Services,Transfer Payments,Crisis Assistance Awards,Self Isolation Grant,21/01/2022,500
"Communities, Customer & Commercial Services",Customer Relationships & Welfare Services,Transfer Payments,Crisis Assistance Awards,Self Isolation Grant,21/01/2022,500
"Communities, Customer & Commercial Services",Customer Relationships & Welfare Services,Transfer Payments,Crisis Assistance Awards,Self Isolation Grant,21/01/2022,500
"Communities, Customer & Commercial Services",Customer Relationships & Welfare Services,Transfer Payments,Crisis Assistance Awards,Self Isolation Grant,21/01/2022,500
"Communities, Customer & Commercial Services",Customer Relationships & Welfare Services,Transfer Payments,Crisis Assistance Awards,Self Isolation Grant,21/01/2022,500
"Communities, Customer & Commercial Services",Customer Relationships & Welfare Services,Transfer Payments,Crisis Assistance Awards,Self Isolation Grant,21/01/2022,500
"Communities, Customer & Commercial Services",Customer Relationships & Welfare Services,Transfer Payments,Crisis Assistance Awards,Self Isolation Grant,21/01/2022,500
"Communities, Customer & Commercial Services",Customer Relationships & Welfare Services,Transfer Payments,Crisis Assistance Awards,Self Isolation Grant,21/01/2022,500
"Communities, Customer & Commercial Services",Customer Relationships & Welfare Services,Transfer Payments,Crisis Assistance Awards,Self Isolation Grant,21/01/2022,500
"Communities, Customer & Commercial Services",Customer Relationships & Welfare Services,Transfer Payments,Crisis Assistance Awards,Self Isolation Grant,24/01/2022,500
"Communities, Customer & Commercial Services",Customer Relationships & Welfare Services,Transfer Payments,Crisis Assistance Awards,Self Isolation Grant,24/01/2022,500
"Communities, Customer & Commercial Services",Customer Relationships & Welfare Services,Transfer Payments,Crisis Assistance Awards,Self Isolation Grant,24/01/2022,500
"Communities, Customer & Commercial Services",Customer Relationships & Welfare Services,Transfer Payments,Crisis Assistance Awards,Self Isolation Grant,24/01/2022,500
"Communities, Customer & Commercial Services",Customer Relationships & Welfare Services,Transfer Payments,Crisis Assistance Awards,Self Isolation Grant,24/01/2022,500
"Communities, Customer & Commercial Services",Customer Relationships & Welfare Services,Transfer Payments,Crisis Assistance Awards,Self Isolation Grant,24/01/2022,500
"Communities, Customer & Commercial Services",Customer Relationships & Welfare Services,Transfer Payments,Crisis Assistance Awards,Self Isolation Grant,24/01/2022,500
"Communities, Customer & Commercial Services",Customer Relationships & Welfare Services,Transfer Payments,Crisis Assistance Awards,Self Isolation Grant,25/01/2022,500
"Communities, Customer & Commercial Services",Customer Relationships & Welfare Services,Transfer Payments,Crisis Assistance Awards,Self Isolation Grant,25/01/2022,500
"Communities, Customer & Commercial Services",Customer Relationships & Welfare Services,Transfer Payments,Crisis Assistance Awards,Self Isolation Grant,25/01/2022,500
"Communities, Customer & Commercial Services",Customer Relationships & Welfare Services,Transfer Payments,Crisis Assistance Awards,Self Isolation Grant,25/01/2022,500
"Communities, Customer & Commercial Services",Customer Relationships & Welfare Services,Transfer Payments,Crisis Assistance Awards,Self Isolation Grant,25/01/2022,500
"Communities, Customer & Commercial Services",Customer Relationships & Welfare Services,Transfer Payments,Crisis Assistance Awards,Self Isolation Grant,25/01/2022,500
"Communities, Customer & Commercial Services",Customer Relationships & Welfare Services,Transfer Payments,Crisis Assistance Awards,Self Isolation Grant,25/01/2022,500
"Communities, Customer & Commercial Services",Customer Relationships & Welfare Services,Transfer Payments,Crisis Assistance Awards,Self Isolation Grant,25/01/2022,500
"Communities, Customer & Commercial Services",Customer Relationships & Welfare Services,Transfer Payments,Crisis Assistance Awards,Self Isolation Grant,25/01/2022,500
"Communities, Customer & Commercial Services",Customer Relationships & Welfare Services,Transfer Payments,Crisis Assistance Awards,Self Isolation Grant,25/01/2022,500
"Communities, Customer & Commercial Services",Customer Relationships & Welfare Services,Transfer Payments,Crisis Assistance Awards,Self Isolation Grant,25/01/2022,500
"Communities, Customer & Commercial Services",Customer Relationships & Welfare Services,Transfer Payments,Crisis Assistance Awards,Self Isolation Grant,25/01/2022,500
"Communities, Customer & Commercial Services",Customer Relationships & Welfare Services,Transfer Payments,Crisis Assistance Awards,Self Isolation Grant,25/01/2022,500
"Communities, Customer & Commercial Services",Customer Relationships & Welfare Services,Transfer Payments,Crisis Assistance Awards,Self Isolation Grant,25/01/2022,500
"Communities, Customer & Commercial Services",Customer Relationships & Welfare Services,Transfer Payments,Crisis Assistance Awards,Self Isolation Grant,25/01/2022,500
"Communities, Customer & Commercial Services",Customer Relationships & Welfare Services,Transfer Payments,Crisis Assistance Awards,Self Isolation Grant,25/01/2022,500
"Communities, Customer & Commercial Services",Customer Relationships & Welfare Services,Transfer Payments,Crisis Assistance Awards,Self Isolation Grant,25/01/2022,500
"Communities, Customer & Commercial Services",Customer Relationships & Welfare Services,Transfer Payments,Crisis Assistance Awards,Self Isolation Grant,25/01/2022,500
"Communities, Customer & Commercial Services",Customer Relationships & Welfare Services,Transfer Payments,Crisis Assistance Awards,Self Isolation Grant,25/01/2022,500
"Communities, Customer & Commercial Services",Customer Relationships & Welfare Services,Transfer Payments,Crisis Assistance Awards,Self Isolation Grant,26/01/2022,500
"Communities, Customer & Commercial Services",Customer Relationships & Welfare Services,Transfer Payments,Crisis Assistance Awards,Self Isolation Grant,26/01/2022,500
"Communities, Customer & Commercial Services",Customer Relationships & Welfare Services,Transfer Payments,Crisis Assistance Awards,Self Isolation Grant,26/01/2022,500
"Communities, Customer & Commercial Services",Customer Relationships & Welfare Services,Transfer Payments,Crisis Assistance Awards,Self Isolation Grant,26/01/2022,500
"Communities, Customer & Commercial Services",Customer Relationships & Welfare Services,Transfer Payments,Crisis Assistance Awards,Self Isolation Grant,26/01/2022,500
"Communities, Customer & Commercial Services",Customer Relationships & Welfare Services,Transfer Payments,Crisis Assistance Awards,Self Isolation Grant,26/01/2022,500
"Communities, Customer & Commercial Services",Customer Relationships & Welfare Services,Transfer Payments,Crisis Assistance Awards,Self Isolation Grant,26/01/2022,500
"Communities, Customer & Commercial Services",Customer Relationships & Welfare Services,Transfer Payments,Crisis Assistance Awards,Self Isolation Grant,26/01/2022,500
"Communities, Customer & Commercial Services",Customer Relationships & Welfare Services,Transfer Payments,Crisis Assistance Awards,Self Isolation Grant,26/01/2022,500
"Communities, Customer & Commercial Services",Customer Relationships & Welfare Services,Transfer Payments,Crisis Assistance Awards,Self Isolation Grant,26/01/2022,500
"Communities, Customer & Commercial Services",Customer Relationships & Welfare Services,Transfer Payments,Crisis Assistance Awards,Self Isolation Grant,26/01/2022,500
"Communities, Customer & Commercial Services",Customer Relationships & Welfare Services,Transfer Payments,Crisis Assistance Awards,Self Isolation Grant,26/01/2022,500
"Communities, Customer & Commercial Services",Customer Relationships & Welfare Services,Transfer Payments,Crisis Assistance Awards,Self Isolation Grant,26/01/2022,500
"Communities, Customer & Commercial Services",Customer Relationships & Welfare Services,Transfer Payments,Crisis Assistance Awards,Self Isolation Grant,26/01/2022,500
"Communities, Customer & Commercial Services",Customer Relationships & Welfare Services,Transfer Payments,Crisis Assistance Awards,Self Isolation Grant,26/01/2022,500
"Communities, Customer & Commercial Services",Customer Relationships & Welfare Services,Transfer Payments,Crisis Assistance Awards,Self Isolation Grant,26/01/2022,500
"Communities, Customer & Commercial Services",Customer Relationships & Welfare Services,Transfer Payments,Crisis Assistance Awards,Self Isolation Grant,27/01/2022,500
"Communities, Customer & Commercial Services",Customer Relationships & Welfare Services,Transfer Payments,Crisis Assistance Awards,Self Isolation Grant,27/01/2022,500
"Communities, Customer & Commercial Services",Customer Relationships & Welfare Services,Transfer Payments,Crisis Assistance Awards,Self Isolation Grant,27/01/2022,500
"Communities, Customer & Commercial Services",Customer Relationships & Welfare Services,Transfer Payments,Crisis Assistance Awards,Self Isolation Grant,27/01/2022,500
"Communities, Customer & Commercial Services",Customer Relationships & Welfare Services,Transfer Payments,Crisis Assistance Awards,Self Isolation Grant,27/01/2022,500
"Communities, Customer & Commercial Services",Customer Relationships & Welfare Services,Transfer Payments,Crisis Assistance Awards,Self Isolation Grant,27/01/2022,500
"Communities, Customer & Commercial Services",Customer Relationships & Welfare Services,Transfer Payments,Crisis Assistance Awards,Self Isolation Grant,27/01/2022,500
"Communities, Customer & Commercial Services",Customer Relationships & Welfare Services,Transfer Payments,Crisis Assistance Awards,Self Isolation Grant,27/01/2022,500
"Communities, Customer & Commercial Services",Customer Relationships & Welfare Services,Transfer Payments,Crisis Assistance Awards,Self Isolation Grant,27/01/2022,500
"Communities, Customer & Commercial Services",Customer Relationships & Welfare Services,Transfer Payments,Crisis Assistance Awards,Self Isolation Grant,27/01/2022,500
"Communities, Customer & Commercial Services",Customer Relationships & Welfare Services,Transfer Payments,Crisis Assistance Awards,Self Isolation Grant,27/01/2022,500
"Communities, Customer & Commercial Services",Customer Relationships & Welfare Services,Transfer Payments,Crisis Assistance Awards,Self Isolation Grant,27/01/2022,500
"Communities, Customer & Commercial Services",Customer Relationships & Welfare Services,Transfer Payments,Crisis Assistance Awards,Self Isolation Grant,27/01/2022,500
"Communities, Customer & Commercial Services",Customer Relationships & Welfare Services,Transfer Payments,Crisis Assistance Awards,Self Isolation Grant,27/01/2022,500
"Communities, Customer & Commercial Services",Customer Relationships & Welfare Services,Transfer Payments,Crisis Assistance Awards,A W HOLDINGS,27/01/2022,368
"Communities, Customer & Commercial Services",Customer Relationships & Welfare Services,Transfer Payments,Crisis Assistance Awards,Self Isolation Grant,27/01/2022,500
"Communities, Customer & Commercial Services",Customer Relationships & Welfare Services,Transfer Payments,Crisis Assistance Awards,Self Isolation Grant,27/01/2022,500
"Communities, Customer & Commercial Services",Customer Relationships & Welfare Services,Transfer Payments,Crisis Assistance Awards,Self Isolation Grant,28/01/2022,500
"Communities, Customer & Commercial Services",Customer Relationships & Welfare Services,Transfer Payments,Crisis Assistance Awards,Self Isolation Grant,28/01/2022,500
"Communities, Customer & Commercial Services",Customer Relationships & Welfare Services,Transfer Payments,Crisis Assistance Awards,Self Isolation Grant,29/01/2022,500
"Communities, Customer & Commercial Services",Customer Relationships & Welfare Services,Transfer Payments,Crisis Assistance Awards,Self Isolation Grant,29/01/2022,500
"Communities, Customer & Commercial Services",Customer Relationships & Welfare Services,Transfer Payments,Crisis Assistance Awards,Self Isolation Grant,29/01/2022,500
"Communities, Customer & Commercial Services",Customer Relationships & Welfare Services,Transfer Payments,Crisis Assistance Awards,Self Isolation Grant,29/01/2022,500
"Communities, Customer & Commercial Services",Customer Relationships & Welfare Services,Transfer Payments,Crisis Assistance Awards,Self Isolation Grant,29/01/2022,500
"Communities, Customer & Commercial Services",Customer Relationships & Welfare Services,Transfer Payments,Crisis Assistance Awards,Self Isolation Grant,29/01/2022,500
"Communities, Customer & Commercial Services",Customer Relationships & Welfare Services,Transfer Payments,Crisis Assistance Awards,Self Isolation Grant,29/01/2022,500
"Communities, Customer & Commercial Services",Customer Relationships & Welfare Services,Transfer Payments,Crisis Assistance Awards,Self Isolation Grant,29/01/2022,500
"Communities, Customer & Commercial Services",Customer Relationships & Welfare Services,Transfer Payments,Crisis Assistance Awards,Self Isolation Grant,29/01/2022,500
"Communities, Customer & Commercial Services",Customer Relationships & Welfare Services,Transfer Payments,Crisis Assistance Awards,Self Isolation Grant,29/01/2022,500
"Communities, Customer & Commercial Services",Customer Relationships & Welfare Services,Transfer Payments,Crisis Assistance Awards,Self Isolation Grant,29/01/2022,500
"Communities, Customer & Commercial Services",Customer Relationships & Welfare Services,Transfer Payments,Crisis Assistance Awards,Self Isolation Grant,29/01/2022,500
"Communities, Customer & Commercial Services",Customer Relationships & Welfare Services,Transfer Payments,Crisis Assistance Awards,Self Isolation Grant,29/01/2022,500
"Communities, Customer & Commercial Services",Customer Relationships & Welfare Services,Transfer Payments,Crisis Assistance Awards,Self Isolation Grant,29/01/2022,500
"Communities, Customer & Commercial Services",Customer Relationships & Welfare Services,Supplies & Services,Furniture - Purchase,Bates Office Services Ltd,06/01/2022,208.41
"Communities, Customer & Commercial Services",Customer Relationships & Welfare Services,Supplies & Services,Computer Software (Maint),Zipporah Ltd.,07/01/2022,850
"Communities, Customer & Commercial Services",ICT,Supplies & Services,Telecomms,VIRGIN MEDIA BUSINESS ,07/01/2022,-3530.32
"Communities, Customer & Commercial Services",ICT,Supplies & Services,Telecomms,Airband Community Internet,18/01/2022,125
"Communities, Customer & Commercial Services",ICT,Supplies & Services,Telecomms,CAPITA IT SERVICES LIMITED,19/01/2022,1330.23
"Communities, Customer & Commercial Services",ICT,Supplies & Services,Telecomms,BRITISH TELECOMMUNICATIONS PLC,28/01/2022,2373.57
"Communities, Customer & Commercial Services",ICT,Supplies & Services,Telecomms,CAPITA BUSINESS SERVICES LTD ,28/01/2022,1330.23
"Communities, Customer & Commercial Services",ICT,Supplies & Services,Equipment - Purchase,CCS MEDIA LIMITED,07/01/2022,1073.6
"Communities, Customer & Commercial Services",ICT,Supplies & Services,Text Messages,PROCESS FLOWS UK LTD,10/01/2022,1881.9
"Communities, Customer & Commercial Services",ICT,Supplies & Services,Telephones,BRITISH TELECOMMUNICATIONS PLC,17/01/2022,2895.18
"Communities, Customer & Commercial Services",ICT,Supplies & Services,Mobile Phones,EE LTD AIRTIME,18/01/2022,11949.49
"Communities, Customer & Commercial Services",ICT,Supplies & Services,Equipment - Purchase,CCS MEDIA LIMITED,19/01/2022,1194.28
"Communities, Customer & Commercial Services",ICT,Supplies & Services,Equipment - Purchase,CCS MEDIA LIMITED,19/01/2022,524.3
"Communities, Customer & Commercial Services",ICT,Supplies & Services,Telephones,VIRGIN MEDIA BUSINESS LTD,20/01/2022,1067.02
"Communities, Customer & Commercial Services",ICT,Premises-Related Expenditure,Intra Committee - Premises,Charlton Academy,19/01/2022,1940.65
"Communities, Customer & Commercial Services",ICT,Supplies & Services,Comp Software (Purch / Hire),PHOENIX SOFTWARE LTD,06/01/2022,12450
"Communities, Customer & Commercial Services",ICT,Supplies & Services,Comp Hardware (Purch / Hire),Education Software Solutions,11/01/2022,295
"Communities, Customer & Commercial Services",ICT,Supplies & Services,Comp Software (Purch / Hire),PHOENIX SOFTWARE LTD,26/01/2022,12450
"Communities, Customer & Commercial Services",ICT,Supplies & Services,Comp Software (Purch / Hire),PHOENIX SOFTWARE LTD,06/01/2022,183.28
"Communities, Customer & Commercial Services",ICT,Supplies & Services,Comp Software (Purch / Hire),PHOENIX SOFTWARE LTD,07/01/2022,2833.2
"Communities, Customer & Commercial Services",ICT,Supplies & Services,Comp Software (Purch / Hire),Orange Cyberdefense UK Limited,12/01/2022,1462.5
"Communities, Customer & Commercial Services",ICT,Supplies & Services,Telephones,BRITISH TELECOMMUNICATIONS PLC,18/01/2022,561.54
"Communities, Customer & Commercial Services",ICT,Supplies & Services,Telecomms,VODAFONE LTD,19/01/2022,1694
"Communities, Customer & Commercial Services",ICT,Supplies & Services,Comp Software (Purch / Hire),PHOENIX SOFTWARE LTD,26/01/2022,2741.51
"Communities, Customer & Commercial Services",ICT,Supplies & Services,Photocopying,RICOH UK LIMITED,17/01/2022,5169.98
"Communities, Customer & Commercial Services",ICT,Supplies & Services,Photocopying,RICOH UK LIMITED,17/01/2022,175.68
"Communities, Customer & Commercial Services",ICT,Supplies & Services,Comp Hardware (Purch / Hire),ICTn Limited,18/01/2022,975
"Communities, Customer & Commercial Services",ICT,Supplies & Services,Comp Hardware (Purch / Hire),ICTn Limited,18/01/2022,129
"Communities, Customer & Commercial Services",ICT,Supplies & Services,Comp Hardware (Purch / Hire),ICTn Limited,18/01/2022,355
"Communities, Customer & Commercial Services",ICT,Supplies & Services,Comp Hardware (Purch / Hire),ICTn Limited,18/01/2022,340
"Communities, Customer & Commercial Services",ICT,Supplies & Services,Comp Hardware (Purch / Hire),ICTn Limited,18/01/2022,125
"Communities, Customer & Commercial Services",ICT,Supplies & Services,Comp Hardware (Purch / Hire),ICTn Limited,18/01/2022,850
"Communities, Customer & Commercial Services",ICT,Supplies & Services,Comp Hardware (Purch / Hire),ICTn Limited,18/01/2022,110
"Communities, Customer & Commercial Services",ICT,Supplies & Services,Comp Hardware (Purch / Hire),ICTn Limited,18/01/2022,135
"Communities, Customer & Commercial Services",ICT,Supplies & Services,Licences,SIEMENS FINANCIAL SERVICES LTD,05/01/2022,1036.73
"Communities, Customer & Commercial Services",ICT,Supplies & Services,Equipment - Purchase,CAPITA IT SERVICES LIMITED,07/01/2022,1507.92
"Communities, Customer & Commercial Services",ICT,Supplies & Services,Equipment - Purchase,ICTn Limited,18/01/2022,325
"Communities, Customer & Commercial Services",ICT,Supplies & Services,Telecomms,CAPITA IT SERVICES LIMITED,19/01/2022,6557.11
"Communities, Customer & Commercial Services",ICT,Supplies & Services,Telephones,Trustmarque Solutions Limited,20/01/2022,158.55
"Communities, Customer & Commercial Services",ICT,Supplies & Services,Comp Software (Purch / Hire),ScholarPack,04/01/2022,4795.5
"Communities, Customer & Commercial Services",ICT,Supplies & Services,Comp Software (Purch / Hire),ScholarPack,04/01/2022,1672
"Communities, Customer & Commercial Services",ICT,Supplies & Services,Comp Software (Purch / Hire),Advanced Learning ,04/01/2022,241.5
"Communities, Customer & Commercial Services",ICT,Supplies & Services,Comp Software (Purch / Hire),Advanced Learning ,04/01/2022,1276.5
"Communities, Customer & Commercial Services",ICT,Supplies & Services,Comp Software (Purch / Hire),Advanced Learning ,04/01/2022,1799.75
"Communities, Customer & Commercial Services",ICT,Supplies & Services,Comp Software (Purch / Hire),Advanced Learning ,04/01/2022,1891.75
"Communities, Customer & Commercial Services",ICT,Supplies & Services,Comp Software (Purch / Hire),Advanced Learning ,04/01/2022,1322.5
"Communities, Customer & Commercial Services",ICT,Supplies & Services,Comp Software (Purch / Hire),Advanced Learning ,04/01/2022,1207.5
"Communities, Customer & Commercial Services",ICT,Supplies & Services,Comp Software (Purch / Hire),Advanced Learning ,04/01/2022,1627.25
"Communities, Customer & Commercial Services",ICT,Supplies & Services,Comp Software (Purch / Hire),Advanced Learning ,04/01/2022,1955
"Communities, Customer & Commercial Services",ICT,Supplies & Services,Comp Software (Purch / Hire),Advanced Learning ,04/01/2022,1127
"Communities, Customer & Commercial Services",ICT,Supplies & Services,Comp Software (Purch / Hire),Advanced Learning ,04/01/2022,690
"Communities, Customer & Commercial Services",ICT,Supplies & Services,Comp Software (Purch / Hire),Advanced Learning ,04/01/2022,2254
"Communities, Customer & Commercial Services",ICT,Supplies & Services,Comp Software (Purch / Hire),Advanced Learning ,04/01/2022,1121.25
"Communities, Customer & Commercial Services",ICT,Supplies & Services,Comp Software (Purch / Hire),Advanced Learning ,04/01/2022,862.5
"Communities, Customer & Commercial Services",ICT,Supplies & Services,Comp Software (Purch / Hire),Advanced Learning ,04/01/2022,1052.25
"Communities, Customer & Commercial Services",ICT,Supplies & Services,Comp Software (Purch / Hire),Advanced Learning ,04/01/2022,793.5
"Communities, Customer & Commercial Services",ICT,Supplies & Services,Comp Software (Purch / Hire),Advanced Learning ,04/01/2022,1328.25
"Communities, Customer & Commercial Services",ICT,Supplies & Services,Comp Software (Purch / Hire),Advanced Learning ,04/01/2022,1155.75
"Communities, Customer & Commercial Services",ICT,Supplies & Services,Comp Software (Purch / Hire),Advanced Learning ,04/01/2022,1569.75
"Communities, Customer & Commercial Services",ICT,Supplies & Services,Comp Software (Purch / Hire),Advanced Learning ,04/01/2022,2455.25
"Communities, Customer & Commercial Services",ICT,Supplies & Services,Comp Software (Purch / Hire),ScholarPack,13/01/2022,5155.5
"Communities, Customer & Commercial Services",ICT,Supplies & Services,Comp Software (Purch / Hire),ScholarPack,13/01/2022,4125.6
"Communities, Customer & Commercial Services",ICT,Capital Expenditure,Computer Hardware,CCS MEDIA LIMITED,24/01/2022,593.6
"Communities, Customer & Commercial Services",ICT,Capital Expenditure,Computer Hardware,CCS MEDIA LIMITED,12/01/2022,885
"Communities, Customer & Commercial Services",ICT,Capital Expenditure,Computer Hardware,CCS MEDIA LIMITED,07/01/2022,2220
"Communities, Customer & Commercial Services",ICT,Capital Expenditure,Computer Hardware,CCS MEDIA LIMITED,07/01/2022,1003.95
"Communities, Customer & Commercial Services",ICT,Capital Expenditure,Computer Hardware,CCS MEDIA LIMITED,07/01/2022,827.55
"Communities, Customer & Commercial Services",ICT,Capital Expenditure,Payments to Contractor,ESTEEM SYSTEMS Ltd,13/01/2022,438.46
"Communities, Customer & Commercial Services",ICT,Capital Expenditure,Computer Hardware,CCS MEDIA LIMITED,19/01/2022,2942.14
"Communities, Customer & Commercial Services",ICT,Capital Expenditure,Computer Hardware,CCS MEDIA LIMITED,19/01/2022,1198
"Communities, Customer & Commercial Services",ICT,Capital Expenditure,Computer Hardware,CCS MEDIA LIMITED,07/01/2022,700
"Communities, Customer & Commercial Services",ICT,Capital Expenditure,Computer Hardware,CCS MEDIA LIMITED,07/01/2022,340
"Communities, Customer & Commercial Services",ICT,Capital Expenditure,Computer Hardware,CCS MEDIA LIMITED,07/01/2022,1940
"Communities, Customer & Commercial Services",ICT,Capital Expenditure,Computer Software,CIVICA UK LIMITED ,18/01/2022,12000
"Communities, Customer & Commercial Services",ICT,Capital Expenditure,Computer Software,AXIELL LTD,26/01/2022,800
"Communities, Customer & Commercial Services",ICT,Capital Expenditure,Computer Software,AXIELL LTD,26/01/2022,250
"Communities, Customer & Commercial Services",ICT,Capital Expenditure,Computer Software,PHOENIX SOFTWARE LTD,26/01/2022,3545.22
"Communities, Customer & Commercial Services",ICT,Capital Expenditure,Other Capital Expenditure,PHOENIX SOFTWARE LTD,26/01/2022,4937.22
"Communities, Customer & Commercial Services",ICT,Capital Expenditure,Other Capital Expenditure,PHOENIX SOFTWARE LTD,26/01/2022,325.54
"Communities, Customer & Commercial Services",Sport & Leisure,Premises-Related Expenditure,Electricity,E.ON ,06/01/2022,164.1
"Communities, Customer & Commercial Services",Sport & Leisure,Premises-Related Expenditure,Electricity,E.ON ),07/01/2022,145.8
"Communities, Customer & Commercial Services",Sport & Leisure,Employees,Hospitality,LACA LTD,18/01/2022,710.4
"Communities, Customer & Commercial Services",Sport & Leisure,Premises-Related Expenditure,Clean Mats & Toilet Requisites,Border Janitorial Supplies Limited,10/01/2022,259.2
"Communities, Customer & Commercial Services",Sport & Leisure,Supplies & Services,Crockery/Hardware/Light Equip,PLANGLOW LTD,18/01/2022,791.2
"Communities, Customer & Commercial Services",Sport & Leisure,Supplies & Services,Protective Clothing,IMAGE@WORK LTD,21/01/2022,1115.86
"Communities, Customer & Commercial Services",Sport & Leisure,Supplies & Services,Protective Clothing,IMAGE@WORK LTD,25/01/2022,590.02
"Communities, Customer & Commercial Services",Sport & Leisure,Supplies & Services,Publications,ROYAL MAIL GROUP PLC,25/01/2022,100.36
"Communities, Customer & Commercial Services",Sport & Leisure,Supplies & Services,Provisions,TROPICAL ICE,11/01/2022,671
"Communities, Customer & Commercial Services",Sport & Leisure,Supplies & Services,EEC Whole Milk,J DAIRIES,04/01/2022,751.68
"Communities, Customer & Commercial Services",Sport & Leisure,Supplies & Services,EEC Whole Milk,J DAIRIES,04/01/2022,1468.95
"Communities, Customer & Commercial Services",Sport & Leisure,Supplies & Services,EEC Whole Milk,J DAIRIES,05/01/2022,1373.84
"Communities, Customer & Commercial Services",Sport & Leisure,Supplies & Services,EEC Whole Milk,J DAIRIES,05/01/2022,743.93
"Communities, Customer & Commercial Services",Sport & Leisure,Supplies & Services,EEC Whole Milk,J DAIRIES,05/01/2022,758.48
"Communities, Customer & Commercial Services",Sport & Leisure,Supplies & Services,EEC Whole Milk,J DAIRIES,05/01/2022,1423.4
"Communities, Customer & Commercial Services",Sport & Leisure,Supplies & Services,EEC Whole Milk,J DAIRIES,11/01/2022,652.64
"Communities, Customer & Commercial Services",Sport & Leisure,Supplies & Services,EEC Whole Milk,J DAIRIES,11/01/2022,1140.28
"Communities, Customer & Commercial Services",Sport & Leisure,Supplies & Services,EEC Whole Milk,J DAIRIES,18/01/2022,725.8
"Communities, Customer & Commercial Services",Sport & Leisure,Supplies & Services,EEC Whole Milk,J DAIRIES,18/01/2022,1325.25
"Communities, Customer & Commercial Services",Sport & Leisure,Supplies & Services,EEC Whole Milk,J DAIRIES,27/01/2022,729.64
"Communities, Customer & Commercial Services",Sport & Leisure,Supplies & Services,Provisions,J DAIRIES,27/01/2022,1307.69
"Communities, Customer & Commercial Services",Sport & Leisure,Employees,Agency Supply Costs,TOTAL CATERING SOLUTONS RECRUITMENT LTD,10/01/2022,242.88
"Communities, Customer & Commercial Services",Sport & Leisure,Employees,Agency Supply Costs,TOTAL CATERING SOLUTONS RECRUITMENT LTD,10/01/2022,121.44
"Communities, Customer & Commercial Services",Sport & Leisure,Employees,Agency Supply Costs,TOTAL CATERING SOLUTONS RECRUITMENT LTD,19/01/2022,182.16
"Communities, Customer & Commercial Services",Sport & Leisure,Employees,Agency Supply Costs,TOTAL CATERING SOLUTONS RECRUITMENT LTD,31/01/2022,182.16
"Communities, Customer & Commercial Services",Sport & Leisure,Employees,Agency Supply Costs,TOTAL CATERING SOLUTONS RECRUITMENT LTD,31/01/2022,121.44
"Communities, Customer & Commercial Services",Sport & Leisure,Employees,Agency Supply Costs,TOTAL CATERING SOLUTONS RECRUITMENT LTD,31/01/2022,303.6
"Communities, Customer & Commercial Services",Sport & Leisure,Employees,Agency Supply Costs,TOTAL CATERING SOLUTONS RECRUITMENT LTD,31/01/2022,182.16
"Communities, Customer & Commercial Services",Sport & Leisure,Employees,Agency Supply Costs,TOTAL CATERING SOLUTONS RECRUITMENT LTD,31/01/2022,182.16
"Communities, Customer & Commercial Services",Sport & Leisure,Premises-Related Expenditure,Clean Mats & Toilet Requisites,Border Janitorial Supplies Limited,11/01/2022,110.89
"Communities, Customer & Commercial Services",Sport & Leisure,Premises-Related Expenditure,Clean Mats & Toilet Requisites,Border Janitorial Supplies Limited,11/01/2022,134.96
"Communities, Customer & Commercial Services",Sport & Leisure,Premises-Related Expenditure,Clean Mats & Toilet Requisites,Border Janitorial Supplies Limited,21/01/2022,130.12
"Communities, Customer & Commercial Services",Sport & Leisure,Premises-Related Expenditure,Clean Mats & Toilet Requisites,Border Janitorial Supplies Limited,31/01/2022,110.58
"Communities, Customer & Commercial Services",Sport & Leisure,Premises-Related Expenditure,Clean Mats & Toilet Requisites,Border Janitorial Supplies Limited,31/01/2022,162.37
"Communities, Customer & Commercial Services",Sport & Leisure,Supplies & Services,Provisions,BIKOLD,06/01/2022,104.47
"Communities, Customer & Commercial Services",Sport & Leisure,Supplies & Services,Provisions,BIKOLD,06/01/2022,143.66
"Communities, Customer & Commercial Services",Sport & Leisure,Supplies & Services,Provisions,BIKOLD,06/01/2022,285.1
"Communities, Customer & Commercial Services",Sport & Leisure,Supplies & Services,Provisions,BIKOLD,06/01/2022,206.21
"Communities, Customer & Commercial Services",Sport & Leisure,Supplies & Services,Provisions,Delice de France,06/01/2022,127.6
"Communities, Customer & Commercial Services",Sport & Leisure,Supplies & Services,Crockery/Hardware/Light Equip,PLANGLOW LTD,11/01/2022,266.53
"Communities, Customer & Commercial Services",Sport & Leisure,Supplies & Services,Provisions,ICare (GB) Limited,11/01/2022,634.5
"Communities, Customer & Commercial Services",Sport & Leisure,Supplies & Services,Provisions,R & COMPANY,11/01/2022,168.6
"Communities, Customer & Commercial Services",Sport & Leisure,Supplies & Services,Provisions,R & COMPANY,11/01/2022,159.7
"Communities, Customer & Commercial Services",Sport & Leisure,Supplies & Services,Provisions,R & COMPANY,11/01/2022,146.09
"Communities, Customer & Commercial Services",Sport & Leisure,Supplies & Services,Provisions,R & COMPANY,11/01/2022,110.96
"Communities, Customer & Commercial Services",Sport & Leisure,Supplies & Services,Provisions,R & COMPANY,11/01/2022,169.39
"Communities, Customer & Commercial Services",Sport & Leisure,Supplies & Services,Provisions,R & COMPANY,11/01/2022,101.58
"Communities, Customer & Commercial Services",Sport & Leisure,Supplies & Services,Provisions,R & COMPANY,11/01/2022,255.97
"Communities, Customer & Commercial Services",Sport & Leisure,Supplies & Services,Provisions,R & COMPANY,11/01/2022,102.28
"Communities, Customer & Commercial Services",Sport & Leisure,Supplies & Services,Provisions,R & COMPANY,11/01/2022,152.59
"Communities, Customer & Commercial Services",Sport & Leisure,Supplies & Services,Provisions,R & COMPANY,11/01/2022,104.66
"Communities, Customer & Commercial Services",Sport & Leisure,Supplies & Services,Provisions,R & COMPANY,11/01/2022,129.54
"Communities, Customer & Commercial Services",Sport & Leisure,Supplies & Services,Provisions,R & COMPANY,11/01/2022,188.27
"Communities, Customer & Commercial Services",Sport & Leisure,Supplies & Services,Provisions,R & COMPANY,11/01/2022,213.23
"Communities, Customer & Commercial Services",Sport & Leisure,Supplies & Services,Provisions,R & COMPANY,11/01/2022,120.66
"Communities, Customer & Commercial Services",Sport & Leisure,Supplies & Services,Provisions,R & COMPANY,11/01/2022,107.45
"Communities, Customer & Commercial Services",Sport & Leisure,Supplies & Services,Provisions,R & COMPANY,11/01/2022,107.08
"Communities, Customer & Commercial Services",Sport & Leisure,Supplies & Services,Provisions,R & COMPANY,11/01/2022,124.45
"Communities, Customer & Commercial Services",Sport & Leisure,Supplies & Services,Provisions,R & COMPANY,11/01/2022,148.14
"Communities, Customer & Commercial Services",Sport & Leisure,Supplies & Services,Provisions,BIKOLD,11/01/2022,305.07
"Communities, Customer & Commercial Services",Sport & Leisure,Supplies & Services,Provisions,BIKOLD,11/01/2022,111.43
"Communities, Customer & Commercial Services",Sport & Leisure,Supplies & Services,Provisions,BIKOLD,11/01/2022,325.99
"Communities, Customer & Commercial Services",Sport & Leisure,Supplies & Services,Provisions,BIKOLD,11/01/2022,272.39
"Communities, Customer & Commercial Services",Sport & Leisure,Supplies & Services,Provisions,BIKOLD,11/01/2022,152.24
"Communities, Customer & Commercial Services",Sport & Leisure,Supplies & Services,Provisions,BIKOLD,11/01/2022,105.34
"Communities, Customer & Commercial Services",Sport & Leisure,Supplies & Services,Provisions,BIKOLD,11/01/2022,214.18
"Communities, Customer & Commercial Services",Sport & Leisure,Supplies & Services,Provisions,BIKOLD,11/01/2022,176.32
"Communities, Customer & Commercial Services",Sport & Leisure,Supplies & Services,Provisions,BIKOLD,11/01/2022,286.91
"Communities, Customer & Commercial Services",Sport & Leisure,Supplies & Services,Provisions,BIKOLD,11/01/2022,130.84
"Communities, Customer & Commercial Services",Sport & Leisure,Supplies & Services,Provisions,BIKOLD,11/01/2022,517.19
"Communities, Customer & Commercial Services",Sport & Leisure,Supplies & Services,Provisions,BIKOLD,11/01/2022,250.8
"Communities, Customer & Commercial Services",Sport & Leisure,Supplies & Services,Provisions,BIKOLD,11/01/2022,103.22
"Communities, Customer & Commercial Services",Sport & Leisure,Supplies & Services,Provisions,BIKOLD,11/01/2022,195.77
"Communities, Customer & Commercial Services",Sport & Leisure,Supplies & Services,Provisions,BIKOLD,11/01/2022,173.44
"Communities, Customer & Commercial Services",Sport & Leisure,Supplies & Services,Provisions,BIKOLD,11/01/2022,166.39
"Communities, Customer & Commercial Services",Sport & Leisure,Supplies & Services,Provisions,BIKOLD,11/01/2022,198.13
"Communities, Customer & Commercial Services",Sport & Leisure,Supplies & Services,Provisions,BIKOLD,11/01/2022,137.36
"Communities, Customer & Commercial Services",Sport & Leisure,Supplies & Services,Provisions,BIKOLD,11/01/2022,101.97
"Communities, Customer & Commercial Services",Sport & Leisure,Supplies & Services,Provisions,BIKOLD,11/01/2022,183.76
"Communities, Customer & Commercial Services",Sport & Leisure,Supplies & Services,Provisions,BIKOLD,11/01/2022,121.06
"Communities, Customer & Commercial Services",Sport & Leisure,Supplies & Services,Provisions,BIKOLD,11/01/2022,106.46
"Communities, Customer & Commercial Services",Sport & Leisure,Supplies & Services,Provisions,BIKOLD,11/01/2022,161.27
"Communities, Customer & Commercial Services",Sport & Leisure,Supplies & Services,Provisions,BIKOLD,11/01/2022,114.69
"Communities, Customer & Commercial Services",Sport & Leisure,Supplies & Services,Provisions,BIKOLD,11/01/2022,221.37
"Communities, Customer & Commercial Services",Sport & Leisure,Supplies & Services,Provisions,BIKOLD,11/01/2022,286.44
"Communities, Customer & Commercial Services",Sport & Leisure,Supplies & Services,Provisions,BIKOLD,11/01/2022,131.6
"Communities, Customer & Commercial Services",Sport & Leisure,Supplies & Services,Provisions,BIKOLD,11/01/2022,164.44
"Communities, Customer & Commercial Services",Sport & Leisure,Supplies & Services,Provisions,BIKOLD,11/01/2022,544.28
"Communities, Customer & Commercial Services",Sport & Leisure,Supplies & Services,Provisions,BIKOLD,11/01/2022,146.92
"Communities, Customer & Commercial Services",Sport & Leisure,Supplies & Services,Provisions,BIKOLD,11/01/2022,103.63
"Communities, Customer & Commercial Services",Sport & Leisure,Supplies & Services,Provisions,BIKOLD,11/01/2022,198.56
"Communities, Customer & Commercial Services",Sport & Leisure,Supplies & Services,Provisions,BIKOLD,11/01/2022,304.51
"Communities, Customer & Commercial Services",Sport & Leisure,Supplies & Services,Provisions,BIKOLD,11/01/2022,108.87
"Communities, Customer & Commercial Services",Sport & Leisure,Supplies & Services,Provisions,BIKOLD,11/01/2022,159.28
"Communities, Customer & Commercial Services",Sport & Leisure,Supplies & Services,Provisions,BIKOLD,11/01/2022,174.37
"Communities, Customer & Commercial Services",Sport & Leisure,Supplies & Services,Provisions,BIKOLD,11/01/2022,252.12
"Communities, Customer & Commercial Services",Sport & Leisure,Supplies & Services,Provisions,BIKOLD,11/01/2022,449.18
"Communities, Customer & Commercial Services",Sport & Leisure,Supplies & Services,Provisions,BIKOLD,11/01/2022,181.2
"Communities, Customer & Commercial Services",Sport & Leisure,Supplies & Services,Provisions,BIKOLD,11/01/2022,232.86
"Communities, Customer & Commercial Services",Sport & Leisure,Supplies & Services,Provisions,BIKOLD,11/01/2022,312.11
"Communities, Customer & Commercial Services",Sport & Leisure,Supplies & Services,Provisions,BIKOLD,11/01/2022,151.58
"Communities, Customer & Commercial Services",Sport & Leisure,Supplies & Services,Provisions,BIKOLD,11/01/2022,198.91
"Communities, Customer & Commercial Services",Sport & Leisure,Supplies & Services,Provisions,BIKOLD,11/01/2022,187.62
"Communities, Customer & Commercial Services",Sport & Leisure,Supplies & Services,Provisions,BIKOLD,11/01/2022,110.79
"Communities, Customer & Commercial Services",Sport & Leisure,Supplies & Services,Provisions,BIKOLD,11/01/2022,358.89
"Communities, Customer & Commercial Services",Sport & Leisure,Supplies & Services,Provisions,BIKOLD,11/01/2022,112.73
"Communities, Customer & Commercial Services",Sport & Leisure,Supplies & Services,Provisions,BIKOLD,11/01/2022,308.15
"Communities, Customer & Commercial Services",Sport & Leisure,Supplies & Services,Provisions,BIKOLD,11/01/2022,162.44
"Communities, Customer & Commercial Services",Sport & Leisure,Supplies & Services,Provisions,BIKOLD,11/01/2022,348.42
"Communities, Customer & Commercial Services",Sport & Leisure,Supplies & Services,Provisions,BIKOLD,11/01/2022,538.89
"Communities, Customer & Commercial Services",Sport & Leisure,Supplies & Services,Provisions,BIKOLD,11/01/2022,139.44
"Communities, Customer & Commercial Services",Sport & Leisure,Supplies & Services,Provisions,BIKOLD,11/01/2022,154.65
"Communities, Customer & Commercial Services",Sport & Leisure,Supplies & Services,Provisions,BIKOLD,11/01/2022,414.61
"Communities, Customer & Commercial Services",Sport & Leisure,Supplies & Services,Provisions,BIKOLD,11/01/2022,466.23
"Communities, Customer & Commercial Services",Sport & Leisure,Supplies & Services,Provisions,BIKOLD,11/01/2022,182.6
"Communities, Customer & Commercial Services",Sport & Leisure,Supplies & Services,Provisions,BIKOLD,11/01/2022,192
"Communities, Customer & Commercial Services",Sport & Leisure,Supplies & Services,Provisions,BIKOLD,11/01/2022,161.02
"Communities, Customer & Commercial Services",Sport & Leisure,Supplies & Services,Provisions,BIKOLD,11/01/2022,148.68
"Communities, Customer & Commercial Services",Sport & Leisure,Supplies & Services,Provisions,BIKOLD,11/01/2022,194.5
"Communities, Customer & Commercial Services",Sport & Leisure,Supplies & Services,Provisions,BIKOLD,11/01/2022,243.23
"Communities, Customer & Commercial Services",Sport & Leisure,Supplies & Services,Provisions,BIKOLD,11/01/2022,410.15
"Communities, Customer & Commercial Services",Sport & Leisure,Supplies & Services,Crockery/Hardware/Light Equip,Elygra Limited,18/01/2022,695
"Communities, Customer & Commercial Services",Sport & Leisure,Supplies & Services,Crockery/Hardware/Light Equip,E N CATERING EQUIPMENT AND SERVICES  LTD,18/01/2022,146.99
"Communities, Customer & Commercial Services",Sport & Leisure,Supplies & Services,Provisions,BIKOLD,18/01/2022,103.93
"Communities, Customer & Commercial Services",Sport & Leisure,Supplies & Services,Provisions,BIKOLD,18/01/2022,120.79
"Communities, Customer & Commercial Services",Sport & Leisure,Supplies & Services,Provisions,BIKOLD,18/01/2022,287.12
"Communities, Customer & Commercial Services",Sport & Leisure,Supplies & Services,Provisions,BIKOLD,18/01/2022,431.33
"Communities, Customer & Commercial Services",Sport & Leisure,Supplies & Services,Provisions,BIKOLD,18/01/2022,329.68
"Communities, Customer & Commercial Services",Sport & Leisure,Supplies & Services,Provisions,BIKOLD,18/01/2022,197.78
"Communities, Customer & Commercial Services",Sport & Leisure,Supplies & Services,Provisions,BIKOLD,18/01/2022,354.6
"Communities, Customer & Commercial Services",Sport & Leisure,Supplies & Services,Provisions,BIKOLD,18/01/2022,222.15
"Communities, Customer & Commercial Services",Sport & Leisure,Supplies & Services,Provisions,BIKOLD,18/01/2022,473.48
"Communities, Customer & Commercial Services",Sport & Leisure,Supplies & Services,Provisions,BIKOLD,18/01/2022,298.36
"Communities, Customer & Commercial Services",Sport & Leisure,Supplies & Services,Provisions,BIKOLD,18/01/2022,167.22
"Communities, Customer & Commercial Services",Sport & Leisure,Supplies & Services,Provisions,BIKOLD,18/01/2022,162.53
"Communities, Customer & Commercial Services",Sport & Leisure,Supplies & Services,Provisions,BIKOLD,18/01/2022,201.46
"Communities, Customer & Commercial Services",Sport & Leisure,Supplies & Services,Provisions,BIKOLD,18/01/2022,154.22
"Communities, Customer & Commercial Services",Sport & Leisure,Supplies & Services,Provisions,BIKOLD,18/01/2022,176.88
"Communities, Customer & Commercial Services",Sport & Leisure,Supplies & Services,Provisions,BIKOLD,18/01/2022,126.64
"Communities, Customer & Commercial Services",Sport & Leisure,Supplies & Services,Provisions,BIKOLD,18/01/2022,229.57
"Communities, Customer & Commercial Services",Sport & Leisure,Supplies & Services,Provisions,BIKOLD,18/01/2022,100.74
"Communities, Customer & Commercial Services",Sport & Leisure,Supplies & Services,Provisions,BIKOLD,18/01/2022,167.79
"Communities, Customer & Commercial Services",Sport & Leisure,Supplies & Services,Provisions,BIKOLD,18/01/2022,248.91
"Communities, Customer & Commercial Services",Sport & Leisure,Supplies & Services,Provisions,BIKOLD,18/01/2022,105.01
"Communities, Customer & Commercial Services",Sport & Leisure,Supplies & Services,Provisions,BIKOLD,18/01/2022,184.77
"Communities, Customer & Commercial Services",Sport & Leisure,Supplies & Services,Provisions,BIKOLD,18/01/2022,133.7
"Communities, Customer & Commercial Services",Sport & Leisure,Supplies & Services,Provisions,BIKOLD,18/01/2022,389.1
"Communities, Customer & Commercial Services",Sport & Leisure,Supplies & Services,Provisions,BIKOLD,18/01/2022,372.38
"Communities, Customer & Commercial Services",Sport & Leisure,Supplies & Services,Provisions,BIKOLD,18/01/2022,148.58
"Communities, Customer & Commercial Services",Sport & Leisure,Supplies & Services,Provisions,BIKOLD,18/01/2022,307.49
"Communities, Customer & Commercial Services",Sport & Leisure,Supplies & Services,Provisions,BIKOLD,18/01/2022,144.5
"Communities, Customer & Commercial Services",Sport & Leisure,Supplies & Services,Provisions,BIKOLD,18/01/2022,137.15
"Communities, Customer & Commercial Services",Sport & Leisure,Supplies & Services,Provisions,BIKOLD,18/01/2022,355.3
"Communities, Customer & Commercial Services",Sport & Leisure,Supplies & Services,Provisions,BIKOLD,18/01/2022,212.37
"Communities, Customer & Commercial Services",Sport & Leisure,Supplies & Services,Provisions,BIKOLD,18/01/2022,261.38
"Communities, Customer & Commercial Services",Sport & Leisure,Supplies & Services,Provisions,BIKOLD,18/01/2022,141.99
"Communities, Customer & Commercial Services",Sport & Leisure,Supplies & Services,Provisions,BIKOLD,18/01/2022,134.43
"Communities, Customer & Commercial Services",Sport & Leisure,Supplies & Services,Provisions,BIKOLD,18/01/2022,128.23
"Communities, Customer & Commercial Services",Sport & Leisure,Supplies & Services,Provisions,BIKOLD,18/01/2022,186.76
"Communities, Customer & Commercial Services",Sport & Leisure,Supplies & Services,Provisions,BIKOLD,18/01/2022,585.12
"Communities, Customer & Commercial Services",Sport & Leisure,Supplies & Services,Provisions,BIKOLD,18/01/2022,144.15
"Communities, Customer & Commercial Services",Sport & Leisure,Supplies & Services,Provisions,BIKOLD,18/01/2022,222.92
"Communities, Customer & Commercial Services",Sport & Leisure,Supplies & Services,Provisions,BIKOLD,18/01/2022,149.05
"Communities, Customer & Commercial Services",Sport & Leisure,Supplies & Services,Provisions,BIKOLD,18/01/2022,331.84
"Communities, Customer & Commercial Services",Sport & Leisure,Supplies & Services,Provisions,BIKOLD,18/01/2022,266.18
"Communities, Customer & Commercial Services",Sport & Leisure,Supplies & Services,Provisions,BIKOLD,18/01/2022,854.04
"Communities, Customer & Commercial Services",Sport & Leisure,Supplies & Services,Provisions,BIKOLD,18/01/2022,314.97
"Communities, Customer & Commercial Services",Sport & Leisure,Supplies & Services,Provisions,BIKOLD,18/01/2022,162.51
"Communities, Customer & Commercial Services",Sport & Leisure,Supplies & Services,Provisions,BIKOLD,18/01/2022,310.61
"Communities, Customer & Commercial Services",Sport & Leisure,Supplies & Services,Provisions,BIKOLD,18/01/2022,118.44
"Communities, Customer & Commercial Services",Sport & Leisure,Supplies & Services,Provisions,BIKOLD,18/01/2022,266.92
"Communities, Customer & Commercial Services",Sport & Leisure,Supplies & Services,Provisions,BIKOLD,18/01/2022,220.83
"Communities, Customer & Commercial Services",Sport & Leisure,Supplies & Services,Provisions,BIKOLD,18/01/2022,120.16
"Communities, Customer & Commercial Services",Sport & Leisure,Supplies & Services,Provisions,BIKOLD,18/01/2022,203.88
"Communities, Customer & Commercial Services",Sport & Leisure,Supplies & Services,Provisions,BIKOLD,18/01/2022,387.84
"Communities, Customer & Commercial Services",Sport & Leisure,Supplies & Services,Provisions,BIKOLD,18/01/2022,113.63
"Communities, Customer & Commercial Services",Sport & Leisure,Supplies & Services,Provisions,BIKOLD,18/01/2022,151.74
"Communities, Customer & Commercial Services",Sport & Leisure,Supplies & Services,Provisions,BIKOLD,18/01/2022,359.7
"Communities, Customer & Commercial Services",Sport & Leisure,Supplies & Services,Provisions,BIKOLD,18/01/2022,151.1
"Communities, Customer & Commercial Services",Sport & Leisure,Supplies & Services,Provisions,BIKOLD,18/01/2022,124.99
"Communities, Customer & Commercial Services",Sport & Leisure,Supplies & Services,Provisions,BIKOLD,18/01/2022,267.99
"Communities, Customer & Commercial Services",Sport & Leisure,Supplies & Services,Provisions,BIKOLD,18/01/2022,217.23
"Communities, Customer & Commercial Services",Sport & Leisure,Supplies & Services,Provisions,BIKOLD,18/01/2022,476.86
"Communities, Customer & Commercial Services",Sport & Leisure,Supplies & Services,Provisions,BIKOLD,18/01/2022,110.4
"Communities, Customer & Commercial Services",Sport & Leisure,Supplies & Services,Provisions,BIKOLD,18/01/2022,333.05
"Communities, Customer & Commercial Services",Sport & Leisure,Supplies & Services,Provisions,BIKOLD,18/01/2022,104.37
"Communities, Customer & Commercial Services",Sport & Leisure,Supplies & Services,Provisions,BIKOLD,18/01/2022,109.8
"Communities, Customer & Commercial Services",Sport & Leisure,Supplies & Services,Provisions,BIKOLD,18/01/2022,381.67
"Communities, Customer & Commercial Services",Sport & Leisure,Supplies & Services,Provisions,BIKOLD,18/01/2022,110.69
"Communities, Customer & Commercial Services",Sport & Leisure,Supplies & Services,Provisions,BIKOLD,18/01/2022,169.9
"Communities, Customer & Commercial Services",Sport & Leisure,Supplies & Services,Provisions,BIKOLD,18/01/2022,409.4
"Communities, Customer & Commercial Services",Sport & Leisure,Supplies & Services,Provisions,BIKOLD,18/01/2022,471.6
"Communities, Customer & Commercial Services",Sport & Leisure,Supplies & Services,Provisions,BIKOLD,18/01/2022,195.83
"Communities, Customer & Commercial Services",Sport & Leisure,Supplies & Services,Provisions,BIKOLD,18/01/2022,211.18
"Communities, Customer & Commercial Services",Sport & Leisure,Supplies & Services,Provisions,BIKOLD,18/01/2022,123.76
"Communities, Customer & Commercial Services",Sport & Leisure,Supplies & Services,Provisions,BIKOLD,18/01/2022,298.31
"Communities, Customer & Commercial Services",Sport & Leisure,Supplies & Services,Provisions,BIKOLD,18/01/2022,133.65
"Communities, Customer & Commercial Services",Sport & Leisure,Supplies & Services,Provisions,BIKOLD,18/01/2022,103.53
"Communities, Customer & Commercial Services",Sport & Leisure,Supplies & Services,Provisions,BIKOLD,18/01/2022,148.79
"Communities, Customer & Commercial Services",Sport & Leisure,Supplies & Services,Provisions,BIKOLD,18/01/2022,165.09
"Communities, Customer & Commercial Services",Sport & Leisure,Supplies & Services,Provisions,BIKOLD,18/01/2022,196.09
"Communities, Customer & Commercial Services",Sport & Leisure,Supplies & Services,Provisions,BIKOLD,18/01/2022,135.29
"Communities, Customer & Commercial Services",Sport & Leisure,Supplies & Services,Provisions,BIKOLD,18/01/2022,174.56
"Communities, Customer & Commercial Services",Sport & Leisure,Supplies & Services,Provisions,BIKOLD,18/01/2022,174.74
"Communities, Customer & Commercial Services",Sport & Leisure,Supplies & Services,Provisions,BIKOLD,18/01/2022,135.61
"Communities, Customer & Commercial Services",Sport & Leisure,Supplies & Services,Provisions,BIKOLD,18/01/2022,201.26
"Communities, Customer & Commercial Services",Sport & Leisure,Supplies & Services,Provisions,BIKOLD,18/01/2022,173.94
"Communities, Customer & Commercial Services",Sport & Leisure,Supplies & Services,Provisions,BIKOLD,18/01/2022,134.44
"Communities, Customer & Commercial Services",Sport & Leisure,Supplies & Services,Provisions,BIKOLD,18/01/2022,127.06
"Communities, Customer & Commercial Services",Sport & Leisure,Supplies & Services,Provisions,BIKOLD,18/01/2022,102.07
"Communities, Customer & Commercial Services",Sport & Leisure,Supplies & Services,Provisions,BIKOLD,18/01/2022,140.54
"Communities, Customer & Commercial Services",Sport & Leisure,Supplies & Services,Provisions,BIKOLD,18/01/2022,108.86
"Communities, Customer & Commercial Services",Sport & Leisure,Supplies & Services,Provisions,BIKOLD,18/01/2022,115.83
"Communities, Customer & Commercial Services",Sport & Leisure,Supplies & Services,Provisions,BIKOLD,18/01/2022,255.97
"Communities, Customer & Commercial Services",Sport & Leisure,Supplies & Services,Provisions,BIKOLD,18/01/2022,182.77
"Communities, Customer & Commercial Services",Sport & Leisure,Supplies & Services,Provisions,BIKOLD,18/01/2022,150.35
"Communities, Customer & Commercial Services",Sport & Leisure,Supplies & Services,Provisions,BIKOLD,18/01/2022,343.51
"Communities, Customer & Commercial Services",Sport & Leisure,Supplies & Services,Provisions,BIKOLD,18/01/2022,248.61
"Communities, Customer & Commercial Services",Sport & Leisure,Supplies & Services,Provisions,BIKOLD,18/01/2022,121.27
"Communities, Customer & Commercial Services",Sport & Leisure,Supplies & Services,Provisions,BIKOLD,18/01/2022,323.24
"Communities, Customer & Commercial Services",Sport & Leisure,Supplies & Services,Provisions,BIKOLD,18/01/2022,129.62
"Communities, Customer & Commercial Services",Sport & Leisure,Supplies & Services,Provisions,BIKOLD,18/01/2022,216.88
"Communities, Customer & Commercial Services",Sport & Leisure,Supplies & Services,Provisions,BIKOLD,18/01/2022,116.22
"Communities, Customer & Commercial Services",Sport & Leisure,Supplies & Services,Provisions,BIKOLD,18/01/2022,287.19
"Communities, Customer & Commercial Services",Sport & Leisure,Supplies & Services,Provisions,BIKOLD,18/01/2022,219.54
"Communities, Customer & Commercial Services",Sport & Leisure,Supplies & Services,Provisions,BIKOLD,18/01/2022,122.5
"Communities, Customer & Commercial Services",Sport & Leisure,Supplies & Services,Provisions,BIKOLD,18/01/2022,200.44
"Communities, Customer & Commercial Services",Sport & Leisure,Supplies & Services,Provisions,BIKOLD,18/01/2022,103.7
"Communities, Customer & Commercial Services",Sport & Leisure,Supplies & Services,Provisions,BIKOLD,18/01/2022,153.82
"Communities, Customer & Commercial Services",Sport & Leisure,Supplies & Services,Provisions,BIKOLD,18/01/2022,129.02
"Communities, Customer & Commercial Services",Sport & Leisure,Supplies & Services,Provisions,BIKOLD,18/01/2022,314.13
"Communities, Customer & Commercial Services",Sport & Leisure,Supplies & Services,Provisions,BIKOLD,18/01/2022,249.81
"Communities, Customer & Commercial Services",Sport & Leisure,Supplies & Services,Provisions,BIKOLD,18/01/2022,228.12
"Communities, Customer & Commercial Services",Sport & Leisure,Supplies & Services,Provisions,BIKOLD,18/01/2022,165.04
"Communities, Customer & Commercial Services",Sport & Leisure,Supplies & Services,Provisions,BIKOLD,18/01/2022,271.37
"Communities, Customer & Commercial Services",Sport & Leisure,Supplies & Services,Crockery/Hardware/Light Equip,E NCATERING EQUIPMENT AND SERVICES  LTD,21/01/2022,1202.47
"Communities, Customer & Commercial Services",Sport & Leisure,Supplies & Services,Provisions,BIKOLD,24/01/2022,325.12
"Communities, Customer & Commercial Services",Sport & Leisure,Supplies & Services,Provisions,BIKOLD,24/01/2022,161.88
"Communities, Customer & Commercial Services",Sport & Leisure,Supplies & Services,Provisions,BIKOLD,24/01/2022,243.84
"Communities, Customer & Commercial Services",Sport & Leisure,Supplies & Services,Provisions,BIKOLD,24/01/2022,119.73
"Communities, Customer & Commercial Services",Sport & Leisure,Supplies & Services,Provisions,BIKOLD,24/01/2022,624.87
"Communities, Customer & Commercial Services",Sport & Leisure,Supplies & Services,Provisions,BIKOLD,24/01/2022,311.73
"Communities, Customer & Commercial Services",Sport & Leisure,Supplies & Services,Provisions,BIKOLD,24/01/2022,169.94
"Communities, Customer & Commercial Services",Sport & Leisure,Supplies & Services,Provisions,BIKOLD,24/01/2022,286.02
"Communities, Customer & Commercial Services",Sport & Leisure,Supplies & Services,Provisions,BIKOLD,24/01/2022,162.69
"Communities, Customer & Commercial Services",Sport & Leisure,Supplies & Services,Provisions,BIKOLD,24/01/2022,208.73
"Communities, Customer & Commercial Services",Sport & Leisure,Supplies & Services,Provisions,BIKOLD,24/01/2022,192.76
"Communities, Customer & Commercial Services",Sport & Leisure,Supplies & Services,Provisions,BIKOLD,24/01/2022,105.91
"Communities, Customer & Commercial Services",Sport & Leisure,Supplies & Services,Provisions,BIKOLD,24/01/2022,237.55
"Communities, Customer & Commercial Services",Sport & Leisure,Supplies & Services,Provisions,BIKOLD,24/01/2022,164.27
"Communities, Customer & Commercial Services",Sport & Leisure,Supplies & Services,Provisions,BIKOLD,24/01/2022,278.94
"Communities, Customer & Commercial Services",Sport & Leisure,Supplies & Services,Provisions,BIKOLD,24/01/2022,216.17
"Communities, Customer & Commercial Services",Sport & Leisure,Supplies & Services,Provisions,BIKOLD,24/01/2022,177.51
"Communities, Customer & Commercial Services",Sport & Leisure,Supplies & Services,Provisions,BIKOLD,24/01/2022,266.41
"Communities, Customer & Commercial Services",Sport & Leisure,Supplies & Services,Provisions,BIKOLD,24/01/2022,203.35
"Communities, Customer & Commercial Services",Sport & Leisure,Supplies & Services,Provisions,BIKOLD,24/01/2022,100.91
"Communities, Customer & Commercial Services",Sport & Leisure,Supplies & Services,Provisions,BIKOLD,24/01/2022,525.99
"Communities, Customer & Commercial Services",Sport & Leisure,Supplies & Services,Provisions,BIKOLD,24/01/2022,153.59
"Communities, Customer & Commercial Services",Sport & Leisure,Supplies & Services,Provisions,BIKOLD,24/01/2022,159.48
"Communities, Customer & Commercial Services",Sport & Leisure,Supplies & Services,Provisions,BIKOLD,24/01/2022,534.51
"Communities, Customer & Commercial Services",Sport & Leisure,Supplies & Services,Provisions,BIKOLD,24/01/2022,146.55
"Communities, Customer & Commercial Services",Sport & Leisure,Supplies & Services,Provisions,BIKOLD,24/01/2022,161.9
"Communities, Customer & Commercial Services",Sport & Leisure,Supplies & Services,Provisions,BIKOLD,24/01/2022,142.19
"Communities, Customer & Commercial Services",Sport & Leisure,Supplies & Services,Provisions,BIKOLD,24/01/2022,165.6
"Communities, Customer & Commercial Services",Sport & Leisure,Supplies & Services,Provisions,BIKOLD,24/01/2022,157.08
"Communities, Customer & Commercial Services",Sport & Leisure,Supplies & Services,Provisions,BIKOLD,24/01/2022,790.53
"Communities, Customer & Commercial Services",Sport & Leisure,Supplies & Services,Provisions,BIKOLD,24/01/2022,536.18
"Communities, Customer & Commercial Services",Sport & Leisure,Supplies & Services,Provisions,BIKOLD,24/01/2022,215.34
"Communities, Customer & Commercial Services",Sport & Leisure,Supplies & Services,Provisions,BIKOLD,24/01/2022,320.61
"Communities, Customer & Commercial Services",Sport & Leisure,Supplies & Services,Provisions,BIKOLD,24/01/2022,228.82
"Communities, Customer & Commercial Services",Sport & Leisure,Supplies & Services,Provisions,BIKOLD,24/01/2022,101.49
"Communities, Customer & Commercial Services",Sport & Leisure,Supplies & Services,Provisions,BIKOLD,24/01/2022,204.46
"Communities, Customer & Commercial Services",Sport & Leisure,Supplies & Services,Provisions,BIKOLD,24/01/2022,127.58
"Communities, Customer & Commercial Services",Sport & Leisure,Supplies & Services,Provisions,BIKOLD,24/01/2022,100.08
"Communities, Customer & Commercial Services",Sport & Leisure,Supplies & Services,Provisions,BIKOLD,24/01/2022,190.78
"Communities, Customer & Commercial Services",Sport & Leisure,Supplies & Services,Provisions,BIKOLD,24/01/2022,120.36
"Communities, Customer & Commercial Services",Sport & Leisure,Supplies & Services,Provisions,BIKOLD,24/01/2022,134.28
"Communities, Customer & Commercial Services",Sport & Leisure,Supplies & Services,Provisions,BIKOLD,24/01/2022,151.69
"Communities, Customer & Commercial Services",Sport & Leisure,Supplies & Services,Provisions,BIKOLD,24/01/2022,259.81
"Communities, Customer & Commercial Services",Sport & Leisure,Supplies & Services,Provisions,BIKOLD,24/01/2022,368.82
"Communities, Customer & Commercial Services",Sport & Leisure,Supplies & Services,Provisions,BIKOLD,24/01/2022,245.63
"Communities, Customer & Commercial Services",Sport & Leisure,Supplies & Services,Provisions,BIKOLD,24/01/2022,498.69
"Communities, Customer & Commercial Services",Sport & Leisure,Supplies & Services,Provisions,BIKOLD,24/01/2022,173.66
"Communities, Customer & Commercial Services",Sport & Leisure,Supplies & Services,Provisions,BIKOLD,24/01/2022,199.26
"Communities, Customer & Commercial Services",Sport & Leisure,Supplies & Services,Provisions,BIKOLD,24/01/2022,123.07
"Communities, Customer & Commercial Services",Sport & Leisure,Supplies & Services,Provisions,BIKOLD,24/01/2022,138.69
"Communities, Customer & Commercial Services",Sport & Leisure,Supplies & Services,Provisions,BIKOLD,24/01/2022,108.95
"Communities, Customer & Commercial Services",Sport & Leisure,Supplies & Services,Provisions,BIKOLD,24/01/2022,206.82
"Communities, Customer & Commercial Services",Sport & Leisure,Supplies & Services,Provisions,BIKOLD,24/01/2022,165.38
"Communities, Customer & Commercial Services",Sport & Leisure,Supplies & Services,Provisions,BIKOLD,24/01/2022,508.83
"Communities, Customer & Commercial Services",Sport & Leisure,Supplies & Services,Provisions,BIKOLD,24/01/2022,644.28
"Communities, Customer & Commercial Services",Sport & Leisure,Supplies & Services,Provisions,BIKOLD,24/01/2022,396.36
"Communities, Customer & Commercial Services",Sport & Leisure,Supplies & Services,Provisions,BIKOLD,24/01/2022,102.41
"Communities, Customer & Commercial Services",Sport & Leisure,Supplies & Services,Provisions,BIKOLD,24/01/2022,350.43
"Communities, Customer & Commercial Services",Sport & Leisure,Supplies & Services,Provisions,BIKOLD,24/01/2022,335.16
"Communities, Customer & Commercial Services",Sport & Leisure,Supplies & Services,Provisions,BIKOLD,24/01/2022,156.43
"Communities, Customer & Commercial Services",Sport & Leisure,Supplies & Services,Provisions,BIKOLD,24/01/2022,235.83
"Communities, Customer & Commercial Services",Sport & Leisure,Supplies & Services,Provisions,BIKOLD,24/01/2022,171.39
"Communities, Customer & Commercial Services",Sport & Leisure,Supplies & Services,Provisions,BIKOLD,24/01/2022,253.24
"Communities, Customer & Commercial Services",Sport & Leisure,Supplies & Services,Provisions,BIKOLD,24/01/2022,132.48
"Communities, Customer & Commercial Services",Sport & Leisure,Supplies & Services,Provisions,BIKOLD,24/01/2022,143.22
"Communities, Customer & Commercial Services",Sport & Leisure,Supplies & Services,Provisions,BIKOLD,24/01/2022,282.96
"Communities, Customer & Commercial Services",Sport & Leisure,Supplies & Services,Provisions,BIKOLD,24/01/2022,278.73
"Communities, Customer & Commercial Services",Sport & Leisure,Supplies & Services,Provisions,BIKOLD,24/01/2022,182.48
"Communities, Customer & Commercial Services",Sport & Leisure,Supplies & Services,Provisions,BIKOLD,24/01/2022,233.35
"Communities, Customer & Commercial Services",Sport & Leisure,Supplies & Services,Provisions,BIKOLD,24/01/2022,407.93
"Communities, Customer & Commercial Services",Sport & Leisure,Supplies & Services,Provisions,BIKOLD,24/01/2022,282.59
"Communities, Customer & Commercial Services",Sport & Leisure,Supplies & Services,Provisions,BIKOLD,24/01/2022,155.94
"Communities, Customer & Commercial Services",Sport & Leisure,Supplies & Services,Provisions,BIKOLD,24/01/2022,213.49
"Communities, Customer & Commercial Services",Sport & Leisure,Supplies & Services,Provisions,BIKOLD,24/01/2022,341.47
"Communities, Customer & Commercial Services",Sport & Leisure,Supplies & Services,Provisions,BIKOLD,24/01/2022,152.75
"Communities, Customer & Commercial Services",Sport & Leisure,Supplies & Services,Provisions,BIKOLD,24/01/2022,124.25
"Communities, Customer & Commercial Services",Sport & Leisure,Supplies & Services,Provisions,BIKOLD,24/01/2022,115.04
"Communities, Customer & Commercial Services",Sport & Leisure,Supplies & Services,Provisions,BIKOLD,24/01/2022,215.06
"Communities, Customer & Commercial Services",Sport & Leisure,Supplies & Services,Provisions,BIKOLD,24/01/2022,201.27
"Communities, Customer & Commercial Services",Sport & Leisure,Supplies & Services,Provisions,BIKOLD,24/01/2022,220.13
"Communities, Customer & Commercial Services",Sport & Leisure,Supplies & Services,Provisions,BIKOLD,24/01/2022,141
"Communities, Customer & Commercial Services",Sport & Leisure,Supplies & Services,Provisions,BIKOLD,24/01/2022,337.36
"Communities, Customer & Commercial Services",Sport & Leisure,Supplies & Services,Provisions,BIKOLD,24/01/2022,141.47
"Communities, Customer & Commercial Services",Sport & Leisure,Supplies & Services,Provisions,BIKOLD,24/01/2022,108.5
"Communities, Customer & Commercial Services",Sport & Leisure,Supplies & Services,Provisions,BIKOLD,24/01/2022,176.8
"Communities, Customer & Commercial Services",Sport & Leisure,Supplies & Services,Provisions,BIKOLD,24/01/2022,213.9
"Communities, Customer & Commercial Services",Sport & Leisure,Supplies & Services,Provisions,BIKOLD,24/01/2022,183.3
"Communities, Customer & Commercial Services",Sport & Leisure,Supplies & Services,Provisions,BIKOLD,24/01/2022,305.29
"Communities, Customer & Commercial Services",Sport & Leisure,Supplies & Services,Provisions,BIKOLD,24/01/2022,146.57
"Communities, Customer & Commercial Services",Sport & Leisure,Supplies & Services,Equipment - Purchase,R & COMPANY,25/01/2022,219.78
"Communities, Customer & Commercial Services",Sport & Leisure,Supplies & Services,Equipment - Purchase,R & COMPANY,25/01/2022,184.41
"Communities, Customer & Commercial Services",Sport & Leisure,Supplies & Services,Equipment - Purchase,R & COMPANY,25/01/2022,107.34
"Communities, Customer & Commercial Services",Sport & Leisure,Supplies & Services,Equipment - Purchase,R & COMPANY,25/01/2022,148.08
"Communities, Customer & Commercial Services",Sport & Leisure,Supplies & Services,Equipment - Purchase,R & COMPANY,25/01/2022,103.19
"Communities, Customer & Commercial Services",Sport & Leisure,Supplies & Services,Equipment - Purchase,R & COMPANY,25/01/2022,124.44
"Communities, Customer & Commercial Services",Sport & Leisure,Supplies & Services,Equipment - Purchase,R & COMPANY,25/01/2022,250.62
"Communities, Customer & Commercial Services",Sport & Leisure,Supplies & Services,Equipment - Purchase,R & COMPANY,25/01/2022,171.6
"Communities, Customer & Commercial Services",Sport & Leisure,Supplies & Services,Equipment - Purchase,R & COMPANY,25/01/2022,104.21
"Communities, Customer & Commercial Services",Sport & Leisure,Supplies & Services,Equipment - Purchase,R & COMPANY,25/01/2022,226.29
"Communities, Customer & Commercial Services",Sport & Leisure,Supplies & Services,Equipment - Purchase,R & COMPANY,25/01/2022,155.66
"Communities, Customer & Commercial Services",Sport & Leisure,Supplies & Services,Equipment - Purchase,R & COMPANY,25/01/2022,110.24
"Communities, Customer & Commercial Services",Sport & Leisure,Supplies & Services,Equipment - Purchase,R & COMPANY,25/01/2022,151.25
"Communities, Customer & Commercial Services",Sport & Leisure,Supplies & Services,Crockery/Hardware/Light Equip,E NCATERING EQUIPMENT AND SERVICES  LTD,25/01/2022,124.98
"Communities, Customer & Commercial Services",Sport & Leisure,Supplies & Services,Crockery/Hardware/Light Equip,Harfield Components Ltd,25/01/2022,780
"Communities, Customer & Commercial Services",Sport & Leisure,Supplies & Services,Provisions,J S Catering Butchers,25/01/2022,173.51
"Communities, Customer & Commercial Services",Sport & Leisure,Supplies & Services,Provisions,J S Catering Butchers,25/01/2022,110.56
"Communities, Customer & Commercial Services",Sport & Leisure,Supplies & Services,Provisions,J S Catering Butchers,25/01/2022,163.27
"Communities, Customer & Commercial Services",Sport & Leisure,Supplies & Services,Provisions,J S Catering Butchers,25/01/2022,139.33
"Communities, Customer & Commercial Services",Sport & Leisure,Supplies & Services,Provisions,J S Catering Butchers,25/01/2022,145
"Communities, Customer & Commercial Services",Sport & Leisure,Supplies & Services,Provisions,J S Catering Butchers,25/01/2022,140
"Communities, Customer & Commercial Services",Sport & Leisure,Supplies & Services,Provisions,J S Catering Butchers,25/01/2022,135.86
"Communities, Customer & Commercial Services",Sport & Leisure,Supplies & Services,Provisions,J S Catering Butchers,25/01/2022,177.01
"Communities, Customer & Commercial Services",Sport & Leisure,Supplies & Services,Provisions,J S Catering Butchers,25/01/2022,105
"Communities, Customer & Commercial Services",Sport & Leisure,Supplies & Services,Provisions,J S Catering Butchers,25/01/2022,174.51
"Communities, Customer & Commercial Services",Sport & Leisure,Supplies & Services,Provisions,J S Catering Butchers,25/01/2022,105.38
"Communities, Customer & Commercial Services",Sport & Leisure,Supplies & Services,Provisions,J S Catering Butchers,25/01/2022,268
"Communities, Customer & Commercial Services",Sport & Leisure,Supplies & Services,Provisions,J S Catering Butchers,25/01/2022,139.58
"Communities, Customer & Commercial Services",Sport & Leisure,Supplies & Services,Provisions,J S Catering Butchers,25/01/2022,148.51
"Communities, Customer & Commercial Services",Sport & Leisure,Supplies & Services,Provisions,J S Catering Butchers,25/01/2022,130.4
"Communities, Customer & Commercial Services",Sport & Leisure,Supplies & Services,Provisions,J S Catering Butchers,25/01/2022,325.9
"Communities, Customer & Commercial Services",Sport & Leisure,Supplies & Services,Provisions,J S Catering Butchers,25/01/2022,115.93
"Communities, Customer & Commercial Services",Sport & Leisure,Supplies & Services,Provisions,J S Catering Butchers,25/01/2022,133.76
"Communities, Customer & Commercial Services",Sport & Leisure,Supplies & Services,Provisions,J S Catering Butchers,25/01/2022,261.44
"Communities, Customer & Commercial Services",Sport & Leisure,Supplies & Services,Provisions,J S Catering Butchers,25/01/2022,192
"Communities, Customer & Commercial Services",Sport & Leisure,Supplies & Services,Provisions,J S Catering Butchers,25/01/2022,175.81
"Communities, Customer & Commercial Services",Sport & Leisure,Supplies & Services,Provisions,J S Catering Butchers,25/01/2022,168
"Communities, Customer & Commercial Services",Sport & Leisure,Supplies & Services,Provisions,J S Catering Butchers,25/01/2022,294.02
"Communities, Customer & Commercial Services",Sport & Leisure,Supplies & Services,Provisions,J S Catering Butchers,25/01/2022,108
"Communities, Customer & Commercial Services",Sport & Leisure,Supplies & Services,Provisions,J S Catering Butchers,25/01/2022,173.79
"Communities, Customer & Commercial Services",Sport & Leisure,Supplies & Services,Provisions,J S Catering Butchers,25/01/2022,186.99
"Communities, Customer & Commercial Services",Sport & Leisure,Supplies & Services,Provisions,J S Catering Butchers,25/01/2022,124.89
"Communities, Customer & Commercial Services",Sport & Leisure,Supplies & Services,Provisions,J S Catering Butchers,25/01/2022,108.01
"Communities, Customer & Commercial Services",Sport & Leisure,Supplies & Services,Provisions,J S Catering Butchers,25/01/2022,180.72
"Communities, Customer & Commercial Services",Sport & Leisure,Supplies & Services,Provisions,J S Catering Butchers,25/01/2022,276.8
"Communities, Customer & Commercial Services",Sport & Leisure,Supplies & Services,Provisions,J S Catering Butchers,25/01/2022,113.45
"Communities, Customer & Commercial Services",Sport & Leisure,Supplies & Services,Provisions,J S Catering Butchers,25/01/2022,189.44
"Communities, Customer & Commercial Services",Sport & Leisure,Supplies & Services,Provisions,J S Catering Butchers,25/01/2022,144
"Communities, Customer & Commercial Services",Sport & Leisure,Supplies & Services,Provisions,J S Catering Butchers,25/01/2022,-180.72
"Communities, Customer & Commercial Services",Sport & Leisure,Supplies & Services,Provisions,J S Catering Butchers,25/01/2022,133.92
"Communities, Customer & Commercial Services",Sport & Leisure,Supplies & Services,Provisions,J S Catering Butchers,25/01/2022,138.59
"Communities, Customer & Commercial Services",Sport & Leisure,Supplies & Services,Provisions,J S Catering Butchers,25/01/2022,120
"Communities, Customer & Commercial Services",Sport & Leisure,Supplies & Services,Provisions,J S Catering Butchers,25/01/2022,323.52
"Communities, Customer & Commercial Services",Sport & Leisure,Supplies & Services,Provisions,J S Catering Butchers,25/01/2022,160.92
"Communities, Customer & Commercial Services",Sport & Leisure,Supplies & Services,Crockery/Hardware/Light Equip,PLANGLOW LTD,27/01/2022,355.37
"Communities, Customer & Commercial Services",Sport & Leisure,Supplies & Services,Crockery/Hardware/Light Equip,E N CATERING EQUIPMENT AND SERVICES  LTD,27/01/2022,155.95
"Communities, Customer & Commercial Services",Sport & Leisure,Supplies & Services,Crockery/Hardware/Light Equip,E N CATERING EQUIPMENT AND SERVICES  LTD,27/01/2022,106.18
"Communities, Customer & Commercial Services",Sport & Leisure,Supplies & Services,Crockery/Hardware/Light Equip,E N CATERING EQUIPMENT AND SERVICES  LTD,27/01/2022,146.99
"Communities, Customer & Commercial Services",Sport & Leisure,Supplies & Services,Crockery/Hardware/Light Equip,E N CATERING EQUIPMENT AND SERVICES  LTD,27/01/2022,107.99
"Communities, Customer & Commercial Services",Sport & Leisure,Supplies & Services,Crockery/Hardware/Light Equip,E N CATERING EQUIPMENT AND SERVICES  LTD,27/01/2022,287
"Communities, Customer & Commercial Services",Sport & Leisure,Supplies & Services,Crockery/Hardware/Light Equip,E N CATERING EQUIPMENT AND SERVICES  LTD,27/01/2022,175.96
"Communities, Customer & Commercial Services",Sport & Leisure,Supplies & Services,Provisions,BIKOLD,27/01/2022,126.07
"Communities, Customer & Commercial Services",Sport & Leisure,Supplies & Services,Provisions,BIKOLD,27/01/2022,442.93
"Communities, Customer & Commercial Services",Sport & Leisure,Supplies & Services,Provisions,BIKOLD,27/01/2022,324.17
"Communities, Customer & Commercial Services",Sport & Leisure,Supplies & Services,Provisions,BIKOLD,27/01/2022,168.6
"Communities, Customer & Commercial Services",Sport & Leisure,Supplies & Services,Provisions,BIKOLD,27/01/2022,305.74
"Communities, Customer & Commercial Services",Sport & Leisure,Supplies & Services,Provisions,BIKOLD,27/01/2022,628.16
"Communities, Customer & Commercial Services",Sport & Leisure,Supplies & Services,Provisions,BIKOLD,27/01/2022,111.09
"Communities, Customer & Commercial Services",Sport & Leisure,Supplies & Services,Provisions,BIKOLD,27/01/2022,141.56
"Communities, Customer & Commercial Services",Sport & Leisure,Supplies & Services,Provisions,BIKOLD,27/01/2022,229.48
"Communities, Customer & Commercial Services",Sport & Leisure,Supplies & Services,Provisions,BIKOLD,27/01/2022,186.31
"Communities, Customer & Commercial Services",Sport & Leisure,Supplies & Services,Provisions,BIKOLD,27/01/2022,241.15
"Communities, Customer & Commercial Services",Sport & Leisure,Supplies & Services,Provisions,BIKOLD,27/01/2022,133.07
"Communities, Customer & Commercial Services",Sport & Leisure,Supplies & Services,Provisions,BIKOLD,27/01/2022,188.02
"Communities, Customer & Commercial Services",Sport & Leisure,Supplies & Services,Provisions,BIKOLD,27/01/2022,142.27
"Communities, Customer & Commercial Services",Sport & Leisure,Supplies & Services,Provisions,BIKOLD,27/01/2022,102.11
"Communities, Customer & Commercial Services",Sport & Leisure,Supplies & Services,Provisions,BIKOLD,27/01/2022,407.08
"Communities, Customer & Commercial Services",Sport & Leisure,Supplies & Services,Provisions,BIKOLD,27/01/2022,367
"Communities, Customer & Commercial Services",Sport & Leisure,Supplies & Services,Provisions,BIKOLD,27/01/2022,162.72
"Communities, Customer & Commercial Services",Sport & Leisure,Supplies & Services,Provisions,BIKOLD,27/01/2022,258.9
"Communities, Customer & Commercial Services",Sport & Leisure,Supplies & Services,Provisions,BIKOLD,27/01/2022,213.66
"Communities, Customer & Commercial Services",Sport & Leisure,Supplies & Services,Provisions,BIKOLD,27/01/2022,142.87
"Communities, Customer & Commercial Services",Sport & Leisure,Supplies & Services,Provisions,BIKOLD,27/01/2022,127.79
"Communities, Customer & Commercial Services",Sport & Leisure,Supplies & Services,Provisions,BIKOLD,27/01/2022,382.02
"Communities, Customer & Commercial Services",Sport & Leisure,Supplies & Services,Provisions,BIKOLD,27/01/2022,187.55
"Communities, Customer & Commercial Services",Sport & Leisure,Supplies & Services,Provisions,BIKOLD,27/01/2022,185.62
"Communities, Customer & Commercial Services",Sport & Leisure,Supplies & Services,Provisions,BIKOLD,27/01/2022,202.28
"Communities, Customer & Commercial Services",Sport & Leisure,Supplies & Services,Provisions,BIKOLD,27/01/2022,103.38
"Communities, Customer & Commercial Services",Sport & Leisure,Supplies & Services,Provisions,BIKOLD,27/01/2022,153.64
"Communities, Customer & Commercial Services",Sport & Leisure,Supplies & Services,Provisions,BIKOLD,27/01/2022,236.24
"Communities, Customer & Commercial Services",Sport & Leisure,Supplies & Services,Provisions,BIKOLD,27/01/2022,161.58
"Communities, Customer & Commercial Services",Sport & Leisure,Supplies & Services,Provisions,BIKOLD,27/01/2022,101.86
"Communities, Customer & Commercial Services",Sport & Leisure,Supplies & Services,Provisions,BIKOLD,27/01/2022,103.86
"Communities, Customer & Commercial Services",Sport & Leisure,Supplies & Services,Provisions,BIKOLD,27/01/2022,130.5
"Communities, Customer & Commercial Services",Sport & Leisure,Supplies & Services,Provisions,BIKOLD,27/01/2022,256.09
"Communities, Customer & Commercial Services",Sport & Leisure,Supplies & Services,Provisions,BIKOLD,27/01/2022,183.25
"Communities, Customer & Commercial Services",Sport & Leisure,Supplies & Services,Provisions,BIKOLD,27/01/2022,273.75
"Communities, Customer & Commercial Services",Sport & Leisure,Supplies & Services,Provisions,BIKOLD,27/01/2022,170.52
"Communities, Customer & Commercial Services",Sport & Leisure,Supplies & Services,Provisions,BIKOLD,27/01/2022,306.72
"Communities, Customer & Commercial Services",Sport & Leisure,Supplies & Services,Provisions,BIKOLD,27/01/2022,221.79
"Communities, Customer & Commercial Services",Sport & Leisure,Supplies & Services,Provisions,BIKOLD,27/01/2022,113.97
"Communities, Customer & Commercial Services",Sport & Leisure,Supplies & Services,Provisions,BIKOLD,27/01/2022,113.05
"Communities, Customer & Commercial Services",Sport & Leisure,Supplies & Services,Provisions,BIKOLD,27/01/2022,163.17
"Communities, Customer & Commercial Services",Sport & Leisure,Supplies & Services,Provisions,BIKOLD,27/01/2022,106.22
"Communities, Customer & Commercial Services",Sport & Leisure,Supplies & Services,Provisions,BIKOLD,27/01/2022,234.54
"Communities, Customer & Commercial Services",Sport & Leisure,Supplies & Services,Provisions,BIKOLD,27/01/2022,193.62
"Communities, Customer & Commercial Services",Sport & Leisure,Supplies & Services,Provisions,BIKOLD,27/01/2022,121.46
"Communities, Customer & Commercial Services",Sport & Leisure,Supplies & Services,Provisions,BIKOLD,27/01/2022,256.65
"Communities, Customer & Commercial Services",Sport & Leisure,Supplies & Services,Provisions,BIKOLD,27/01/2022,136.19
"Communities, Customer & Commercial Services",Sport & Leisure,Supplies & Services,Provisions,BIKOLD,27/01/2022,146.04
"Communities, Customer & Commercial Services",Sport & Leisure,Supplies & Services,Provisions,BIKOLD,27/01/2022,119.98
"Communities, Customer & Commercial Services",Sport & Leisure,Supplies & Services,Provisions,BIKOLD,27/01/2022,133.13
"Communities, Customer & Commercial Services",Sport & Leisure,Supplies & Services,Provisions,BIKOLD,27/01/2022,175.38
"Communities, Customer & Commercial Services",Sport & Leisure,Supplies & Services,Provisions,BIKOLD,27/01/2022,102.24
"Communities, Customer & Commercial Services",Sport & Leisure,Supplies & Services,Provisions,BIKOLD,27/01/2022,140.5
"Communities, Customer & Commercial Services",Sport & Leisure,Supplies & Services,Provisions,BIKOLD,27/01/2022,108.02
"Communities, Customer & Commercial Services",Sport & Leisure,Supplies & Services,Provisions,BIKOLD,27/01/2022,640.35
"Communities, Customer & Commercial Services",Sport & Leisure,Supplies & Services,Provisions,BIKOLD,27/01/2022,116.87
"Communities, Customer & Commercial Services",Sport & Leisure,Supplies & Services,Provisions,BIKOLD,27/01/2022,209.67
"Communities, Customer & Commercial Services",Sport & Leisure,Supplies & Services,Provisions,BIKOLD,27/01/2022,104.69
"Communities, Customer & Commercial Services",Sport & Leisure,Supplies & Services,Provisions,BIKOLD,27/01/2022,295.07
"Communities, Customer & Commercial Services",Sport & Leisure,Supplies & Services,Provisions,BIKOLD,27/01/2022,214.66
"Communities, Customer & Commercial Services",Sport & Leisure,Supplies & Services,Provisions,BIKOLD,27/01/2022,157.83
"Communities, Customer & Commercial Services",Sport & Leisure,Supplies & Services,Provisions,BIKOLD,27/01/2022,613.79
"Communities, Customer & Commercial Services",Sport & Leisure,Supplies & Services,Provisions,BIKOLD,27/01/2022,280.66
"Communities, Customer & Commercial Services",Sport & Leisure,Supplies & Services,Provisions,BIKOLD,27/01/2022,100.14
"Communities, Customer & Commercial Services",Sport & Leisure,Supplies & Services,Provisions,BIKOLD,27/01/2022,116.76
"Communities, Customer & Commercial Services",Sport & Leisure,Supplies & Services,Provisions,BIKOLD,27/01/2022,198.66
"Communities, Customer & Commercial Services",Sport & Leisure,Supplies & Services,Provisions,BIKOLD,27/01/2022,303.67
"Communities, Customer & Commercial Services",Sport & Leisure,Supplies & Services,Provisions,BIKOLD,27/01/2022,188.23
"Communities, Customer & Commercial Services",Sport & Leisure,Supplies & Services,Provisions,BIKOLD,27/01/2022,225.31
"Communities, Customer & Commercial Services",Sport & Leisure,Supplies & Services,Provisions,BIKOLD,27/01/2022,252.82
"Communities, Customer & Commercial Services",Sport & Leisure,Supplies & Services,Provisions,BIKOLD,27/01/2022,203.43
"Communities, Customer & Commercial Services",Sport & Leisure,Supplies & Services,Provisions,BIKOLD,27/01/2022,144.52
"Communities, Customer & Commercial Services",Sport & Leisure,Supplies & Services,Provisions,BIKOLD,27/01/2022,117.21
"Communities, Customer & Commercial Services",Sport & Leisure,Supplies & Services,Provisions,BIKOLD,27/01/2022,143.83
"Communities, Customer & Commercial Services",Sport & Leisure,Supplies & Services,Provisions,BIKOLD,27/01/2022,121.94
"Communities, Customer & Commercial Services",Sport & Leisure,Supplies & Services,Provisions,BIKOLD,27/01/2022,205.84
"Communities, Customer & Commercial Services",Sport & Leisure,Supplies & Services,Provisions,BIKOLD,27/01/2022,198.88
"Communities, Customer & Commercial Services",Sport & Leisure,Supplies & Services,Provisions,BIKOLD,27/01/2022,219.6
"Communities, Customer & Commercial Services",Sport & Leisure,Supplies & Services,Provisions,BIKOLD,27/01/2022,429.13
"Communities, Customer & Commercial Services",Sport & Leisure,Supplies & Services,Provisions,BIKOLD,27/01/2022,252.14
"Communities, Customer & Commercial Services",Sport & Leisure,Supplies & Services,Provisions,BIKOLD,27/01/2022,103.82
"Communities, Customer & Commercial Services",Sport & Leisure,Supplies & Services,Provisions,BIKOLD,27/01/2022,128.07
"Communities, Customer & Commercial Services",Sport & Leisure,Supplies & Services,Provisions,BIKOLD,27/01/2022,269.69
"Communities, Customer & Commercial Services",Sport & Leisure,Supplies & Services,Provisions,BIKOLD,27/01/2022,164.41
"Communities, Customer & Commercial Services",Sport & Leisure,Supplies & Services,Provisions,BIKOLD,27/01/2022,198.53
"Communities, Customer & Commercial Services",Sport & Leisure,Employees,Agency Supply Costs,TOTAL CATERING SOLUTONS RECRUITMENT LTD,04/01/2022,311.19
"Communities, Customer & Commercial Services",Sport & Leisure,Employees,Agency Supply Costs,TOTAL CATERING SOLUTONS RECRUITMENT LTD,10/01/2022,182.16
"Communities, Customer & Commercial Services",Sport & Leisure,Premises-Related Expenditure,Clean Mats & Toilet Requisites,Border Janitorial Supplies Limited,18/01/2022,152.82
"Communities, Customer & Commercial Services",Sport & Leisure,Supplies & Services,Provisions,On A Roll,04/01/2022,181.54
"Communities, Customer & Commercial Services",Sport & Leisure,Supplies & Services,Provisions,On A Roll,04/01/2022,145.53
"Communities, Customer & Commercial Services",Sport & Leisure,Supplies & Services,Provisions,On A Roll,04/01/2022,541.48
"Communities, Customer & Commercial Services",Sport & Leisure,Supplies & Services,Provisions,BIKOLD,06/01/2022,158.4
"Communities, Customer & Commercial Services",Sport & Leisure,Supplies & Services,Provisions,BIKOLD,06/01/2022,120.87
"Communities, Customer & Commercial Services",Sport & Leisure,Supplies & Services,Provisions,BIKOLD,06/01/2022,158.4
"Communities, Customer & Commercial Services",Sport & Leisure,Supplies & Services,Provisions,PASTA KING (UK) LIMITED,06/01/2022,180
"Communities, Customer & Commercial Services",Sport & Leisure,Supplies & Services,Provisions,PASTA KING (UK) LIMITED,06/01/2022,464.46
"Communities, Customer & Commercial Services",Sport & Leisure,Supplies & Services,Provisions,PASTA KING (UK) LIMITED,10/01/2022,180
"Communities, Customer & Commercial Services",Sport & Leisure,Supplies & Services,Provisions,PASTA KING (UK) LIMITED,10/01/2022,131.84
"Communities, Customer & Commercial Services",Sport & Leisure,Supplies & Services,Provisions,SPICE TIME,10/01/2022,113
"Communities, Customer & Commercial Services",Sport & Leisure,Supplies & Services,Provisions,PASTA KING (UK) LIMITED,11/01/2022,240
"Communities, Customer & Commercial Services",Sport & Leisure,Supplies & Services,Provisions,TROPICAL ICE,11/01/2022,192.5
"Communities, Customer & Commercial Services",Sport & Leisure,Supplies & Services,Provisions,TROPICAL ICE,11/01/2022,786
"Communities, Customer & Commercial Services",Sport & Leisure,Supplies & Services,Provisions,PASTA KING (UK) LIMITED,11/01/2022,240
"Communities, Customer & Commercial Services",Sport & Leisure,Supplies & Services,Provisions,PASTA KING (UK) LIMITED,11/01/2022,180
"Communities, Customer & Commercial Services",Sport & Leisure,Supplies & Services,Provisions,R & COMPANY,11/01/2022,114.65
"Communities, Customer & Commercial Services",Sport & Leisure,Supplies & Services,Provisions,R & COMPANY,11/01/2022,213.73
"Communities, Customer & Commercial Services",Sport & Leisure,Supplies & Services,Provisions,BIKOLD,11/01/2022,308.24
"Communities, Customer & Commercial Services",Sport & Leisure,Supplies & Services,Provisions,BIKOLD,11/01/2022,500.93
"Communities, Customer & Commercial Services",Sport & Leisure,Supplies & Services,Provisions,BIKOLD,11/01/2022,242.78
"Communities, Customer & Commercial Services",Sport & Leisure,Supplies & Services,Provisions,BIKOLD,11/01/2022,391.99
"Communities, Customer & Commercial Services",Sport & Leisure,Supplies & Services,Provisions,BIKOLD,11/01/2022,1353.43
"Communities, Customer & Commercial Services",Sport & Leisure,Supplies & Services,Provisions,BIKOLD,11/01/2022,107.34
"Communities, Customer & Commercial Services",Sport & Leisure,Supplies & Services,Provisions,BIKOLD,11/01/2022,303.65
"Communities, Customer & Commercial Services",Sport & Leisure,Supplies & Services,Provisions,BIKOLD,11/01/2022,765.39
"Communities, Customer & Commercial Services",Sport & Leisure,Supplies & Services,Provisions,BIKOLD,11/01/2022,470.3
"Communities, Customer & Commercial Services",Sport & Leisure,Supplies & Services,Provisions,BIKOLD,11/01/2022,169.44
"Communities, Customer & Commercial Services",Sport & Leisure,Supplies & Services,Provisions,BIKOLD,11/01/2022,296.56
"Communities, Customer & Commercial Services",Sport & Leisure,Supplies & Services,Provisions,BIKOLD,11/01/2022,173.07
"Communities, Customer & Commercial Services",Sport & Leisure,Supplies & Services,Provisions,BIKOLD,11/01/2022,304.66
"Communities, Customer & Commercial Services",Sport & Leisure,Supplies & Services,Crockery/Hardware/Light Equip,PLANGLOW LTD,12/01/2022,788.99
"Communities, Customer & Commercial Services",Sport & Leisure,Supplies & Services,Crockery/Hardware/Light Equip,PLANGLOW LTD,12/01/2022,348.31
"Communities, Customer & Commercial Services",Sport & Leisure,Supplies & Services,Provisions,Handmade Speciality Products Ltd,12/01/2022,413.88
"Communities, Customer & Commercial Services",Sport & Leisure,Supplies & Services,Provisions,PASTA KING (UK) LIMITED,12/01/2022,119.9
"Communities, Customer & Commercial Services",Sport & Leisure,Supplies & Services,Crockery/Hardware/Light Equip,Vegware,18/01/2022,490.42
"Communities, Customer & Commercial Services",Sport & Leisure,Supplies & Services,Provisions,On A Roll,18/01/2022,130.42
"Communities, Customer & Commercial Services",Sport & Leisure,Supplies & Services,Provisions,On A Roll,18/01/2022,360.84
"Communities, Customer & Commercial Services",Sport & Leisure,Supplies & Services,Provisions,Handmade Speciality Products Ltd,18/01/2022,584
"Communities, Customer & Commercial Services",Sport & Leisure,Supplies & Services,Provisions,On A Roll,18/01/2022,205.43
"Communities, Customer & Commercial Services",Sport & Leisure,Supplies & Services,Provisions,On A Roll,18/01/2022,194.16
"Communities, Customer & Commercial Services",Sport & Leisure,Supplies & Services,Provisions,PASTA KING (UK) LIMITED,18/01/2022,131.84
"Communities, Customer & Commercial Services",Sport & Leisure,Supplies & Services,Provisions,PASTA KING (UK) LIMITED,18/01/2022,197.76
"Communities, Customer & Commercial Services",Sport & Leisure,Supplies & Services,Provisions,Delice de France,18/01/2022,194.7
"Communities, Customer & Commercial Services",Sport & Leisure,Supplies & Services,Provisions,BIKOLD,18/01/2022,126.8
"Communities, Customer & Commercial Services",Sport & Leisure,Supplies & Services,Provisions,BIKOLD,18/01/2022,162.76
"Communities, Customer & Commercial Services",Sport & Leisure,Supplies & Services,Provisions,BIKOLD,18/01/2022,315
"Communities, Customer & Commercial Services",Sport & Leisure,Supplies & Services,Provisions,BIKOLD,18/01/2022,414.09
"Communities, Customer & Commercial Services",Sport & Leisure,Supplies & Services,Provisions,BIKOLD,18/01/2022,583.12
"Communities, Customer & Commercial Services",Sport & Leisure,Supplies & Services,Provisions,BIKOLD,18/01/2022,705.68
"Communities, Customer & Commercial Services",Sport & Leisure,Supplies & Services,Provisions,BIKOLD,18/01/2022,188.04
"Communities, Customer & Commercial Services",Sport & Leisure,Supplies & Services,Provisions,BIKOLD,18/01/2022,315.73
"Communities, Customer & Commercial Services",Sport & Leisure,Supplies & Services,Provisions,BIKOLD,18/01/2022,119.43
"Communities, Customer & Commercial Services",Sport & Leisure,Supplies & Services,Provisions,BIKOLD,18/01/2022,272.03
"Communities, Customer & Commercial Services",Sport & Leisure,Supplies & Services,Provisions,BIKOLD,18/01/2022,493.54
"Communities, Customer & Commercial Services",Sport & Leisure,Supplies & Services,Provisions,BIKOLD,18/01/2022,916.44
"Communities, Customer & Commercial Services",Sport & Leisure,Supplies & Services,Provisions,BIKOLD,18/01/2022,276.05
"Communities, Customer & Commercial Services",Sport & Leisure,Supplies & Services,Provisions,BIKOLD,18/01/2022,197.95
"Communities, Customer & Commercial Services",Sport & Leisure,Supplies & Services,Provisions,BIKOLD,18/01/2022,268
"Communities, Customer & Commercial Services",Sport & Leisure,Supplies & Services,Provisions,BIKOLD,18/01/2022,158.3
"Communities, Customer & Commercial Services",Sport & Leisure,Supplies & Services,Provisions,BIKOLD,18/01/2022,455.84
"Communities, Customer & Commercial Services",Sport & Leisure,Supplies & Services,Provisions,BIKOLD,18/01/2022,1178.17
"Communities, Customer & Commercial Services",Sport & Leisure,Supplies & Services,Provisions,BIKOLD,18/01/2022,118.72
"Communities, Customer & Commercial Services",Sport & Leisure,Supplies & Services,Provisions,BIKOLD,18/01/2022,173.38
"Communities, Customer & Commercial Services",Sport & Leisure,Supplies & Services,Provisions,BIKOLD,18/01/2022,117.32
"Communities, Customer & Commercial Services",Sport & Leisure,Supplies & Services,Provisions,BIKOLD,18/01/2022,141.57
"Communities, Customer & Commercial Services",Sport & Leisure,Supplies & Services,Provisions,BIKOLD,18/01/2022,265.33
"Communities, Customer & Commercial Services",Sport & Leisure,Supplies & Services,Provisions,BIKOLD,18/01/2022,482.23
"Communities, Customer & Commercial Services",Sport & Leisure,Supplies & Services,Provisions,BIKOLD,18/01/2022,345.38
"Communities, Customer & Commercial Services",Sport & Leisure,Supplies & Services,Crockery/Hardware/Light Equip,Vegware,19/01/2022,280.24
"Communities, Customer & Commercial Services",Sport & Leisure,Supplies & Services,Provisions,Handmade Speciality Products Ltd,19/01/2022,435.46
"Communities, Customer & Commercial Services",Sport & Leisure,Supplies & Services,Crockery/Hardware/Light Equip,Vegware,21/01/2022,194.88
"Communities, Customer & Commercial Services",Sport & Leisure,Supplies & Services,Provisions,PASTA KING (UK) LIMITED,21/01/2022,329.6
"Communities, Customer & Commercial Services",Sport & Leisure,Supplies & Services,Provisions,BIKOLD,24/01/2022,286.41
"Communities, Customer & Commercial Services",Sport & Leisure,Supplies & Services,Provisions,BIKOLD,24/01/2022,428.54
"Communities, Customer & Commercial Services",Sport & Leisure,Supplies & Services,Provisions,BIKOLD,24/01/2022,184.14
"Communities, Customer & Commercial Services",Sport & Leisure,Supplies & Services,Provisions,BIKOLD,24/01/2022,389.32
"Communities, Customer & Commercial Services",Sport & Leisure,Supplies & Services,Provisions,BIKOLD,24/01/2022,1052.11
"Communities, Customer & Commercial Services",Sport & Leisure,Supplies & Services,Provisions,BIKOLD,24/01/2022,235.53
"Communities, Customer & Commercial Services",Sport & Leisure,Supplies & Services,Provisions,BIKOLD,24/01/2022,334.56
"Communities, Customer & Commercial Services",Sport & Leisure,Supplies & Services,Provisions,BIKOLD,24/01/2022,613.78
"Communities, Customer & Commercial Services",Sport & Leisure,Supplies & Services,Provisions,BIKOLD,24/01/2022,126.6
"Communities, Customer & Commercial Services",Sport & Leisure,Supplies & Services,Provisions,BIKOLD,24/01/2022,144.3
"Communities, Customer & Commercial Services",Sport & Leisure,Supplies & Services,Provisions,BIKOLD,24/01/2022,457.71
"Communities, Customer & Commercial Services",Sport & Leisure,Supplies & Services,Provisions,BIKOLD,24/01/2022,238.7
"Communities, Customer & Commercial Services",Sport & Leisure,Supplies & Services,Provisions,BIKOLD,24/01/2022,818.47
"Communities, Customer & Commercial Services",Sport & Leisure,Supplies & Services,Provisions,BIKOLD,24/01/2022,255.78
"Communities, Customer & Commercial Services",Sport & Leisure,Supplies & Services,Provisions,BIKOLD,24/01/2022,648.08
"Communities, Customer & Commercial Services",Sport & Leisure,Supplies & Services,Provisions,BIKOLD,24/01/2022,239.19
"Communities, Customer & Commercial Services",Sport & Leisure,Supplies & Services,Provisions,BIKOLD,24/01/2022,164.05
"Communities, Customer & Commercial Services",Sport & Leisure,Supplies & Services,Provisions,BIKOLD,24/01/2022,196.71
"Communities, Customer & Commercial Services",Sport & Leisure,Supplies & Services,Provisions,BIKOLD,24/01/2022,329.83
"Communities, Customer & Commercial Services",Sport & Leisure,Supplies & Services,Provisions,BIKOLD,24/01/2022,474.73
"Communities, Customer & Commercial Services",Sport & Leisure,Supplies & Services,Provisions,BIKOLD,24/01/2022,324.04
"Communities, Customer & Commercial Services",Sport & Leisure,Supplies & Services,Provisions,BIKOLD,24/01/2022,349.39
"Communities, Customer & Commercial Services",Sport & Leisure,Supplies & Services,Provisions,BIKOLD,24/01/2022,107.46
"Communities, Customer & Commercial Services",Sport & Leisure,Supplies & Services,Provisions,BIKOLD,24/01/2022,836.51
"Communities, Customer & Commercial Services",Sport & Leisure,Supplies & Services,Provisions,BIKOLD,24/01/2022,113.47
"Communities, Customer & Commercial Services",Sport & Leisure,Supplies & Services,Provisions,BIKOLD,24/01/2022,143.53
"Communities, Customer & Commercial Services",Sport & Leisure,Supplies & Services,Provisions,BIKOLD,24/01/2022,497.39
"Communities, Customer & Commercial Services",Sport & Leisure,Supplies & Services,Equipment - Purchase,R & COMPANY,25/01/2022,155.77
"Communities, Customer & Commercial Services",Sport & Leisure,Supplies & Services,Equipment - Purchase,R & COMPANY,25/01/2022,107.87
"Communities, Customer & Commercial Services",Sport & Leisure,Supplies & Services,Equipment - Purchase,R & COMPANY,25/01/2022,107.99
"Communities, Customer & Commercial Services",Sport & Leisure,Supplies & Services,Provisions,On A Roll,25/01/2022,136.42
"Communities, Customer & Commercial Services",Sport & Leisure,Supplies & Services,Provisions,On A Roll,25/01/2022,194.16
"Communities, Customer & Commercial Services",Sport & Leisure,Supplies & Services,Provisions,On A Roll,25/01/2022,195.63
"Communities, Customer & Commercial Services",Sport & Leisure,Supplies & Services,Provisions,On A Roll,25/01/2022,680.53
"Communities, Customer & Commercial Services",Sport & Leisure,Supplies & Services,Provisions,J S Catering Butchers,25/01/2022,120.87
"Communities, Customer & Commercial Services",Sport & Leisure,Supplies & Services,Provisions,J S Catering Butchers,25/01/2022,139.08
"Communities, Customer & Commercial Services",Sport & Leisure,Supplies & Services,Provisions,J S Catering Butchers,25/01/2022,139.32
"Communities, Customer & Commercial Services",Sport & Leisure,Supplies & Services,Provisions,J S Catering Butchers,25/01/2022,106.82
"Communities, Customer & Commercial Services",Sport & Leisure,Supplies & Services,Provisions,J S Catering Butchers,25/01/2022,143.09
"Communities, Customer & Commercial Services",Sport & Leisure,Supplies & Services,Provisions,Delice de France,27/01/2022,372.19
"Communities, Customer & Commercial Services",Sport & Leisure,Supplies & Services,Provisions,BIKOLD,27/01/2022,1004.36
"Communities, Customer & Commercial Services",Sport & Leisure,Supplies & Services,Provisions,BIKOLD,27/01/2022,447.01
"Communities, Customer & Commercial Services",Sport & Leisure,Supplies & Services,Provisions,BIKOLD,27/01/2022,602.72
"Communities, Customer & Commercial Services",Sport & Leisure,Supplies & Services,Provisions,BIKOLD,27/01/2022,142
"Communities, Customer & Commercial Services",Sport & Leisure,Supplies & Services,Provisions,BIKOLD,27/01/2022,108.1
"Communities, Customer & Commercial Services",Sport & Leisure,Supplies & Services,Provisions,BIKOLD,27/01/2022,212.66
"Communities, Customer & Commercial Services",Sport & Leisure,Supplies & Services,Provisions,BIKOLD,27/01/2022,202.29
"Communities, Customer & Commercial Services",Sport & Leisure,Supplies & Services,Provisions,BIKOLD,27/01/2022,377.93
"Communities, Customer & Commercial Services",Sport & Leisure,Supplies & Services,Provisions,BIKOLD,27/01/2022,371.03
"Communities, Customer & Commercial Services",Sport & Leisure,Supplies & Services,Provisions,BIKOLD,27/01/2022,157.74
"Communities, Customer & Commercial Services",Sport & Leisure,Supplies & Services,Provisions,BIKOLD,27/01/2022,1223.83
"Communities, Customer & Commercial Services",Sport & Leisure,Supplies & Services,Provisions,SPICE TIME,27/01/2022,132
"Communities, Customer & Commercial Services",Sport & Leisure,Supplies & Services,Provisions,BIKOLD,27/01/2022,268.04
"Communities, Customer & Commercial Services",Sport & Leisure,Supplies & Services,Provisions,BIKOLD,27/01/2022,132.65
"Communities, Customer & Commercial Services",Sport & Leisure,Supplies & Services,Provisions,BIKOLD,27/01/2022,210.51
"Communities, Customer & Commercial Services",Sport & Leisure,Supplies & Services,Provisions,BIKOLD,27/01/2022,192.47
"Communities, Customer & Commercial Services",Sport & Leisure,Supplies & Services,Provisions,BIKOLD,27/01/2022,505.96
"Communities, Customer & Commercial Services",Sport & Leisure,Supplies & Services,Provisions,BIKOLD,27/01/2022,126.6
"Communities, Customer & Commercial Services",Sport & Leisure,Supplies & Services,Provisions,BIKOLD,27/01/2022,158.47
"Communities, Customer & Commercial Services",Sport & Leisure,Supplies & Services,Provisions,BIKOLD,27/01/2022,334.31
"Communities, Customer & Commercial Services",Sport & Leisure,Supplies & Services,Provisions,BIKOLD,27/01/2022,138.18
"Communities, Customer & Commercial Services",Sport & Leisure,Supplies & Services,Provisions,BIKOLD,27/01/2022,348.67
"Communities, Customer & Commercial Services",Sport & Leisure,Supplies & Services,Provisions,BIKOLD,27/01/2022,563.72
"Communities, Customer & Commercial Services",Sport & Leisure,Supplies & Services,Provisions,BIKOLD,27/01/2022,784.47
"Communities, Customer & Commercial Services",Sport & Leisure,Supplies & Services,Provisions,BIKOLD,27/01/2022,506.8
"Communities, Customer & Commercial Services",Sport & Leisure,Supplies & Services,Provisions,BIKOLD,27/01/2022,105.04
"Communities, Customer & Commercial Services",Sport & Leisure,Supplies & Services,Provisions,BIKOLD,27/01/2022,161.3
"Communities, Customer & Commercial Services",Sport & Leisure,Supplies & Services,Provisions,BIKOLD,27/01/2022,201.44
"Communities, Customer & Commercial Services",Sport & Leisure,Supplies & Services,Provisions,BIKOLD,27/01/2022,317.82
"Communities, Customer & Commercial Services",Sport & Leisure,Supplies & Services,Provisions,On A Roll,31/01/2022,194.68
"Communities, Customer & Commercial Services",Sport & Leisure,Supplies & Services,Provisions,On A Roll,31/01/2022,170.58
"Communities, Customer & Commercial Services",Sport & Leisure,Supplies & Services,Provisions,On A Roll,31/01/2022,205.43
"Communities, Customer & Commercial Services",Sport & Leisure,Premises-Related Expenditure,Clean Mats & Toilet Requisites,Border Janitorial Supplies Limited,17/01/2022,242.24
"Communities, Customer & Commercial Services",Sport & Leisure,Premises-Related Expenditure,Clean Mats & Toilet Requisites,Border Janitorial Supplies Limited,17/01/2022,348.67
"Communities, Customer & Commercial Services",Sport & Leisure,Premises-Related Expenditure,Clean Mats & Toilet Requisites,Border Janitorial Supplies Limited,20/01/2022,520.88
"Communities, Customer & Commercial Services",Sport & Leisure,Premises-Related Expenditure,Clean Mats & Toilet Requisites,Border Janitorial Supplies Limited,20/01/2022,212.22
"Communities, Customer & Commercial Services",Sport & Leisure,Premises-Related Expenditure,Clean Mats & Toilet Requisites,Border Janitorial Supplies Limited,20/01/2022,152.74
"Communities, Customer & Commercial Services",Sport & Leisure,Premises-Related Expenditure,Clean Mats & Toilet Requisites,Border Janitorial Supplies Limited,20/01/2022,183.79
"Communities, Customer & Commercial Services",Sport & Leisure,Premises-Related Expenditure,Clean Mats & Toilet Requisites,Border Janitorial Supplies Limited,20/01/2022,962.18
"Communities, Customer & Commercial Services",Sport & Leisure,Premises-Related Expenditure,Clean Mats & Toilet Requisites,Border Janitorial Supplies Limited,20/01/2022,187.72
"Communities, Customer & Commercial Services",Sport & Leisure,Premises-Related Expenditure,Clean Mats & Toilet Requisites,Border Janitorial Supplies Limited,17/01/2022,140.85
"Communities, Customer & Commercial Services",Sport & Leisure,Premises-Related Expenditure,Clean Mats & Toilet Requisites,Border Janitorial Supplies Limited,17/01/2022,211.88
"Communities, Customer & Commercial Services",Sport & Leisure,Premises-Related Expenditure,Clean Mats & Toilet Requisites,Border Janitorial Supplies Limited,17/01/2022,245.73
"Communities, Customer & Commercial Services",Sport & Leisure,Premises-Related Expenditure,Clean Mats & Toilet Requisites,Border Janitorial Supplies Limited,17/01/2022,139.92
"Communities, Customer & Commercial Services",Sport & Leisure,Premises-Related Expenditure,Clean Mats & Toilet Requisites,Border Janitorial Supplies Limited,17/01/2022,182.7
"Communities, Customer & Commercial Services",Sport & Leisure,Premises-Related Expenditure,Clean Mats & Toilet Requisites,Border Janitorial Supplies Limited,17/01/2022,334.42
"Communities, Customer & Commercial Services",Sport & Leisure,Premises-Related Expenditure,Clean Mats & Toilet Requisites,Border Janitorial Supplies Limited,17/01/2022,130.69
"Communities, Customer & Commercial Services",Sport & Leisure,Premises-Related Expenditure,Clean Mats & Toilet Requisites,Border Janitorial Supplies Limited,17/01/2022,115.84
"Communities, Customer & Commercial Services",Sport & Leisure,Premises-Related Expenditure,Clean Mats & Toilet Requisites,Vortex Cleaning Ltd,20/01/2022,400
"Communities, Customer & Commercial Services",Sport & Leisure,Premises-Related Expenditure,Clean Mats & Toilet Requisites,Border Janitorial Supplies Limited,20/01/2022,144
"Communities, Customer & Commercial Services",Sport & Leisure,Premises-Related Expenditure,Clean Mats & Toilet Requisites,Border Janitorial Supplies Limited,20/01/2022,140.87
"Communities, Customer & Commercial Services",Sport & Leisure,Premises-Related Expenditure,Clean Mats & Toilet Requisites,Border Janitorial Supplies Limited,17/01/2022,543
"Communities, Customer & Commercial Services",Sport & Leisure,Premises-Related Expenditure,Clean Mats & Toilet Requisites,Border Janitorial Supplies Limited,17/01/2022,121.8
"Communities, Customer & Commercial Services",Sport & Leisure,Premises-Related Expenditure,Clean Mats & Toilet Requisites,Border Janitorial Supplies Limited,17/01/2022,109.24
"Communities, Customer & Commercial Services",Sport & Leisure,Premises-Related Expenditure,Clean Mats & Toilet Requisites,Border Janitorial Supplies Limited,17/01/2022,200.24
"Communities, Customer & Commercial Services",Sport & Leisure,Premises-Related Expenditure,Clean Mats & Toilet Requisites,Border Janitorial Supplies Limited,17/01/2022,157.38
"Communities, Customer & Commercial Services",Sport & Leisure,Premises-Related Expenditure,Clean Mats & Toilet Requisites,Border Janitorial Supplies Limited,17/01/2022,203.86
"Communities, Customer & Commercial Services",Sport & Leisure,Premises-Related Expenditure,Clean Mats & Toilet Requisites,Border Janitorial Supplies Limited,17/01/2022,153.4
"Communities, Customer & Commercial Services",Sport & Leisure,Premises-Related Expenditure,Clean Mats & Toilet Requisites,Border Janitorial Supplies Limited,20/01/2022,154.01
"Communities, Customer & Commercial Services",Sport & Leisure,Premises-Related Expenditure,Clean Mats & Toilet Requisites,Border Janitorial Supplies Limited,20/01/2022,139.4
"Communities, Customer & Commercial Services",Sport & Leisure,Premises-Related Expenditure,Clean Mats & Toilet Requisites,Border Janitorial Supplies Limited,20/01/2022,167.96
"Communities, Customer & Commercial Services",Sport & Leisure,Premises-Related Expenditure,Clean Mats & Toilet Requisites,Border Janitorial Supplies Limited,20/01/2022,102.57
"Communities, Customer & Commercial Services",Sport & Leisure,Premises-Related Expenditure,Clean Mats & Toilet Requisites,Border Janitorial Supplies Limited,20/01/2022,314.88
"Communities, Customer & Commercial Services",Sport & Leisure,Premises-Related Expenditure,Clean Mats & Toilet Requisites,Border Janitorial Supplies Limited,20/01/2022,180
"Communities, Customer & Commercial Services",Sport & Leisure,Premises-Related Expenditure,Clean Mats & Toilet Requisites,Border Janitorial Supplies Limited,20/01/2022,536.96
"Communities, Customer & Commercial Services",Sport & Leisure,Premises-Related Expenditure,R&M -Building Other,B INDUSTRIAL SERVICES,06/01/2022,155.13
"Communities, Customer & Commercial Services",Sport & Leisure,Premises-Related Expenditure,R&M -Building Other,B INDUSTRIAL SERVICES,07/01/2022,132.8
"Communities, Customer & Commercial Services",Sport & Leisure,Premises-Related Expenditure,R&M -Building Other,B INDUSTRIAL SERVICES,17/01/2022,223.32
"Communities, Customer & Commercial Services",Sport & Leisure,Premises-Related Expenditure,R&M -Building Other,COOL SERVICES LTD,17/01/2022,401
"Communities, Customer & Commercial Services",Sport & Leisure,Supplies & Services,Provisions,On A Roll,06/01/2022,122.85
"Communities, Customer & Commercial Services",Sport & Leisure,Supplies & Services,Crockery/Hardware/Light Equip,E N CATERING EQUIPMENT AND SERVICES  LTD,10/01/2022,366.08
"Communities, Customer & Commercial Services",Sport & Leisure,Supplies & Services,Crockery/Hardware/Light Equip,CALTEL CATERING & LAUNDRY EQUIPMENT LLP,18/01/2022,767.06
"Communities, Customer & Commercial Services",Sport & Leisure,Supplies & Services,Provisions,BIKOLD,18/01/2022,126.8
"Communities, Customer & Commercial Services",Sport & Leisure,Supplies & Services,Provisions,J S Catering Butchers,25/01/2022,108
"Communities, Customer & Commercial Services",Sport & Leisure,Supplies & Services,Sub Contractors,Id verde,20/01/2022,180
"Communities, Customer & Commercial Services",Sport & Leisure,Supplies & Services,Sub Contractors,BUSINESS WATCH GUARDING LIMITED,20/01/2022,232
"Communities, Customer & Commercial Services",Sport & Leisure,Supplies & Services,Sub Contractors,Prosep filter systems ltd,27/01/2022,694.08
"Communities, Customer & Commercial Services",Sport & Leisure,Supplies & Services,Other Materials,Border Janitorial Supplies Limited,28/01/2022,147.09
"Communities, Customer & Commercial Services",Sport & Leisure,Supplies & Services,Payment Of Income Collected,ABRAHAM DARBY ACADEMY ,25/01/2022,3160.28
"Communities, Customer & Commercial Services",Sport & Leisure,Employees,Staff Training,We Do Tennis CIC,25/01/2022,280
"Communities, Customer & Commercial Services",Sport & Leisure,Supplies & Services,Financial Services,DEBIT FINANCE COLLECTIONS ,18/01/2022,153.5
"Communities, Customer & Commercial Services",Sport & Leisure,Supplies & Services,Licences,L M Fitness UK Ltd,17/01/2022,789.17
"Communities, Customer & Commercial Services",Sport & Leisure,Supplies & Services,Financial Services,DEBIT FINANCE COLLECTIONS ,18/01/2022,288.14
"Communities, Customer & Commercial Services",Sport & Leisure,Supplies & Services,Payment Of Income Collected,The Telford Langley School,04/01/2022,1643
"Communities, Customer & Commercial Services",Sport & Leisure,Supplies & Services,Chemicals/Cleaning Products,MAIN MAN SUPPLIES LTD,17/01/2022,310.85
"Communities, Customer & Commercial Services",Sport & Leisure,Supplies & Services,Chemicals/Cleaning Products,MAIN MAN SUPPLIES LTD,17/01/2022,331.29
"Communities, Customer & Commercial Services",Sport & Leisure,Supplies & Services,Chemicals/Cleaning Products,MAIN MAN SUPPLIES LTD,20/01/2022,233.59
"Communities, Customer & Commercial Services",Sport & Leisure,Supplies & Services,Chemicals/Cleaning Products,DALESAUNA LTD,24/01/2022,104.25
"Communities, Customer & Commercial Services",Sport & Leisure,Supplies & Services,Equipment - Purchase,Broxap Ltd,20/01/2022,239.5
"Communities, Customer & Commercial Services",Sport & Leisure,Supplies & Services,Licences,L M Fitness UK Ltd,13/01/2022,565.18
"Communities, Customer & Commercial Services",Sport & Leisure,Supplies & Services,Financial Services,DEBIT FINANCE COLLECTIONS ,18/01/2022,323.72
"Communities, Customer & Commercial Services",Sport & Leisure,Supplies & Services,Equipment - Purchase,J P L LTD,17/01/2022,618.59
"Communities, Customer & Commercial Services",Sport & Leisure,Supplies & Services,Financial Services,DEBIT FINANCE COLLECTIONS ,18/01/2022,119.86
"Communities, Customer & Commercial Services",Sport & Leisure,Premises-Related Expenditure,Other,THAMES CARD TECHNOLOGY LTD,31/01/2022,1971.3
"Communities, Customer & Commercial Services",Sport & Leisure,Supplies & Services,Flex Charges,Verifone UK Limited,07/01/2022,2730.3
"Communities, Customer & Commercial Services",Sport & Leisure,Supplies & Services,Flex Charges,Verifone UK Limited,07/01/2022,1139.85
"Communities, Customer & Commercial Services",Sport & Leisure,Third Party Payments,Contractor Recharge,Council Advertising Network,14/01/2022,3000
"Communities, Customer & Commercial Services",Sport & Leisure,Supplies & Services,Equipment - Purchase,CONTINENTAL SPORTS PRODUCTS CO,20/01/2022,1085
"Communities, Customer & Commercial Services",Sport & Leisure,Premises-Related Expenditure,Preventative Maintenance,Gym Repair Services,07/01/2022,247.95
"Communities, Customer & Commercial Services",Sport & Leisure,Supplies & Services,Financial Services,DEBIT FINANCE COLLECTIONS ,18/01/2022,165.62
"Communities, Customer & Commercial Services",Sport & Leisure,Transport-Related Expenditure,Servicing & Repairs V&P,C STORES LTD,19/01/2022,145.5
"Communities, Customer & Commercial Services",Sport & Leisure,Supplies & Services,Provisions,BIKOLD,06/01/2022,167.85
"Communities, Customer & Commercial Services",Sport & Leisure,Supplies & Services,Provisions,BIKOLD,06/01/2022,272.29
"Communities, Customer & Commercial Services",Sport & Leisure,Supplies & Services,Provisions,BIKOLD,06/01/2022,511.67
"Communities, Customer & Commercial Services",Sport & Leisure,Supplies & Services,Provisions,BIKOLD,06/01/2022,293.69
"Communities, Customer & Commercial Services",Sport & Leisure,Supplies & Services,Provisions,BIKOLD,06/01/2022,134.75
"Communities, Customer & Commercial Services",Sport & Leisure,Supplies & Services,Provisions,BIKOLD,06/01/2022,431.18
"Communities, Customer & Commercial Services",Sport & Leisure,Supplies & Services,Crockery/Hardware/Light Equip,PLANGLOW LTD,10/01/2022,290.26
"Communities, Customer & Commercial Services",Sport & Leisure,Supplies & Services,Crockery/Hardware/Light Equip,TROPICAL ICE,11/01/2022,907.5
"Communities, Customer & Commercial Services",Sport & Leisure,Supplies & Services,Crockery/Hardware/Light Equip,TROPICAL ICE,11/01/2022,968.44
"Communities, Customer & Commercial Services",Sport & Leisure,Supplies & Services,Crockery/Hardware/Light Equip,TROPICAL ICE,11/01/2022,1265.82
"Communities, Customer & Commercial Services",Sport & Leisure,Supplies & Services,Provisions,BIKOLD,11/01/2022,197.18
"Communities, Customer & Commercial Services",Sport & Leisure,Supplies & Services,Provisions,BIKOLD,11/01/2022,135.5
"Communities, Customer & Commercial Services",Sport & Leisure,Supplies & Services,Provisions,BIKOLD,18/01/2022,588.21
"Communities, Customer & Commercial Services",Sport & Leisure,Supplies & Services,Provisions,BIKOLD,18/01/2022,479.88
"Communities, Customer & Commercial Services",Sport & Leisure,Supplies & Services,Provisions,BIKOLD,18/01/2022,736.93
"Communities, Customer & Commercial Services",Sport & Leisure,Supplies & Services,Provisions,BIKOLD,24/01/2022,331.37
"Communities, Customer & Commercial Services",Sport & Leisure,Supplies & Services,Provisions,BIKOLD,24/01/2022,176.82
"Communities, Customer & Commercial Services",Sport & Leisure,Supplies & Services,Provisions,BIKOLD,24/01/2022,219.98
"Communities, Customer & Commercial Services",Sport & Leisure,Supplies & Services,Provisions,Handmade Speciality Products Ltd,25/01/2022,232.02
"Communities, Customer & Commercial Services",Sport & Leisure,Supplies & Services,Provisions,BIKOLD,27/01/2022,212.01
"Communities, Customer & Commercial Services",Sport & Leisure,Supplies & Services,Provisions,BIKOLD,27/01/2022,366.18
"Communities, Customer & Commercial Services",Sport & Leisure,Supplies & Services,Crockery/Hardware/Light Equip,Salop Cash Registers,31/01/2022,895
"Communities, Customer & Commercial Services",Sport & Leisure,Supplies & Services,Payment Of Income Collected,Telford Tigers Limited,07/01/2022,5459.49
"Communities, Customer & Commercial Services",Sport & Leisure,Supplies & Services,Payment Of Income Collected,Telford Tigers Limited,07/01/2022,10868.79
"Communities, Customer & Commercial Services",Sport & Leisure,Supplies & Services,Payment Of Income Collected,Telford Tigers Limited,11/01/2022,4189.55
"Communities, Customer & Commercial Services",Sport & Leisure,Supplies & Services,Payment Of Income Collected,Telford Tigers Limited,18/01/2022,4179.42
"Communities, Customer & Commercial Services",Sport & Leisure,Supplies & Services,Payment Of Income Collected,Telford Tigers Limited,25/01/2022,8653.4
"Communities, Customer & Commercial Services",Sport & Leisure,Supplies & Services,Equipment - Hire,Ezy Lockers,04/01/2022,126.42
"Communities, Customer & Commercial Services",Sport & Leisure,Supplies & Services,Equipment - Purchase,Soft Play Maintenance Ltd.,18/01/2022,1000
"Communities, Customer & Commercial Services",Sport & Leisure,Supplies & Services,Equipment - Purchase,JP AUDIO VISUAL LTD,19/01/2022,608.29
"Communities, Customer & Commercial Services",Sport & Leisure,Premises-Related Expenditure,Hire Of Rooms,COSY HALL,31/01/2022,115.5
"Communities, Customer & Commercial Services",Sport & Leisure,Supplies & Services,Equipment - Purchase,RLSS UK Shop,05/01/2022,299.8
"Communities, Customer & Commercial Services",Sport & Leisure,Supplies & Services,Equipment - Purchase,RLSS UK Shop,27/01/2022,369
"Communities, Customer & Commercial Services",Sport & Leisure,Supplies & Services,Chemicals/Cleaning Products,BRENNTAG UK LIMITED,26/01/2022,613.52
"Communities, Customer & Commercial Services",Sport & Leisure,Supplies & Services,Carriage/Delivery Charge,ARJO UK LTD,17/01/2022,574
"Communities, Customer & Commercial Services",Sport & Leisure,Premises-Related Expenditure,Preventative Maintenance,Gym Repair Services,07/01/2022,270
"Communities, Customer & Commercial Services",Sport & Leisure,Supplies & Services,Financial Services,DEBIT FINANCE COLLECTIONS ,18/01/2022,517.64
"Communities, Customer & Commercial Services",Sport & Leisure,Supplies & Services,Financial Services,DEBIT FINANCE COLLECTIONS ,18/01/2022,213.64
"Communities, Customer & Commercial Services",Sport & Leisure,Supplies & Services,Items For Resale,SWIM ENGLAND TRADING LIMITED,02/01/2022,103
"Communities, Customer & Commercial Services",Sport & Leisure,Supplies & Services,Protective Clothing,CORPORATE TOGS LTD,04/01/2022,1161.05
"Communities, Customer & Commercial Services",Sport & Leisure,Supplies & Services,Protective Clothing,CORPORATE TOGS LTD,04/01/2022,684.79
"Communities, Customer & Commercial Services",Sport & Leisure,Supplies & Services,Protective Clothing,CORPORATE TOGS LTD,04/01/2022,246.75
"Communities, Customer & Commercial Services",Sport & Leisure,Supplies & Services,Chemicals/Cleaning Products,BRENNTAG UK LIMITED,05/01/2022,766.9
"Communities, Customer & Commercial Services",Sport & Leisure,Supplies & Services,Chemicals/Cleaning Products,BRENNTAG UK LIMITED,05/01/2022,138.44
"Communities, Customer & Commercial Services",Sport & Leisure,Capital Expenditure,Payments to Contractor,MSM Plant Limited,11/01/2022,195
"Communities, Customer & Commercial Services",Sport & Leisure,Capital Expenditure,Payments to Contractor,MSM Plant Limited,07/01/2022,195
Corporate Communications,Communications & Marketing,Employees,Agency Supply Costs,HAYS SPECIALIST RECRUITMENT,10/01/2022,999.15
Corporate Communications,Communications & Marketing,Employees,Agency Supply Costs,M P international Recruitment Limited,10/01/2022,1057.88
Corporate Communications,Communications & Marketing,Employees,Agency Supply Costs,M P international Recruitment Limited,10/01/2022,1065.23
Corporate Communications,Communications & Marketing,Employees,Agency Supply Costs,H SPECIALIST RECRUITMENT,10/01/2022,999.15
Corporate Communications,Communications & Marketing,Employees,Agency Supply Costs,M P international Recruitment Limited,18/01/2022,5909.4
Corporate Communications,Communications & Marketing,Employees,Agency Supply Costs,M P international Recruitment Limited,28/01/2022,878.1
Corporate Communications,Communications & Marketing,Employees,Agency Supply Costs,HAYS SPECIALIST RECRUITMENT,28/01/2022,799.32
Corporate Communications,Communications & Marketing,Employees,Agency Supply Costs,HAYS SPECIALIST RECRUITMENT,29/01/2022,999.15
Corporate Communications,Communications & Marketing,Supplies & Services,Advertising,MDT REPROGRAPHICS LTD,18/01/2022,533.15
Corporate Communications,Communications & Marketing,Supplies & Services,Postages,IMPACT MAIL & PRINT LTD,28/01/2022,7927
Corporate Communications,Communications & Marketing,Supplies & Services,Advertising,Bauer Radio Ltd,12/01/2022,1808.44
Corporate Items,Corporate Codes,Supplies & Services,Other Services,INTERSERVE LTD ,25/01/2022,2634
Corporate Items,Corporate Codes,Capital Financing Costs,Unitary Charge,PYRAMID SCHOOLS (HADLEY) LTD,24/01/2022,931720.82
Corporate Items,Corporate Codes,Capital Financing Costs,Penalty Deductions,PYRAMID SCHOOLS (HADLEY) LTD,25/01/2022,-1784.92
Corporate Items,Corporate Codes,Employees,Agency Supply Costs,Matrix SCM,06/01/2022,46700.78
Corporate Items,Corporate Codes,Employees,Agency Supply Costs,Matrix SCM,14/01/2022,29053.27
Corporate Items,Corporate Codes,Employees,Agency Supply Costs,Matrix SCM,14/01/2022,25018.73
Corporate Items,Corporate Codes,Employees,Agency Supply Costs,Matrix SCM,19/01/2022,30765.34
Corporate Items,Corporate Codes,Employees,Agency Supply Costs,Matrix SCM,27/01/2022,48613.88
Corporate Items,Corporate Codes,Third Party Payments,Contribution To Other La's,SHROPSHIRE COUNCIL ,11/01/2022,3917
Education & Skills,Consultancy & Advisory Services,Employees,Course Fees,Birkbeck College - University of London,14/01/2022,375
Education & Skills,Consultancy & Advisory Services,Employees,Course Fees,B Young People,28/01/2022,3500
Education & Skills,Consultancy & Advisory Services,Premises-Related Expenditure,Hire Of Rooms,RAMADA TELFORD IRONBRIDGE,14/01/2022,500
Education & Skills,Consultancy & Advisory Services,Supplies & Services,Training Costs - Participants Recharged,RAMADA TELFORD IRONBRIDGE,14/01/2022,483.93
Education & Skills,Consultancy & Advisory Services,Supplies & Services,Materials,CITY OF STOKE ON TRENT,21/01/2022,15680
Education & Skills,Consultancy & Advisory Services,Supplies & Services,Other Grants (Expenses),Twiggy's Day Nursery DONNINGTON,05/01/2022,600
Education & Skills,Education & Skills,Capital Expenditure,Payments to Contractor,SGS United Kingdom Limited,10/01/2022,850
Education & Skills,Education & Skills,Capital Expenditure,Payments to Contractor,ASLES (TOOL HIRE & SALES) LTD,17/01/2022,144
Education & Skills,Education & Skills,Capital Expenditure,Payments to Contractor,PP ELECTRICAL SERVICES (Shropshire) Ltd,18/01/2022,2312
Education & Skills,Education & Skills,Capital Expenditure,Legal Fees,W H SOLICITORS,05/01/2022,487.4
Education & Skills,Education & Skills,Capital Expenditure,Legal Fees,W H SOLICITORS,05/01/2022,197.6
Education & Skills,Education & Skills,Capital Expenditure,Legal Fees,W H SOLICITORS,28/01/2022,623.2
Education & Skills,Education & Skills,Capital Expenditure,Legal Fees,W H SOLICITORS,05/01/2022,706.4
Education & Skills,Education & Skills,Capital Expenditure,Legal Fees,W H SOLICITORS,28/01/2022,1554.4
Education & Skills,Education & Skills,Capital Expenditure,Payments to Contractor,SGS United Kingdom Limited,14/01/2022,225
Education & Skills,Education & Skills,Capital Expenditure,Payments to Contractor,SGS United Kingdom Limited,14/01/2022,225
Education & Skills,Education & Skills,Capital Expenditure,Payments to Contractor,SGS United Kingdom Limited,10/01/2022,225
Education & Skills,Education & Skills,Capital Expenditure,Payments to Contractor,SGS United Kingdom Limited,10/01/2022,225
Education & Skills,Education & Skills,Capital Expenditure,Payments to Contractor,SGS United Kingdom Limited,10/01/2022,225
Education & Skills,Education & Skills,Capital Expenditure,Payments to Contractor,SGS United Kingdom Limited,10/01/2022,225
Education & Skills,Education & Skills,Capital Expenditure,Payments to Contractor,SGS United Kingdom Limited,10/01/2022,225
Education & Skills,Education & Skills,Capital Expenditure,Payments to Contractor,SGS United Kingdom Limited,10/01/2022,225
Education & Skills,Education & Skills,Capital Expenditure,Payments to Contractor,SGS United Kingdom Limited,10/01/2022,225
Education & Skills,Education & Skills,Capital Expenditure,Payments to Contractor,SGS United Kingdom Limited,10/01/2022,225
Education & Skills,Education & Skills,Capital Expenditure,Payments to Contractor,SGS United Kingdom Limited,10/01/2022,225
Education & Skills,Education & Skills,Capital Expenditure,Payments to Contractor,SGS United Kingdom Limited,10/01/2022,225
Education & Skills,Education & Skills,Capital Expenditure,Payments to Contractor,SGS United Kingdom Limited,10/01/2022,225
Education & Skills,Education & Skills,Capital Expenditure,Payments to Contractor,SGS United Kingdom Limited,14/01/2022,225
Education & Skills,Education & Skills,Capital Expenditure,Payments to Contractor,SGS United Kingdom Limited,14/01/2022,225
Education & Skills,Education & Skills,Capital Expenditure,Payments to Contractor,SGS United Kingdom Limited,14/01/2022,225
Education & Skills,Education & Skills,Capital Expenditure,Payments to Contractor,SGS United Kingdom Limited,14/01/2022,225
Education & Skills,Education & Skills,Capital Expenditure,Payments to Contractor,SGS United Kingdom Limited,14/01/2022,225
Education & Skills,Education & Skills,Capital Expenditure,Payments to Contractor,SGS United Kingdom Limited,14/01/2022,225
Education & Skills,Education & Skills,Capital Expenditure,Payments to Contractor,SGS United Kingdom Limited,10/01/2022,225
Education & Skills,Education & Skills,Capital Expenditure,Payments to Contractor,SGS United Kingdom Limited,10/01/2022,225
Education & Skills,Education & Skills,Capital Expenditure,Payments to Contractor,W Programmed Maintenance Ltd,11/01/2022,5660
Education & Skills,Education & Skills,Capital Expenditure,Payments to Contractor,Cubic FM Ltd,06/01/2022,6620
Education & Skills,Education & Skills,Capital Expenditure,Payments to Contractor,Cubic FM Ltd,18/01/2022,17913
Education & Skills,Education & Skills,Capital Expenditure,Payments to Contractor,SGS United Kingdom Limited,27/01/2022,225
Education & Skills,Education & Skills,Capital Expenditure,Payments to Contractor,R G STONES (BUILDINGS) LTD,18/01/2022,17605
Education & Skills,Education & Skills,Capital Expenditure,Payments to Contractor,FINDEL EDUCATION LTD,19/01/2022,147.89
Education & Skills,Education & Skills,Capital Expenditure,Payments to Contractor,FINDEL EDUCATION LTD,18/01/2022,200
Education & Skills,Education & Skills,Capital Expenditure,Payments to Contractor,W H SOLICITORS,10/01/2022,167.2
Education & Skills,Education & Skills,Capital Expenditure,Payments to Contractor,GRANVILLE CONSTRUCTION & MAINTENANCE LTD,31/01/2022,452
Education & Skills,Education & Skills,Capital Expenditure,Payments to Contractor,ARJO UK LTD,13/01/2022,2350
Education & Skills,Education & Skills,Capital Expenditure,Other Capital Expenditure,CCS MEDIA LIMITED,19/01/2022,1073.6
Education & Skills,Education & Skills,Capital Expenditure,Other Capital Expenditure,CCS MEDIA LIMITED,19/01/2022,524.3
Education & Skills,Education & Skills,Capital Expenditure,Other Capital Expenditure,CCS MEDIA LIMITED,19/01/2022,1194.28
Education & Skills,Education & Skills,Capital Expenditure,Payments to Contractor,P (BUILDERS) LTD,10/01/2022,29621.7
Education & Skills,Education & Skills,Capital Expenditure,Payments to Contractor,TAYLORS MECHANICAL H & P SERVICES LTD,24/01/2022,3142.64
Education & Skills,Education & Skills,Capital Expenditure,Payments to Contractor,TAYLORS MECHANICAL H & P SERVICES LTD,17/01/2022,2425
Education & Skills,Education & Skills,Capital Expenditure,Payments to Contractor,Churches Fire Security Ltd,06/01/2022,288.45
Education & Skills,Education & Skills,Capital Expenditure,Payments to Contractor,MERCIAN MASTERPLAN LTD,17/01/2022,124.2
Education & Skills,Education & Skills,Capital Expenditure,Payments to Contractor,W H SOLICITORS,14/01/2022,790.4
Education & Skills,Education & Skills,Capital Expenditure,Payments to Contractor,W D Construction Ltd,19/01/2022,159353.38
Education & Skills,Education & Skills,Capital Expenditure,Payments to Contractor,GRANVILLE CONSTRUCTION & MAINTENANCE LTD,10/01/2022,674
Education & Skills,Education & Skills,Capital Expenditure,Payments to Contractor,Ridge and Partners LLP,14/01/2022,10000
Education & Skills,Education & Skills,Capital Expenditure,Payments to Contractor,WREKIN REMOVALS,11/01/2022,2350
Education & Skills,Education & Skills,Capital Expenditure,Payments to Contractor,WREKIN SELF STORAGE LTD,05/01/2022,200
Education & Skills,Education & Skills,Capital Expenditure,Payments to Contractor,WREKIN SELF STORAGE LTD,05/01/2022,200
Education & Skills,Education & Skills,Capital Expenditure,Payments to Contractor,SIGNS EXPRESS,20/01/2022,728
Education & Skills,Education & Skills,Capital Expenditure,Payments to Contractor,Strive AV Ltd,27/01/2022,663
Education & Skills,Education & Skills,Capital Expenditure,Payments to Contractor,SIGNS EXPRESS ,31/01/2022,898
Education & Skills,Education & Skills,Capital Expenditure,Payments to Contractor,WREKIN SELF STORAGE LTD,31/01/2022,200
Education & Skills,Education & Skills,Capital Expenditure,Payments to Contractor,Read Construction Holdings Ltd,10/01/2022,138802.87
Education & Skills,Pupil Support Services,Supplies & Services,Other Expenses,J B & Sons Ltd,10/01/2022,777
Education & Skills,Pupil Support Services,Supplies & Services,Artistes Fees,Entrust Support Services Ltd,19/01/2022,4512
Education & Skills,Pupil Support Services,Supplies & Services,Other Expenses,Entrust Support Services Ltd,27/01/2022,3815.22
Education & Skills,SEND (0-25),Transport-Related Expenditure,Taxi Costs,ULTIMATE TAXIS LTD,04/01/2022,800
Education & Skills,SEND (0-25),Transport-Related Expenditure,Taxi Costs,ULTIMATE TAXIS LTD,04/01/2022,1440
Education & Skills,SEND (0-25),Transport-Related Expenditure,Taxi Costs,Go Carz,04/01/2022,410
Education & Skills,SEND (0-25),Transport-Related Expenditure,Taxi Costs,Go Carz,04/01/2022,212
Education & Skills,SEND (0-25),Transport-Related Expenditure,Taxi Costs,Go Carz,05/01/2022,260
Education & Skills,SEND (0-25),Transport-Related Expenditure,Taxi Costs,Go Carz,05/01/2022,4026
Education & Skills,SEND (0-25),Transport-Related Expenditure,Taxi Costs,Go Carz,05/01/2022,1378
Education & Skills,SEND (0-25),Transport-Related Expenditure,Taxi Costs,Go Carz,05/01/2022,554.4
Education & Skills,SEND (0-25),Transport-Related Expenditure,Taxi Costs,Go Carz,05/01/2022,4368.3
Education & Skills,SEND (0-25),Transport-Related Expenditure,Taxi Costs,Go Carz,05/01/2022,128
Education & Skills,SEND (0-25),Transport-Related Expenditure,Taxi Costs,Go Carz,05/01/2022,1029.6
Education & Skills,SEND (0-25),Transport-Related Expenditure,Taxi Costs,Telford and Wrekin Community Enterprise LTD,05/01/2022,642.6
Education & Skills,SEND (0-25),Transport-Related Expenditure,Taxi Costs,Go Carz,05/01/2022,150
Education & Skills,SEND (0-25),Transport-Related Expenditure,Taxi Costs,Go Carz,05/01/2022,140.4
Education & Skills,SEND (0-25),Transport-Related Expenditure,Taxi Costs,Go Carz,05/01/2022,3427
Education & Skills,SEND (0-25),Transport-Related Expenditure,Taxi Costs,Go Carz,05/01/2022,1007
Education & Skills,SEND (0-25),Transport-Related Expenditure,Taxi Costs,A-STAR TRANSPORT MIDLANDS LTD,05/01/2022,1274
Education & Skills,SEND (0-25),Transport-Related Expenditure,Taxi Costs,Telford and Wrekin Community Enterprise LTD,05/01/2022,491.4
Education & Skills,SEND (0-25),Transport-Related Expenditure,Taxi Costs, Go Carz,05/01/2022,100.8
Education & Skills,SEND (0-25),Transport-Related Expenditure,Taxi Costs,ULTIMATE TAXIS LTD,10/01/2022,400
Education & Skills,SEND (0-25),Transport-Related Expenditure,Taxi Costs, Go Carz,10/01/2022,900
Education & Skills,SEND (0-25),Transport-Related Expenditure,Taxi Costs,ULTIMATE TAXIS LTD,10/01/2022,1080
Education & Skills,SEND (0-25),Transport-Related Expenditure,Taxi Costs, Go Carz,10/01/2022,1066
Education & Skills,SEND (0-25),Transport-Related Expenditure,Season Tickets,ARRIVA MIDLANDS LTD ,10/01/2022,545
Education & Skills,SEND (0-25),Transport-Related Expenditure,Season Tickets,ARRIVA MIDLANDS LTD ,19/01/2022,154
Education & Skills,SEND (0-25),Transport-Related Expenditure,Taxi Costs,Telford Taxi Hire Limited,19/01/2022,1210
Education & Skills,SEND (0-25),Transport-Related Expenditure,Taxi Costs,Telford Taxi Hire Limited,19/01/2022,1430
Education & Skills,SEND (0-25),Transport-Related Expenditure,Taxi Costs,Telford Taxi Hire Limited,19/01/2022,1300
Education & Skills,SEND (0-25),Transport-Related Expenditure,Taxi Costs,Telford Taxi Hire Limited,19/01/2022,1600
Education & Skills,SEND (0-25),Transport-Related Expenditure,Taxi Costs,Telford Taxi Hire Limited,19/01/2022,2200
Education & Skills,SEND (0-25),Transport-Related Expenditure,Transport Contractors,Telford Taxi Hire Limited,19/01/2022,1950
Education & Skills,SEND (0-25),Transport-Related Expenditure,Taxi Costs,AB & CA H,19/01/2022,1800.5
Education & Skills,SEND (0-25),Transport-Related Expenditure,Taxi Costs,AB & CA H,19/01/2022,832
Education & Skills,SEND (0-25),Transport-Related Expenditure,Parents Reimbursements,REDACTED PERSONAL INFORMATION,24/01/2022,171.44
Education & Skills,SEND (0-25),Employees,Course Fees,NATIONAL AUTISTIC SOCIETY,25/01/2022,965
Education & Skills,SEND (0-25),Employees,Staff Training,WARWICKSHIRE COUNTY COUNCIL,26/01/2022,834
Education & Skills,SEND (0-25),Third Party Payments,DSG - High Needs Block,Busy Bees Day Nursery Telford,31/01/2022,238.36
Education & Skills,SEND (0-25),Third Party Payments,DSG - High Needs Block,Childrensworld Newport,31/01/2022,1637.9
